{"text_format":"1","workbook":"xlsx","n_sheets":3,"sheets":["Planning","Personnel","Explications"],"not_rendered":{"charts":0,"images":0,"macros":1,"external_links":0,"defined_names":63,"comments":1,"pivot_tables":0},"unopened":[],"bounds":{"document_bytes":16777216,"sheet_cells":100000,"rows_first":2000,"rows_last":500,"rows_between":2000,"halvings":0,"cell_chars":16384,"cell_head_chars":4096},"cells_cut":0,"cells_raw":0,"read":"whole","date_system":"1900"}

{"sheet":"Planning","index":0,"n_rows":125,"n_cols":189,"rows_kept":125,"cut":false,"hidden":false,"merged":[[0,1,0,4],[1,1,1,6],[0,8,0,11],[1,8,1,13],[0,15,0,18],[1,15,1,20],[0,22,0,25],[1,22,1,27],[18,7,18,10],[19,7,19,12],[107,133,107,138],[107,139,107,144],[107,145,107,150],[107,151,107,156],[108,133,108,136],[108,139,108,142],[108,145,108,148],[108,151,108,154],[109,133,109,138],[109,139,109,144],[109,145,109,150],[109,151,109,156],[110,133,110,136],[110,139,110,142],[110,145,110,148],[110,151,110,154],[123,133,123,137],[123,139,123,143],[123,145,123,149],[123,151,123,155],[91,133,91,138],[91,139,91,144],[91,145,91,150],[91,151,91,156],[102,133,102,137],[102,139,102,143],[102,145,102,149],[102,151,102,155],[103,133,103,137],[103,139,103,143],[103,145,103,149],[103,151,103,155],[104,133,104,136],[104,139,104,142],[104,145,104,148],[104,151,104,154],[105,133,105,138],[105,139,105,144],[105,145,105,150],[105,151,105,156],[85,151,85,156],[86,133,86,136],[86,139,86,142],[86,145,86,148],[86,151,86,154],[87,133,87,138],[87,139,87,144],[87,145,87,150],[87,151,87,156],[88,133,88,136],[88,139,88,142],[88,145,88,148],[88,151,88,154],[89,133,89,138],[89,139,89,144],[89,145,89,150],[89,151,89,156],[48,139,48,142],[48,145,48,148],[48,151,48,154],[49,133,49,138],[49,139,49,144],[49,145,49,150],[49,151,49,156],[50,133,50,136],[50,139,50,142],[50,145,50,148],[50,151,50,154],[51,133,51,138],[51,139,51,144],[51,145,51,150],[51,151,51,156],[83,133,83,137],[83,139,83,143],[83,145,83,149],[83,151,83,155],[39,133,39,137],[39,139,39,143],[39,145,39,149],[39,151,39,155],[43,133,43,137],[43,139,43,143],[43,145,43,149],[43,151,43,155],[44,133,44,136],[44,139,44,142],[44,145,44,148],[44,151,44,154],[45,133,45,138],[45,139,45,144],[45,145,45,150],[45,151,45,156],[46,133,46,136],[46,139,46,142],[46,145,46,148],[46,151,46,154],[34,151,34,154],[35,133,35,138],[35,139,35,144],[35,145,35,150],[35,151,35,156],[36,133,36,138],[36,139,36,144],[36,145,36,150],[36,151,36,156],[37,133,37,138],[37,139,37,144],[37,145,37,150],[37,151,37,156],[38,133,38,137],[38,139,38,143],[38,145,38,149],[38,151,38,155],[24,133,24,136],[24,139,24,142],[24,145,24,148],[24,151,24,154],[25,133,25,138],[25,139,25,144],[25,145,25,150],[25,151,25,156],[26,133,26,136],[26,139,26,142],[26,145,26,148],[26,151,26,154],[27,133,27,138],[27,139,27,144],[27,145,27,150],[27,151,27,156],[31,133,31,138],[31,139,31,144],[31,145,31,150],[31,151,31,156],[12,139,12,142],[12,145,12,148],[12,151,12,154],[13,133,13,138],[13,139,13,144],[13,145,13,150],[13,151,13,156],[14,133,14,136],[14,139,14,142],[14,145,14,148],[14,151,14,154],[19,151,19,155],[20,133,20,137],[20,139,20,143],[20,145,20,149],[20,151,20,155],[21,133,21,137],[21,139,21,143],[21,145,21,149],[21,151,21,155],[123,121,123,125],[123,127,123,131],[3,134,3,137],[3,140,3,143],[3,146,3,149],[3,152,3,155],[4,133,4,136],[4,139,4,142],[4,145,4,148],[4,151,4,154],[5,133,5,138],[5,139,5,144],[5,145,5,150],[5,151,5,156],[6,133,6,136],[6,139,6,142],[6,145,6,148],[6,151,6,154],[7,133,7,138],[7,139,7,144],[7,145,7,150],[7,151,7,156],[8,133,8,136],[8,139,8,142],[8,145,8,148],[8,151,8,154],[9,133,9,138],[9,139,9,144],[9,145,9,150],[9,151,9,156],[10,133,10,136],[10,139,10,142],[108,121,108,124],[108,127,108,130],[109,121,109,126],[109,127,109,132],[110,121,110,124],[110,127,110,130],[111,121,111,126],[111,127,111,132],[112,121,112,124],[112,127,112,130],[113,121,113,126],[113,127,113,132],[114,121,114,124],[114,127,114,130],[115,121,115,126],[115,127,115,132],[116,121,116,126],[116,127,116,132],[98,121,98,125],[98,127,98,131],[99,121,99,125],[99,127,99,131],[100,121,100,125],[100,127,100,131],[102,121,102,125],[102,127,102,131],[103,121,103,125],[103,127,103,131],[104,121,104,124],[104,127,104,130],[105,121,105,126],[105,127,105,132],[106,121,106,124],[106,127,106,130],[107,121,107,126],[107,127,107,132],[86,121,86,124],[86,127,86,130],[87,121,87,126],[87,127,87,132],[88,121,88,124],[88,127,88,130],[89,121,89,126],[89,127,89,132],[90,121,90,124],[90,127,90,130],[91,121,91,126],[91,127,91,132],[92,121,92,124],[92,127,92,130],[93,121,93,126],[93,127,93,132],[94,121,94,124],[94,127,94,130],[53,121,53,126],[53,127,53,132],[54,121,54,124],[54,127,54,130],[55,121,55,126],[55,127,55,132],[56,121,56,126],[56,127,56,132],[57,121,57,126],[57,127,57,132],[58,121,58,125],[58,127,58,131],[59,121,59,125],[59,127,59,131],[84,121,84,124],[84,127,84,130],[85,121,85,126],[85,127,85,132],[36,127,36,132],[37,121,37,126],[37,127,37,132],[38,121,38,125],[38,127,38,131],[39,121,39,125],[39,127,39,131],[40,121,40,125],[40,127,40,131],[43,121,43,125],[43,127,43,131],[44,121,44,124],[44,127,44,130],[45,121,45,126],[45,127,45,132],[46,121,46,124],[46,127,46,130],[24,121,24,124],[24,127,24,130],[25,121,25,126],[25,127,25,132],[26,121,26,124],[26,127,26,130],[27,121,27,126],[27,127,27,132],[28,121,28,124],[28,127,28,130],[29,121,29,126],[29,127,29,132],[30,121,30,124],[30,127,30,130],[31,121,31,126],[31,127,31,132],[32,121,32,124],[32,127,32,130],[23,121,23,125],[23,127,23,131],[15,133,15,138],[15,139,15,144],[15,145,15,150],[15,151,15,156],[16,133,16,138],[16,139,16,144],[16,145,16,150],[16,151,16,156],[17,133,17,138],[17,139,17,144],[17,145,17,150],[17,151,17,156],[18,133,18,137],[18,139,18,143],[18,145,18,149],[18,151,18,155],[22,133,22,137],[22,139,22,143],[22,145,22,149],[22,151,22,155],[23,133,23,137],[23,139,23,143],[23,145,23,149],[23,151,23,155],[22,188,22,192],[23,182,23,186],[23,188,23,192],[3,122,3,125],[3,128,3,131],[4,121,4,124],[4,127,4,130],[5,121,5,126],[5,127,5,132],[6,121,6,124],[6,127,6,130],[7,121,7,126],[7,127,7,132],[8,121,8,124],[8,127,8,130],[9,121,9,126],[9,127,9,132],[10,121,10,124],[10,127,10,130],[11,121,11,126],[11,127,11,132],[12,121,12,124],[12,127,12,130],[13,121,13,126],[13,127,13,132],[14,121,14,124],[14,127,14,130],[15,121,15,126],[15,127,15,132],[16,121,16,126],[16,127,16,132],[17,121,17,126],[13,188,13,192],[14,182,14,186],[14,188,14,192],[15,182,15,186],[15,188,15,192],[16,182,16,186],[16,188,16,192],[17,182,17,186],[17,188,17,192],[18,182,18,186],[18,188,18,192],[19,182,19,186],[19,188,19,192],[20,182,20,186],[20,188,20,192],[21,182,21,186],[21,188,21,192],[4,188,4,193],[5,182,5,186],[5,188,5,192],[6,182,6,186],[6,188,6,192],[7,182,7,186],[7,188,7,192],[8,182,8,186],[8,188,8,192],[9,182,9,186],[9,188,9,192],[10,182,10,186],[10,188,10,192],[11,182,11,186],[11,188,11,192],[12,182,12,186],[12,188,12,192],[5,73,5,78],[5,79,5,84],[6,43,6,46],[12,37,12,40],[12,43,12,46],[9,37,9,42],[9,43,9,48],[14,13,14,16],[14,19,14,22],[14,25,14,28],[22,158,22,162],[14,158,14,162],[15,158,15,162],[15,115,15,120],[21,158,21,162],[2,1,2,3],[4,182,4,187],[13,182,13,186],[22,182,22,186],[17,127,17,132],[18,121,18,125],[18,127,18,131],[19,121,19,125],[19,127,19,131],[20,121,20,125],[20,127,20,131],[21,121,21,125],[21,127,21,131],[22,121,22,125],[22,127,22,131],[10,145,10,148],[10,151,10,154],[5,13,5,18],[4,1,4,4],[8,1,8,4],[4,25,4,28],[18,79,18,83],[7,49,7,54],[7,55,7,60],[14,61,14,64],[14,67,14,70],[14,73,14,76],[15,73,15,78],[7,61,7,66],[7,67,7,72],[3,116,3,119],[3,62,3,65],[3,68,3,71],[3,74,3,77],[3,80,3,83],[3,86,3,89],[3,92,3,95],[3,98,3,101],[3,104,3,107],[3,110,3,113],[6,115,6,118],[10,85,10,88],[4,85,4,88],[6,85,6,88],[8,85,8,88],[8,49,8,52],[8,55,8,58],[8,61,8,64],[8,67,8,70],[3,50,3,53],[3,56,3,59],[12,61,12,64],[14,49,14,52],[14,55,14,58],[14,79,14,82],[8,43,8,46],[6,79,6,82],[12,79,12,82],[12,67,12,70],[18,1,18,5],[3,14,3,17],[3,20,3,23],[3,26,3,29],[3,32,3,35],[3,38,3,41],[18,31,18,35],[18,37,18,41],[4,13,4,16],[4,19,4,22],[12,13,12,16],[6,25,6,28],[6,31,6,34],[3,2,3,5],[3,8,3,11],[14,7,14,10],[12,7,12,10],[8,7,8,10],[17,7,17,12],[10,1,10,4],[14,1,14,4],[5,19,5,24],[7,19,7,24],[9,19,9,24],[11,19,11,24],[13,19,13,24],[15,19,15,24],[4,49,4,52],[4,55,4,58],[7,43,7,48],[5,37,5,42],[5,43,5,48],[5,49,5,54],[5,55,5,60],[7,37,7,42],[16,1,16,4],[16,7,16,10],[16,13,16,16],[16,19,16,22],[16,25,16,28],[10,13,10,16],[10,19,10,22],[10,25,10,28],[10,31,10,34],[10,37,10,40],[6,13,6,16],[6,19,6,22],[6,55,6,58],[12,49,12,52],[12,55,12,58],[12,19,12,22],[12,25,12,28],[12,31,12,34],[23,7,23,11],[10,7,10,10],[4,7,4,10],[12,1,12,4],[6,1,6,4],[11,7,11,12],[13,7,13,12],[19,49,19,53],[22,49,22,53],[20,49,20,53],[20,55,20,59],[18,49,18,53],[21,49,21,53],[21,55,21,59],[19,19,19,23],[21,25,21,29],[22,25,22,29],[23,25,23,29],[20,37,20,41],[18,43,18,47],[16,31,16,36],[16,37,16,42],[16,43,16,48],[17,31,17,36],[20,13,20,17],[10,43,10,46],[19,31,19,35],[7,13,7,18],[9,13,9,18],[11,13,11,18],[13,13,13,18],[14,31,14,34],[19,37,19,41],[19,43,19,47],[20,19,20,23],[21,19,21,23],[22,19,22,23],[22,37,22,41],[22,43,22,47],[20,43,20,47],[21,31,21,35],[21,37,21,41],[21,43,21,47],[17,19,17,24],[18,19,18,23],[21,7,21,11],[5,1,5,6],[7,1,7,6],[9,1,9,6],[11,1,11,6],[13,1,13,6],[15,1,15,6],[5,7,5,12],[7,7,7,12],[9,7,9,12],[17,1,17,6],[8,13,8,16],[8,19,8,22],[18,13,18,17],[19,13,19,17],[17,13,17,18],[22,7,22,11],[14,37,14,40],[15,13,15,18],[3,44,3,47],[22,1,22,5],[23,1,23,5],[20,1,20,5],[21,1,21,5],[19,1,19,5],[17,25,17,30],[18,25,18,29],[19,25,19,29],[20,25,20,29],[20,31,20,35],[4,37,4,40],[4,43,4,46],[21,13,21,17],[22,13,22,17],[23,13,23,17],[22,31,22,35],[17,37,17,42],[17,43,17,48],[6,7,6,10],[8,25,8,28],[8,31,8,34],[8,37,8,40],[4,31,4,34],[15,7,15,12],[5,25,5,30],[7,25,7,30],[9,25,9,30],[11,25,11,30],[13,25,13,30],[15,25,15,30],[5,31,5,36],[21,176,21,180],[21,109,21,113],[16,91,16,96],[16,97,16,102],[16,103,16,108],[18,91,18,95],[20,91,20,95],[20,97,20,101],[20,103,20,107],[20,109,20,113],[14,103,14,106],[14,109,14,112],[19,91,19,95],[19,97,19,101],[17,115,17,120],[16,115,16,120],[19,133,19,137],[19,139,19,143],[19,145,19,149],[15,176,15,180],[12,158,12,162],[23,115,23,119],[22,115,22,119],[21,115,21,119],[20,115,20,119],[19,115,19,119],[18,115,18,119],[22,97,22,101],[22,103,22,107],[22,109,22,113],[22,176,22,180],[23,176,23,180],[18,158,18,162],[19,158,19,162],[23,158,23,162],[22,164,22,168],[23,164,23,168],[22,170,22,174],[23,170,23,174],[16,164,16,168],[14,164,14,168],[15,164,15,168],[20,164,20,168],[21,164,21,168],[20,170,20,174],[14,97,14,100],[15,97,15,102],[12,103,12,106],[16,109,16,114],[18,97,18,101],[18,103,18,107],[5,61,5,66],[5,67,5,72],[11,170,11,174],[16,170,16,174],[17,170,17,174],[15,170,15,174],[14,170,14,174],[13,170,13,174],[12,170,12,174],[18,164,18,168],[19,164,19,168],[18,170,18,174],[19,170,19,174],[17,91,17,96],[17,97,17,102],[17,103,17,108],[17,109,17,114],[12,91,12,94],[12,109,12,112],[14,91,14,94],[15,91,15,96],[18,109,18,113],[15,103,15,108],[15,109,15,114],[17,158,17,162],[13,158,13,162],[17,67,17,72],[17,73,17,78],[17,79,17,84],[18,61,18,65],[8,73,8,76],[10,61,10,64],[4,158,4,163],[4,164,4,169],[4,170,4,175],[4,176,4,181],[5,164,5,168],[6,164,6,168],[5,176,5,180],[6,176,6,180],[4,97,4,100],[4,103,4,106],[8,79,8,82],[10,79,10,82],[4,61,4,64],[4,67,4,70],[4,73,4,76],[4,109,4,112],[6,91,6,94],[6,97,6,100],[6,103,6,106],[6,109,6,112],[5,91,5,96],[5,97,5,102],[5,103,5,108],[5,109,5,114],[10,91,10,94],[10,97,10,100],[8,91,8,94],[8,97,8,100],[10,109,10,112],[4,91,4,94],[4,115,4,118],[7,73,7,78],[7,31,7,36],[9,31,9,36],[11,31,11,36],[13,31,13,36],[19,103,19,107],[19,109,19,113],[9,109,9,114],[7,85,7,90],[7,91,7,96],[7,97,7,102],[7,103,7,108],[12,73,12,76],[20,85,20,89],[23,73,23,77],[22,73,22,77],[22,61,22,65],[4,79,4,82],[19,79,19,83],[16,79,16,84],[14,85,14,88],[15,79,15,84],[15,85,15,90],[17,85,17,90],[18,85,18,89],[19,85,19,89],[16,85,16,90],[18,73,18,77],[18,67,18,71],[19,61,19,65],[19,67,19,71],[19,73,19,77],[17,61,17,66],[21,91,21,95],[21,97,21,101],[21,103,21,107],[13,91,13,96],[13,97,13,102],[13,103,13,108],[13,109,13,114],[7,109,7,114],[9,73,9,78],[9,79,9,84],[9,85,9,90],[9,91,9,96],[9,97,9,102],[9,103,9,108],[9,49,9,54],[9,55,9,60],[9,61,9,66],[9,67,9,72],[11,49,11,54],[11,55,11,60],[11,61,11,66],[11,67,11,72],[16,61,16,66],[16,67,16,72],[7,79,7,84],[10,49,10,52],[10,55,10,58],[17,49,17,54],[19,55,19,59],[18,55,18,59],[10,67,10,70],[10,73,10,76],[15,37,15,42],[15,43,15,48],[15,49,15,54],[15,55,15,60],[15,61,15,66],[15,67,15,72],[12,97,12,100],[11,115,11,120],[22,79,22,83],[22,85,22,89],[23,67,23,71],[23,31,23,35],[23,37,23,41],[23,43,23,47],[23,49,23,53],[23,55,23,59],[22,55,22,59],[23,79,23,83],[23,97,23,101],[23,103,23,107],[23,109,23,113],[23,91,23,95],[22,91,22,95],[23,85,23,89],[21,67,21,71],[21,73,21,77],[21,79,21,83],[21,85,21,89],[21,61,21,65],[23,61,23,65],[22,67,22,71],[15,31,15,36],[8,170,8,174],[9,170,9,174],[10,170,10,174],[7,164,7,168],[8,164,8,168],[9,164,9,168],[10,164,10,168],[14,176,14,180],[11,73,11,78],[11,79,11,84],[11,85,11,90],[11,91,11,96],[11,97,11,102],[11,103,11,108],[11,109,11,114],[13,37,13,42],[13,43,13,48],[13,49,13,54],[13,55,13,60],[13,61,13,66],[13,67,13,72],[11,37,11,42],[11,43,11,48],[14,43,14,46],[10,103,10,106],[8,103,8,106],[8,109,8,112],[11,133,11,138],[11,139,11,144],[11,145,11,150],[11,151,11,156],[12,133,12,136],[24,158,24,163],[24,164,24,169],[24,170,24,175],[24,176,24,181],[25,1,25,6],[25,7,25,12],[25,13,25,18],[25,19,25,24],[25,25,25,30],[5,170,5,174],[6,170,6,174],[5,158,5,162],[6,37,6,40],[6,49,6,52],[6,158,6,162],[12,176,12,180],[13,176,13,180],[20,176,20,180],[5,85,5,90],[5,115,5,120],[6,61,6,64],[6,67,6,70],[6,73,6,76],[16,55,16,60],[17,55,17,60],[20,61,20,65],[20,67,20,71],[20,73,20,77],[16,49,16,54],[21,170,21,174],[20,158,20,162],[7,158,7,162],[25,176,25,180],[26,1,26,4],[26,7,26,10],[26,13,26,16],[26,19,26,22],[26,25,26,28],[26,31,26,34],[26,37,26,40],[26,43,26,46],[26,49,26,52],[26,55,26,58],[26,61,26,64],[26,67,26,70],[26,73,26,76],[26,79,26,82],[26,85,26,88],[26,91,26,94],[26,97,26,100],[26,103,26,106],[26,109,26,112],[26,115,26,118],[26,158,26,162],[26,164,26,168],[26,170,26,174],[26,176,26,180],[13,73,13,78],[13,79,13,84],[13,85,13,90],[12,85,12,88],[16,73,16,78],[20,79,20,83],[7,176,7,180],[8,176,8,180],[9,176,9,180],[10,176,10,180],[11,176,11,180],[16,176,16,180],[17,176,17,180],[12,115,12,118],[14,115,14,118],[10,115,10,118],[8,115,8,118],[17,164,17,168],[18,176,18,180],[19,176,19,180],[8,158,8,162],[9,158,9,162],[10,158,10,162],[11,158,11,162],[16,158,16,162],[13,115,13,120],[7,115,7,120],[9,115,9,120],[12,164,12,168],[13,164,13,168],[11,164,11,168],[7,170,7,174],[27,176,27,180],[28,1,28,4],[28,7,28,10],[28,13,28,16],[28,19,28,22],[28,25,28,28],[28,31,28,34],[28,37,28,40],[28,43,28,46],[28,49,28,52],[28,55,28,58],[28,61,28,64],[28,67,28,70],[28,73,28,76],[28,79,28,82],[28,85,28,88],[28,91,28,94],[28,97,28,100],[28,103,28,106],[28,109,28,112],[28,115,28,118],[28,158,28,162],[28,164,28,168],[28,170,28,174],[28,176,28,180],[27,1,27,6],[27,7,27,12],[27,13,27,18],[27,19,27,24],[27,25,27,30],[27,31,27,36],[27,37,27,42],[24,43,24,46],[25,79,25,84],[25,85,25,90],[25,91,25,96],[25,97,25,102],[24,49,24,52],[24,55,24,58],[24,61,24,64],[24,67,24,70],[24,73,24,76],[24,79,24,82],[27,103,27,108],[27,109,27,114],[27,115,27,120],[27,158,27,162],[27,164,27,168],[27,170,27,174],[27,43,27,48],[27,49,27,54]],"merged_total":3685,"flags":["merged_cut"]}
[null,"OP 4",null,null,null,40,"E",null,"OP 2",null,null,null,40,"G",null,null,null,null,null,null,null,null,"OP 3",null,null,null,35,"L"]
[null,"LA GARDE > GM",null,null,null,null,null,null,"LA GARDE > GM",null,null,null,null,null,null,null,null,null,null,null,null,null,"TOULON > TOULON"]
[null,"Semaine",null,null,44,"du",31,"au",5,"Novembre",null,null,null,null,null,null,null,null,null,{"$f":"B3","v":"Semaine"},null,{"$f":"E3","v":44},"du",31,"au",5,"Novembre",null,null,null,null,null,null,null,null,null,null,{"$f":"T3","v":"Semaine"},{"$f":"V3","v":44},"du",31,"au",5,"Novembre",null,null,null,null,null,null,null,null,null,null,null,{"$f":"AL3","v":"Semaine"},{"$f":"AM3","v":44},"du",31,"au",5,"Novembre",null,null,null,null,null,null,null,null,null,null,null,{"$f":"BD3","v":"Semaine"},{"$f":"BE3","v":44},"du",31,"au",5,"Novembre",null,null,null,null,null,null,null,null,null,null,null,{"$f":"BV3","v":"Semaine"},{"$f":"BW3","v":44},"du",31,"au",5,"Novembre",null,null,null,null,null,null,null,null,null,null,null,{"$f":"CN3","v":"Semaine"},{"$f":"CO3","v":44},"du",31,"au",5,"Novembre",null,null,null,null,null,{"$f":"CZ3","v":0},0,0,0,0,0,"Semaine",null,null,null,null,null,{"$f":"DL3","v":"Novembre"},0,0,0,0,0,0,null,null,null,null,null,{"$f":"DX3","v":"Semaine"},0,0,0,0,0,"Novembre",null,null,null,null,null,null,null,null,null,null,null,{"$f":"DF3","v":"Semaine"},44,"du",31,"au",5,"Novembre"]
[]
["Lundi",null,null,null,null,null,null,null,null,null,null,null,null,null,null,null,null,null,null,null,null,null,null,null,null,null,null,null,null,null,null,null,null,null,null,null,null,null,null,null,null,null,null,null,null,null,null,null,null,null,null,null,null,null,null,null,null,null,null,null,null,null,null,null,null,null,null,null,null,null,null,null,null,null,null,null,null,null,null,null,null,null,null,null,null,null,null,null,null,null,null,null,null,null,null,null,null,null,null,null,null,null,null,null,null,null,null,null,null,null,null,null,null,null,null,null,null,null,null,null,null,null,null,null,null,null,null,null,null,null,null,null,null,null,null,null,null,null,null,null,null,null,null,null,null,null,null,null,null,null,null,null,null,null,null,null,null,null,"Disponible",null,null,null,null,null,"Congés",null,null,null,null,null,"Formation",null,null,null,null,null,"Maladie / AT",null,null,null,null,null,"Absent (non justifié)",null,null,null,null,null,"Repos (payé)"]
[null,null,null,null,null,null,null,null,null,null,null,null,null,null,null,null,null,null,null,null,null,null,null,null,null,null,null,null,null,null,null,null,null,null,null,null,null,null,null,null,null,null,null,null,null,null,null,null,null,null,null,null,null,null,null,null,null,null,null,null,null,null,null,null,null,null,null,null,null,null,null,null,null,null,null,null,null,null,null,null,null,null,null,null,null,null,null,null,null,null,null,null,null,null,null,null,null,null,null,null,null,null,null,null,null,null,null,null,null,null,null,null,null,null,null,null,null,null,null,null,null,null,null,null,null,null,null,null,null,null,null,null,null,null,null,null,null,null,null,null,null,null,null,null,null,null,null,null,null,null,null,null,null,null,null,null,null,null,{"$f":"IFERROR(VLOOKUP(FH6,Personnel!$A$3:$B$290,2,FALSE),\"\")","v":""},null,null,null,null,null,{"$f":"IFERROR(VLOOKUP(FN6,Personnel!$A$3:$B$290,2,FALSE),\"\")","v":""},null,null,null,null,null,{"$f":"IFERROR(VLOOKUP(FT6,Personnel!$A$3:$B$290,2,FALSE),\"\")","v":""},null,null,null,null,null,{"$f":"IFERROR(VLOOKUP(FZ6,Personnel!$A$3:$B$290,2,FALSE),\"\")","v":""},null,null,null,null,null,{"$f":"IFERROR(VLOOKUP(GF6,Personnel!$A$3:$B$290,2,FALSE),\"\")","v":""},null,null,null,null,null,{"$f":"IFERROR(VLOOKUP(GL6,Personnel!$A$3:$B$290,2,FALSE),\"\")","v":""}]
[null,null,null,null,null,null,null,null,null,null,null,null,null,null,null,null,null,null,null,null,null,null,null,null,null,null,null,null,null,null,null,null,null,null,null,null,null,null,null,null,null,null,null,null,null,null,null,null,null,null,null,null,null,null,null,null,null,null,null,null,null,null,null,null,null,null,null,null,null,null,null,null,null,null,null,null,null,null,null,null,null,null,null,null,null,null,null,null,null,null,null,null,null,null,null,null,null,null,null,null,null,null,null,null,null,null,null,null,null,null,null,null,null,null,null,null,null,null,null,null,null,null,null,null,null,null,null,null,null,null,null,null,null,null,null,null,null,null,null,null,null,null,null,null,null,null,null,null,null,null,null,null,null,null,null,null,null,null,{"$f":"IFERROR(VLOOKUP(FH7,Personnel!$A$3:$B$290,2,FALSE),\"\")","v":""},null,null,null,null,null,{"$f":"IFERROR(VLOOKUP(FN7,Personnel!$A$3:$B$290,2,FALSE),\"\")","v":""},null,null,null,null,null,{"$f":"IFERROR(VLOOKUP(FT7,Personnel!$A$3:$B$290,2,FALSE),\"\")","v":""},null,null,null,null,null,{"$f":"IFERROR(VLOOKUP(FZ7,Personnel!$A$3:$B$290,2,FALSE),\"\")","v":""},null,null,null,null,null,{"$f":"IFERROR(VLOOKUP(GF7,Personnel!$A$3:$B$290,2,FALSE),\"\")","v":""},null,null,null,null,null,{"$f":"IFERROR(VLOOKUP(GL7,Personnel!$A$3:$B$290,2,FALSE),\"\")","v":""}]
[null,null,null,null,null,null,null,null,null,null,null,null,null,null,null,null,null,null,null,null,null,null,null,null,null,null,null,null,null,null,null,null,null,null,null,null,null,null,null,null,null,null,null,null,null,null,null,null,null,null,null,null,null,null,null,null,null,null,null,null,null,null,null,null,null,null,null,null,null,null,null,null,null,null,null,null,null,null,null,null,null,null,null,null,null,null,null,null,null,null,null,null,null,null,null,null,null,null,null,null,null,null,null,null,null,null,null,null,null,null,null,null,null,null,null,null,null,null,null,null,null,null,null,null,null,null,null,null,null,null,null,null,null,null,null,null,null,null,null,null,null,null,null,null,null,null,null,null,null,null,null,null,null,null,null,null,null,null,{"$f":"IFERROR(VLOOKUP(FH8,Personnel!$A$3:$B$290,2,FALSE),\"\")","v":""},null,null,null,null,null,{"$f":"IFERROR(VLOOKUP(FN8,Personnel!$A$3:$B$290,2,FALSE),\"\")","v":""},null,null,null,null,null,{"$f":"IFERROR(VLOOKUP(FT8,Personnel!$A$3:$B$290,2,FALSE),\"\")","v":""},null,null,null,null,null,{"$f":"IFERROR(VLOOKUP(FZ8,Personnel!$A$3:$B$290,2,FALSE),\"\")","v":""},null,null,null,null,null,{"$f":"IFERROR(VLOOKUP(GF8,Personnel!$A$3:$B$290,2,FALSE),\"\")","v":""},null,null,null,null,null,{"$f":"IFERROR(VLOOKUP(GL8,Personnel!$A$3:$B$290,2,FALSE),\"\")","v":""}]
[null,null,null,null,null,null,null,null,null,null,null,null,null,null,null,null,null,null,null,null,null,null,null,null,null,null,null,null,null,null,null,null,null,null,null,null,null,null,null,null,null,null,null,null,null,null,null,null,null,null,null,null,null,null,null,null,null,null,null,null,null,null,null,null,null,null,null,null,null,null,null,null,null,null,null,null,null,null,null,null,null,null,null,null,null,null,null,null,null,null,null,null,null,null,null,null,null,null,null,null,null,null,null,null,null,null,null,null,null,null,null,null,null,null,null,null,null,null,null,null,null,null,null,null,null,null,null,null,null,null,null,null,null,null,null,null,null,null,null,null,null,null,null,null,null,null,null,null,null,null,null,null,null,null,null,null,null,null,{"$f":"IFERROR(VLOOKUP(FH9,Personnel!$A$3:$B$290,2,FALSE),\"\")","v":""},null,null,null,null,null,{"$f":"IFERROR(VLOOKUP(FN9,Personnel!$A$3:$B$290,2,FALSE),\"\")","v":""},null,null,null,null,null,{"$f":"IFERROR(VLOOKUP(FT9,Personnel!$A$3:$B$290,2,FALSE),\"\")","v":""},null,null,null,null,null,{"$f":"IFERROR(VLOOKUP(FZ9,Personnel!$A$3:$B$290,2,FALSE),\"\")","v":""},null,null,null,null,null,{"$f":"IFERROR(VLOOKUP(GF9,Personnel!$A$3:$B$290,2,FALSE),\"\")","v":""},null,null,null,null,null,{"$f":"IFERROR(VLOOKUP(GL9,Personnel!$A$3:$B$290,2,FALSE),\"\")","v":""}]
[null,null,null,null,null,null,null,null,null,null,null,null,null,null,null,null,null,null,null,null,null,null,null,null,null,null,null,null,null,null,null,null,null,null,null,null,null,null,null,null,null,null,null,null,null,null,null,null,null,null,null,null,null,null,null,null,null,null,null,null,null,null,null,null,null,null,null,null,null,null,null,null,null,null,null,null,null,null,null,null,null,null,null,null,null,null,null,null,null,null,null,null,null,null,null,null,null,null,null,null,null,null,null,null,null,null,null,null,null,null,null,null,null,null,null,null,null,null,null,null,null,null,null,null,null,null,null,null,null,null,null,null,null,null,null,null,null,null,null,null,null,null,null,null,null,null,null,null,null,null,null,null,null,null,null,null,null,null,{"$f":"IFERROR(VLOOKUP(FH10,Personnel!$A$3:$B$290,2,FALSE),\"\")","v":""},null,null,null,null,null,{"$f":"IFERROR(VLOOKUP(FN10,Personnel!$A$3:$B$290,2,FALSE),\"\")","v":""},null,null,null,null,null,{"$f":"IFERROR(VLOOKUP(FT10,Personnel!$A$3:$B$290,2,FALSE),\"\")","v":""},null,null,null,null,null,{"$f":"IFERROR(VLOOKUP(FZ10,Personnel!$A$3:$B$290,2,FALSE),\"\")","v":""},null,null,null,null,null,{"$f":"IFERROR(VLOOKUP(GF10,Personnel!$A$3:$B$290,2,FALSE),\"\")","v":""},null,null,null,null,null,{"$f":"IFERROR(VLOOKUP(GL10,Personnel!$A$3:$B$290,2,FALSE),\"\")","v":""}]
[null,null,null,null,null,null,null,null,null,null,null,null,null,null,null,null,null,null,null,null,null,null,null,null,null,null,null,null,null,null,null,null,null,null,null,null,null,null,null,null,null,null,null,null,null,null,null,null,null,null,null,null,null,null,null,null,null,null,null,null,null,null,null,null,null,null,null,null,null,null,null,null,null,null,null,null,null,null,null,null,null,null,null,null,null,null,null,null,null,null,null,null,null,null,null,null,null,null,null,null,null,null,null,null,null,null,null,null,null,null,null,null,null,null,null,null,null,null,null,null,null,null,null,null,null,null,null,null,null,null,null,null,null,null,null,null,null,null,null,null,null,null,null,null,null,null,null,null,null,null,null,null,null,null,null,null,null,null,{"$f":"IFERROR(VLOOKUP(FH11,Personnel!$A$3:$B$290,2,FALSE),\"\")","v":""},null,null,null,null,null,{"$f":"IFERROR(VLOOKUP(FN11,Personnel!$A$3:$B$290,2,FALSE),\"\")","v":""},null,null,null,null,null,{"$f":"IFERROR(VLOOKUP(FT11,Personnel!$A$3:$B$290,2,FALSE),\"\")","v":""},null,null,null,null,null,{"$f":"IFERROR(VLOOKUP(FZ11,Personnel!$A$3:$B$290,2,FALSE),\"\")","v":""},null,null,null,null,null,{"$f":"IFERROR(VLOOKUP(GF11,Personnel!$A$3:$B$290,2,FALSE),\"\")","v":""},null,null,null,null,null,{"$f":"IFERROR(VLOOKUP(GL11,Personnel!$A$3:$B$290,2,FALSE),\"\")","v":""}]
[null,null,null,null,null,null,null,null,null,null,null,null,null,null,null,null,null,null,null,null,null,null,null,null,null,null,null,null,null,null,null,null,null,null,null,null,null,null,null,null,null,null,null,null,null,null,null,null,null,null,null,null,null,null,null,null,null,null,null,null,null,null,null,null,null,null,null,null,null,null,null,null,null,null,null,null,null,null,null,null,null,null,null,null,null,null,null,null,null,null,null,null,null,null,null,null,null,null,null,null,null,null,null,null,null,null,null,null,null,null,null,null,null,null,null,null,null,null,null,null,null,null,null,null,null,null,null,null,null,null,null,null,null,null,null,null,null,null,null,null,null,null,null,null,null,null,null,null,null,null,null,null,null,null,null,null,null,null,{"$f":"IFERROR(VLOOKUP(FH12,Personnel!$A$3:$B$290,2,FALSE),\"\")","v":""},null,null,null,null,null,{"$f":"IFERROR(VLOOKUP(FN12,Personnel!$A$3:$B$290,2,FALSE),\"\")","v":""},null,null,null,null,null,{"$f":"IFERROR(VLOOKUP(FT12,Personnel!$A$3:$B$290,2,FALSE),\"\")","v":""},null,null,null,null,null,{"$f":"IFERROR(VLOOKUP(FZ12,Personnel!$A$3:$B$290,2,FALSE),\"\")","v":""},null,null,null,null,null,{"$f":"IFERROR(VLOOKUP(GF12,Personnel!$A$3:$B$290,2,FALSE),\"\")","v":""},null,null,null,null,null,{"$f":"IFERROR(VLOOKUP(GL12,Personnel!$A$3:$B$290,2,FALSE),\"\")","v":""}]
[null,null,null,null,null,null,null,null,null,null,null,null,null,null,null,null,null,null,null,null,null,null,null,null,null,null,null,null,null,null,null,null,null,null,null,null,null,null,null,null,null,null,null,null,null,null,null,null,null,null,null,null,null,null,null,null,null,null,null,null,null,null,null,null,null,null,null,null,null,null,null,null,null,null,null,null,null,null,null,null,null,null,null,null,null,null,null,null,null,null,null,null,null,null,null,null,null,null,null,null,null,null,null,null,null,null,null,null,null,null,null,null,null,null,null,null,null,null,null,null,null,null,null,null,null,null,null,null,null,null,null,null,null,null,null,null,null,null,null,null,null,null,null,null,null,null,null,null,null,null,null,null,null,null,null,null,null,null,{"$f":"IFERROR(VLOOKUP(FH13,Personnel!$A$3:$B$290,2,FALSE),\"\")","v":""},null,null,null,null,null,{"$f":"IFERROR(VLOOKUP(FN13,Personnel!$A$3:$B$290,2,FALSE),\"\")","v":""},null,null,null,null,null,{"$f":"IFERROR(VLOOKUP(FT13,Personnel!$A$3:$B$290,2,FALSE),\"\")","v":""},null,null,null,null,null,{"$f":"IFERROR(VLOOKUP(FZ13,Personnel!$A$3:$B$290,2,FALSE),\"\")","v":""},null,null,null,null,null,{"$f":"IFERROR(VLOOKUP(GF13,Personnel!$A$3:$B$290,2,FALSE),\"\")","v":""},null,null,null,null,null,{"$f":"IFERROR(VLOOKUP(GL13,Personnel!$A$3:$B$290,2,FALSE),\"\")","v":""}]
[null,null,null,null,null,null,null,null,null,null,null,null,null,null,null,null,null,null,null,null,null,null,null,null,null,null,null,null,null,null,null,null,null,null,null,null,null,null,null,null,null,null,null,null,null,null,null,null,null,null,null,null,null,null,null,null,null,null,null,null,null,null,null,null,null,null,null,null,null,null,null,null,null,null,null,null,null,null,null,null,null,null,null,null,null,null,null,null,null,null,null,null,null,null,null,null,null,null,null,null,null,null,null,null,null,null,null,null,null,null,null,null,null,null,null,null,null,null,null,null,null,null,null,null,null,null,null,null,null,null,null,null,null,null,null,null,null,null,null,null,null,null,null,null,null,null,null,null,null,null,null,null,null,null,null,null,null,null,{"$f":"IFERROR(VLOOKUP(FH14,Personnel!$A$3:$B$290,2,FALSE),\"\")","v":""},null,null,null,null,null,{"$f":"IFERROR(VLOOKUP(FN14,Personnel!$A$3:$B$290,2,FALSE),\"\")","v":""},null,null,null,null,null,{"$f":"IFERROR(VLOOKUP(FT14,Personnel!$A$3:$B$290,2,FALSE),\"\")","v":""},null,null,null,null,null,{"$f":"IFERROR(VLOOKUP(FZ14,Personnel!$A$3:$B$290,2,FALSE),\"\")","v":""},null,null,null,null,null,{"$f":"IFERROR(VLOOKUP(GF14,Personnel!$A$3:$B$290,2,FALSE),\"\")","v":""},null,null,null,null,null,{"$f":"IFERROR(VLOOKUP(GL14,Personnel!$A$3:$B$290,2,FALSE),\"\")","v":""}]
[null,null,null,null,null,null,null,null,null,null,null,null,null,null,null,null,null,null,null,null,null,null,null,null,null,null,null,null,null,null,null,null,null,null,null,null,null,null,null,null,null,null,null,null,null,null,null,null,null,null,null,null,null,null,null,null,null,null,null,null,null,null,null,null,null,null,null,null,null,null,null,null,null,null,null,null,null,null,null,null,null,null,null,null,null,null,null,null,null,null,null,null,null,null,null,null,null,null,null,null,null,null,null,null,null,null,null,null,null,null,null,null,null,null,null,null,null,null,null,null,null,null,null,null,null,null,null,null,null,null,null,null,null,null,null,null,null,null,null,null,null,null,null,null,null,null,null,null,null,null,null,null,null,null,null,null,null,null,{"$f":"IFERROR(VLOOKUP(FH15,Personnel!$A$3:$B$290,2,FALSE),\"\")","v":""},null,null,null,null,null,{"$f":"IFERROR(VLOOKUP(FN15,Personnel!$A$3:$B$290,2,FALSE),\"\")","v":""},null,null,null,null,null,{"$f":"IFERROR(VLOOKUP(FT15,Personnel!$A$3:$B$290,2,FALSE),\"\")","v":""},null,null,null,null,null,{"$f":"IFERROR(VLOOKUP(FZ15,Personnel!$A$3:$B$290,2,FALSE),\"\")","v":""},null,null,null,null,null,{"$f":"IFERROR(VLOOKUP(GF15,Personnel!$A$3:$B$290,2,FALSE),\"\")","v":""},null,null,null,null,null,{"$f":"IFERROR(VLOOKUP(GL15,Personnel!$A$3:$B$290,2,FALSE),\"\")","v":""}]
[null,null,null,null,null,null,null,null,null,null,null,null,null,null,null,null,null,null,null,null,null,null,null,null,null,null,null,null,null,null,null,null,null,null,null,null,null,null,null,null,null,null,null,null,null,null,null,null,null,null,null,null,null,null,null,null,null,null,null,null,null,null,null,null,null,null,null,null,null,null,null,null,null,null,null,null,null,null,null,null,null,null,null,null,null,null,null,null,null,null,null,null,null,null,null,null,null,null,null,null,null,null,null,null,null,null,null,null,null,null,null,null,null,null,null,null,null,null,null,null,null,null,null,null,null,null,null,null,null,null,null,null,null,null,null,null,null,null,null,null,null,null,null,null,null,null,null,null,null,null,null,null,null,null,null,null,null,null,{"$f":"IFERROR(VLOOKUP(FH16,Personnel!$A$3:$B$290,2,FALSE),\"\")","v":""},null,null,null,null,null,{"$f":"IFERROR(VLOOKUP(FN16,Personnel!$A$3:$B$290,2,FALSE),\"\")","v":""},null,null,null,null,null,{"$f":"IFERROR(VLOOKUP(FT16,Personnel!$A$3:$B$290,2,FALSE),\"\")","v":""},null,null,null,null,null,{"$f":"IFERROR(VLOOKUP(FZ16,Personnel!$A$3:$B$290,2,FALSE),\"\")","v":""},null,null,null,null,null,{"$f":"IFERROR(VLOOKUP(GF16,Personnel!$A$3:$B$290,2,FALSE),\"\")","v":""},null,null,null,null,null,{"$f":"IFERROR(VLOOKUP(GL16,Personnel!$A$3:$B$290,2,FALSE),\"\")","v":""}]
[null,"CAMION 1",null,null,null,null,null,"CAMION 2",null,null,null,null,null,"CAMION 3",null,null,null,null,null,"CAMION 4",null,null,null,null,null,"CAMION 5",null,null,null,null,"/","CAMION 6",null,null,null,null,null,"CAMION 7",null,null,null,null,null,"CAMION 8",null,null,null,null,null,"CAMION 9",null,null,null,null,null,"CAMION 10",null,null,null,null,null,"CAMION 11",null,null,null,null,null,"CAMION 12",null,null,null,null,null,"CAMION 13",null,null,null,null,null,"CAMION 14",null,null,null,null,null,"CAMION 15",null,null,null,null,null,"CAMION 16",null,null,null,null,null,"CAMION 17",null,null,null,null,null,"DEPOT",null,null,null,null,null,null,null,null,null,null,null,null,null,null,null,null,null,null,null,null,null,null,null,null,null,null,null,null,null,null,null,null,null,null,null,null,null,null,null,null,null,null,null,null,null,null,null,null,null,null,null,null,null,null,{"$f":"IFERROR(VLOOKUP(FH17,Personnel!$A$3:$B$290,2,FALSE),\"\")","v":""},null,null,null,null,null,{"$f":"IFERROR(VLOOKUP(FN17,Personnel!$A$3:$B$290,2,FALSE),\"\")","v":""},null,null,null,null,null,{"$f":"IFERROR(VLOOKUP(FT17,Personnel!$A$3:$B$290,2,FALSE),\"\")","v":""},null,null,null,null,null,{"$f":"IFERROR(VLOOKUP(FZ17,Personnel!$A$3:$B$290,2,FALSE),\"\")","v":""},null,null,null,null,null,{"$f":"IFERROR(VLOOKUP(GF17,Personnel!$A$3:$B$290,2,FALSE),\"\")","v":""},null,null,null,null,null,{"$f":"IFERROR(VLOOKUP(GL17,Personnel!$A$3:$B$290,2,FALSE),\"\")","v":""}]
[null,null,null,null,null,null,null,null,null,null,null,null,null,null,null,null,null,null,null,null,null,null,null,null,null,null,null,null,null,null,null,null,null,null,null,null,null,null,null,null,null,null,null,null,null,null,null,null,null,null,null,null,null,null,null,null,null,null,null,null,null,null,null,null,null,null,null,null,null,null,null,null,null,null,null,null,null,null,null,null,null,null,null,null,null,null,null,null,null,null,null,null,null,null,null,null,null,null,null,null,null,null,null,null,null,null,null,null,null,null,null,null,null,null,null,null,null,null,null,null,null,null,null,null,null,null,null,null,null,null,null,null,null,null,null,null,null,null,null,null,null,null,null,null,null,null,null,null,null,null,null,null,null,null,null,null,null,null,{"$f":"IFERROR(VLOOKUP(FH18,Personnel!$A$3:$B$290,2,FALSE),\"\")","v":""},null,null,null,null,null,{"$f":"IFERROR(VLOOKUP(FN18,Personnel!$A$3:$B$290,2,FALSE),\"\")","v":""},null,null,null,null,null,{"$f":"IFERROR(VLOOKUP(FT18,Personnel!$A$3:$B$290,2,FALSE),\"\")","v":""},null,null,null,null,null,{"$f":"IFERROR(VLOOKUP(FZ18,Personnel!$A$3:$B$290,2,FALSE),\"\")","v":""},null,null,null,null,null,{"$f":"IFERROR(VLOOKUP(GF18,Personnel!$A$3:$B$290,2,FALSE),\"\")","v":""},null,null,null,null,null,{"$f":"IFERROR(VLOOKUP(GL18,Personnel!$A$3:$B$290,2,FALSE),\"\")","v":""}]
["31/10",{"$f":"IFERROR(VLOOKUP(G19,Personnel!$A$3:$B$290,2,FALSE),\"\")","v":"Equipier 1"},null,null,null,null,"TN",null,null,null,null,null,null,{"$f":"IFERROR(VLOOKUP(S19,Personnel!$A$3:$B$290,2,FALSE),\"\")","v":"Equipier 3"},null,null,null,null,"VV",{"$f":"IFERROR(VLOOKUP(Y19,Personnel!$A$3:$B$290,2,FALSE),\"\")","v":""},null,null,null,null,null,{"$f":"IFERROR(VLOOKUP(AE19,Personnel!$A$3:$B$290,2,FALSE),\"\")","v":""},null,null,null,null,null,{"$f":"IFERROR(VLOOKUP(AK19,Personnel!$A$3:$B$290,2,FALSE),\"\")","v":"Equipier 13"},null,null,null,null,"SB",{"$f":"IFERROR(VLOOKUP(AQ19,Personnel!$A$3:$B$290,2,FALSE),\"\")","v":"Equipier 5"},null,null,null,null,"RT",{"$f":"IFERROR(VLOOKUP(AW19,Personnel!$A$3:$B$290,2,FALSE),\"\")","v":"Equipier 11"},null,null,null,null,"CC",{"$f":"IFERROR(VLOOKUP(BC19,Personnel!$A$3:$B$290,2,FALSE),\"\")","v":"Equipier 7"},null,null,null,null,"KL",{"$f":"IFERROR(VLOOKUP(BI19,Personnel!$A$3:$B$290,2,FALSE),\"\")","v":"Equipier 9"},null,null,null,null,"AG",{"$f":"IFERROR(VLOOKUP(BO19,Personnel!$A$3:$B$290,2,FALSE),\"\")","v":"Equipier 12"},null,null,null,null,"LB",{"$f":"IFERROR(VLOOKUP(BU19,Personnel!$A$3:$B$290,2,FALSE),\"\")","v":""},null,null,null,null,null,{"$f":"IFERROR(VLOOKUP(CA19,Personnel!$A$3:$B$290,2,FALSE),\"\")","v":""},null,null,null,null,null,{"$f":"IFERROR(VLOOKUP(CG19,Personnel!$A$3:$B$290,2,FALSE),\"\")","v":""},null,null,null,null,null,{"$f":"IFERROR(VLOOKUP(CM19,Personnel!$A$3:$B$290,2,FALSE),\"\")","v":""},null,null,null,null,null,{"$f":"IFERROR(VLOOKUP(CS19,Personnel!$A$3:$B$290,2,FALSE),\"\")","v":""},null,null,null,null,null,{"$f":"IFERROR(VLOOKUP(CY19,Personnel!$A$3:$B$290,2,FALSE),\"\")","v":""},null,null,null,null,"PF",{"$f":"IFERROR(VLOOKUP(DE19,Personnel!$A$3:$B$290,2,FALSE),\"\")","v":"Equipier 8"},null,null,null,null,"GL",{"$f":"IFERROR(VLOOKUP(DK19,Personnel!$A$3:$B$290,2,FALSE),\"\")","v":""},null,null,null,null,null,{"$f":"IFERROR(VLOOKUP(DQ19,Personnel!$A$3:$B$290,2,FALSE),\"\")","v":""},null,null,null,null,null,{"$f":"IFERROR(VLOOKUP(DW19,Personnel!$A$3:$B$290,2,FALSE),\"\")","v":""},null,null,null,null,null,{"$f":"IFERROR(VLOOKUP(EC19,Personnel!$A$3:$B$290,2,FALSE),\"\")","v":""},null,null,null,null,null,{"$f":"IFERROR(VLOOKUP(EI19,Personnel!$A$3:$B$290,2,FALSE),\"\")","v":""},null,null,null,null,null,{"$f":"IFERROR(VLOOKUP(EO19,Personnel!$A$3:$B$290,2,FALSE),\"\")","v":""},null,null,null,null,null,{"$f":"IFERROR(VLOOKUP(EU19,Personnel!$A$3:$B$290,2,FALSE),\"\")","v":""},null,null,null,null,null,{"$f":"IFERROR(VLOOKUP(FA19,Personnel!$A$3:$B$290,2,FALSE),\"\")","v":""},null,null,null,null,null,null,{"$f":"IFERROR(VLOOKUP(FH19,Personnel!$A$3:$B$290,2,FALSE),\"\")","v":""},null,null,null,null,null,{"$f":"IFERROR(VLOOKUP(FN19,Personnel!$A$3:$B$290,2,FALSE),\"\")","v":""},null,null,null,null,null,{"$f":"IFERROR(VLOOKUP(FT19,Personnel!$A$3:$B$290,2,FALSE),\"\")","v":""},null,null,null,null,null,{"$f":"IFERROR(VLOOKUP(FZ19,Personnel!$A$3:$B$290,2,FALSE),\"\")","v":""},null,null,null,null,null,{"$f":"IFERROR(VLOOKUP(GF19,Personnel!$A$3:$B$290,2,FALSE),\"\")","v":""},null,null,null,null,null,{"$f":"IFERROR(VLOOKUP(GL19,Personnel!$A$3:$B$290,2,FALSE),\"\")","v":""}]
[null,{"$f":"IFERROR(VLOOKUP(G20,Personnel!$A$3:$B$290,2,FALSE),\"\")","v":"Equipier 2"},null,null,null,null,"DD",null,null,null,null,null,null,{"$f":"IFERROR(VLOOKUP(S20,Personnel!$A$3:$B$290,2,FALSE),\"\")","v":"Equipier 15"},null,null,null,null,"RR",{"$f":"IFERROR(VLOOKUP(Y20,Personnel!$A$3:$B$290,2,FALSE),\"\")","v":""},null,null,null,null,null,{"$f":"IFERROR(VLOOKUP(AE20,Personnel!$A$3:$B$290,2,FALSE),\"\")","v":""},null,null,null,null,null,{"$f":"IFERROR(VLOOKUP(AK20,Personnel!$A$3:$B$290,2,FALSE),\"\")","v":"Equipier 10"},null,null,null,null,"CD",{"$f":"IFERROR(VLOOKUP(AQ20,Personnel!$A$3:$B$290,2,FALSE),\"\")","v":""},null,null,null,null,null,{"$f":"IFERROR(VLOOKUP(AW20,Personnel!$A$3:$B$290,2,FALSE),\"\")","v":"Equipier 14"},null,null,null,null,"LV",{"$f":"IFERROR(VLOOKUP(BC20,Personnel!$A$3:$B$290,2,FALSE),\"\")","v":"Equipier 6"},null,null,null,null,"DM",{"$f":"IFERROR(VLOOKUP(BI20,Personnel!$A$3:$B$290,2,FALSE),\"\")","v":"Equipier 20"},null,null,null,null,"MS",{"$f":"IFERROR(VLOOKUP(BO20,Personnel!$A$3:$B$290,2,FALSE),\"\")","v":""},null,null,null,null,null,{"$f":"IFERROR(VLOOKUP(BU20,Personnel!$A$3:$B$290,2,FALSE),\"\")","v":""},null,null,null,null,null,{"$f":"IFERROR(VLOOKUP(CA20,Personnel!$A$3:$B$290,2,FALSE),\"\")","v":""},null,null,null,null,null,{"$f":"IFERROR(VLOOKUP(CG20,Personnel!$A$3:$B$290,2,FALSE),\"\")","v":""},null,null,null,null,null,{"$f":"IFERROR(VLOOKUP(CM20,Personnel!$A$3:$B$290,2,FALSE),\"\")","v":""},null,null,null,null,null,{"$f":"IFERROR(VLOOKUP(CS20,Personnel!$A$3:$B$290,2,FALSE),\"\")","v":""},null,null,null,null,null,{"$f":"IFERROR(VLOOKUP(CY20,Personnel!$A$3:$B$290,2,FALSE),\"\")","v":""},null,null,null,null,null,{"$f":"IFERROR(VLOOKUP(DE20,Personnel!$A$3:$B$290,2,FALSE),\"\")","v":""},null,null,null,null,null,{"$f":"IFERROR(VLOOKUP(DK20,Personnel!$A$3:$B$290,2,FALSE),\"\")","v":""},null,null,null,null,null,{"$f":"IFERROR(VLOOKUP(DQ20,Personnel!$A$3:$B$290,2,FALSE),\"\")","v":""},null,null,null,null,null,{"$f":"IFERROR(VLOOKUP(DW20,Personnel!$A$3:$B$290,2,FALSE),\"\")","v":""},null,null,null,null,null,{"$f":"IFERROR(VLOOKUP(EC20,Personnel!$A$3:$B$290,2,FALSE),\"\")","v":""},null,null,null,null,null,{"$f":"IFERROR(VLOOKUP(EI20,Personnel!$A$3:$B$290,2,FALSE),\"\")","v":""},null,null,null,null,null,{"$f":"IFERROR(VLOOKUP(EO20,Personnel!$A$3:$B$290,2,FALSE),\"\")","v":""},null,null,null,null,null,{"$f":"IFERROR(VLOOKUP(EU20,Personnel!$A$3:$B$290,2,FALSE),\"\")","v":""},null,null,null,null,null,{"$f":"IFERROR(VLOOKUP(FA20,Personnel!$A$3:$B$290,2,FALSE),\"\")","v":""},null,null,null,null,null,null,{"$f":"IFERROR(VLOOKUP(FH20,Personnel!$A$3:$B$290,2,FALSE),\"\")","v":""},null,null,null,null,null,{"$f":"IFERROR(VLOOKUP(FN20,Personnel!$A$3:$B$290,2,FALSE),\"\")","v":""},null,null,null,null,null,{"$f":"IFERROR(VLOOKUP(FT20,Personnel!$A$3:$B$290,2,FALSE),\"\")","v":""},null,null,null,null,null,{"$f":"IFERROR(VLOOKUP(FZ20,Personnel!$A$3:$B$290,2,FALSE),\"\")","v":""},null,null,null,null,null,{"$f":"IFERROR(VLOOKUP(GF20,Personnel!$A$3:$B$290,2,FALSE),\"\")","v":""},null,null,null,null,null,{"$f":"IFERROR(VLOOKUP(GL20,Personnel!$A$3:$B$290,2,FALSE),\"\")","v":""}]
[null,{"$f":"IFERROR(VLOOKUP(G21,Personnel!$A$3:$B$290,2,FALSE),\"\")","v":""},null,null,null,null,null,{"$f":"IFERROR(VLOOKUP(M21,Personnel!$A$3:$B$290,2,FALSE),\"\")","v":""},null,null,null,null,null,{"$f":"IFERROR(VLOOKUP(S21,Personnel!$A$3:$B$290,2,FALSE),\"\")","v":""},null,null,null,null,null,{"$f":"IFERROR(VLOOKUP(Y21,Personnel!$A$3:$B$290,2,FALSE),\"\")","v":""},null,null,null,null,null,{"$f":"IFERROR(VLOOKUP(AE21,Personnel!$A$3:$B$290,2,FALSE),\"\")","v":""},null,null,null,null,null,{"$f":"IFERROR(VLOOKUP(AK21,Personnel!$A$3:$B$290,2,FALSE),\"\")","v":""},null,null,null,null,null,{"$f":"IFERROR(VLOOKUP(AQ21,Personnel!$A$3:$B$290,2,FALSE),\"\")","v":""},null,null,null,null,null,{"$f":"IFERROR(VLOOKUP(AW21,Personnel!$A$3:$B$290,2,FALSE),\"\")","v":""},null,null,null,null,null,{"$f":"IFERROR(VLOOKUP(BC21,Personnel!$A$3:$B$290,2,FALSE),\"\")","v":""},null,null,null,null,null,{"$f":"IFERROR(VLOOKUP(BI21,Personnel!$A$3:$B$290,2,FALSE),\"\")","v":""},null,null,null,null,null,{"$f":"IFERROR(VLOOKUP(BO21,Personnel!$A$3:$B$290,2,FALSE),\"\")","v":""},null,null,null,null,null,{"$f":"IFERROR(VLOOKUP(BU21,Personnel!$A$3:$B$290,2,FALSE),\"\")","v":""},null,null,null,null,null,{"$f":"IFERROR(VLOOKUP(CA21,Personnel!$A$3:$B$290,2,FALSE),\"\")","v":""},null,null,null,null,null,{"$f":"IFERROR(VLOOKUP(CG21,Personnel!$A$3:$B$290,2,FALSE),\"\")","v":""},null,null,null,null,null,{"$f":"IFERROR(VLOOKUP(CM21,Personnel!$A$3:$B$290,2,FALSE),\"\")","v":""},null,null,null,null,null,{"$f":"IFERROR(VLOOKUP(CS21,Personnel!$A$3:$B$290,2,FALSE),\"\")","v":""},null,null,null,null,null,{"$f":"IFERROR(VLOOKUP(CY21,Personnel!$A$3:$B$290,2,FALSE),\"\")","v":""},null,null,null,null,null,{"$f":"IFERROR(VLOOKUP(DE21,Personnel!$A$3:$B$290,2,FALSE),\"\")","v":""},null,null,null,null,null,{"$f":"IFERROR(VLOOKUP(DK21,Personnel!$A$3:$B$290,2,FALSE),\"\")","v":""},null,null,null,null,null,{"$f":"IFERROR(VLOOKUP(DQ21,Personnel!$A$3:$B$290,2,FALSE),\"\")","v":""},null,null,null,null,null,{"$f":"IFERROR(VLOOKUP(DW21,Personnel!$A$3:$B$290,2,FALSE),\"\")","v":""},null,null,null,null,null,{"$f":"IFERROR(VLOOKUP(EC21,Personnel!$A$3:$B$290,2,FALSE),\"\")","v":""},null,null,null,null,null,{"$f":"IFERROR(VLOOKUP(EI21,Personnel!$A$3:$B$290,2,FALSE),\"\")","v":""},null,null,null,null,null,{"$f":"IFERROR(VLOOKUP(EO21,Personnel!$A$3:$B$290,2,FALSE),\"\")","v":""},null,null,null,null,null,{"$f":"IFERROR(VLOOKUP(EU21,Personnel!$A$3:$B$290,2,FALSE),\"\")","v":""},null,null,null,null,null,{"$f":"IFERROR(VLOOKUP(FA21,Personnel!$A$3:$B$290,2,FALSE),\"\")","v":""},null,null,null,null,null,null,{"$f":"IFERROR(VLOOKUP(FH21,Personnel!$A$3:$B$290,2,FALSE),\"\")","v":""},null,null,null,null,null,{"$f":"IFERROR(VLOOKUP(FN21,Personnel!$A$3:$B$290,2,FALSE),\"\")","v":""},null,null,null,null,null,{"$f":"IFERROR(VLOOKUP(FT21,Personnel!$A$3:$B$290,2,FALSE),\"\")","v":""},null,null,null,null,null,{"$f":"IFERROR(VLOOKUP(FZ21,Personnel!$A$3:$B$290,2,FALSE),\"\")","v":""},null,null,null,null,null,{"$f":"IFERROR(VLOOKUP(GF21,Personnel!$A$3:$B$290,2,FALSE),\"\")","v":""},null,null,null,null,null,{"$f":"IFERROR(VLOOKUP(GL21,Personnel!$A$3:$B$290,2,FALSE),\"\")","v":""}]
[null,{"$f":"IFERROR(VLOOKUP(G22,Personnel!$A$3:$B$290,2,FALSE),\"\")","v":""},null,null,null,null,null,{"$f":"IFERROR(VLOOKUP(M22,Personnel!$A$3:$B$290,2,FALSE),\"\")","v":""},null,null,null,null,null,{"$f":"IFERROR(VLOOKUP(S22,Personnel!$A$3:$B$290,2,FALSE),\"\")","v":""},null,null,null,null,null,{"$f":"IFERROR(VLOOKUP(Y22,Personnel!$A$3:$B$290,2,FALSE),\"\")","v":""},null,null,null,null,null,{"$f":"IFERROR(VLOOKUP(AE22,Personnel!$A$3:$B$290,2,FALSE),\"\")","v":""},null,null,null,null,null,{"$f":"IFERROR(VLOOKUP(AK22,Personnel!$A$3:$B$290,2,FALSE),\"\")","v":""},null,null,null,null,null,{"$f":"IFERROR(VLOOKUP(AQ22,Personnel!$A$3:$B$290,2,FALSE),\"\")","v":""},null,null,null,null,null,{"$f":"IFERROR(VLOOKUP(AW22,Personnel!$A$3:$B$290,2,FALSE),\"\")","v":""},null,null,null,null,null,{"$f":"IFERROR(VLOOKUP(BC22,Personnel!$A$3:$B$290,2,FALSE),\"\")","v":""},null,null,null,null,null,{"$f":"IFERROR(VLOOKUP(BI22,Personnel!$A$3:$B$290,2,FALSE),\"\")","v":""},null,null,null,null,null,{"$f":"IFERROR(VLOOKUP(BO22,Personnel!$A$3:$B$290,2,FALSE),\"\")","v":""},null,null,null,null,null,{"$f":"IFERROR(VLOOKUP(BU22,Personnel!$A$3:$B$290,2,FALSE),\"\")","v":""},null,null,null,null,null,{"$f":"IFERROR(VLOOKUP(CA22,Personnel!$A$3:$B$290,2,FALSE),\"\")","v":""},null,null,null,null,null,{"$f":"IFERROR(VLOOKUP(CG22,Personnel!$A$3:$B$290,2,FALSE),\"\")","v":""},null,null,null,null,null,{"$f":"IFERROR(VLOOKUP(CM22,Personnel!$A$3:$B$290,2,FALSE),\"\")","v":""},null,null,null,null,null,{"$f":"IFERROR(VLOOKUP(CS22,Personnel!$A$3:$B$290,2,FALSE),\"\")","v":""},null,null,null,null,null,{"$f":"IFERROR(VLOOKUP(CY22,Personnel!$A$3:$B$290,2,FALSE),\"\")","v":""},null,null,null,null,null,{"$f":"IFERROR(VLOOKUP(DE22,Personnel!$A$3:$B$290,2,FALSE),\"\")","v":""},null,null,null,null,null,{"$f":"IFERROR(VLOOKUP(DK22,Personnel!$A$3:$B$290,2,FALSE),\"\")","v":""},null,null,null,null,null,{"$f":"IFERROR(VLOOKUP(DQ22,Personnel!$A$3:$B$290,2,FALSE),\"\")","v":""},null,null,null,null,null,{"$f":"IFERROR(VLOOKUP(DW22,Personnel!$A$3:$B$290,2,FALSE),\"\")","v":""},null,null,null,null,null,{"$f":"IFERROR(VLOOKUP(EC22,Personnel!$A$3:$B$290,2,FALSE),\"\")","v":""},null,null,null,null,null,{"$f":"IFERROR(VLOOKUP(EI22,Personnel!$A$3:$B$290,2,FALSE),\"\")","v":""},null,null,null,null,null,{"$f":"IFERROR(VLOOKUP(EO22,Personnel!$A$3:$B$290,2,FALSE),\"\")","v":""},null,null,null,null,null,{"$f":"IFERROR(VLOOKUP(EU22,Personnel!$A$3:$B$290,2,FALSE),\"\")","v":""},null,null,null,null,null,{"$f":"IFERROR(VLOOKUP(FA22,Personnel!$A$3:$B$290,2,FALSE),\"\")","v":""},null,null,null,null,null,null,{"$f":"IFERROR(VLOOKUP(FH22,Personnel!$A$3:$B$290,2,FALSE),\"\")","v":""},null,null,null,null,null,{"$f":"IFERROR(VLOOKUP(FN22,Personnel!$A$3:$B$290,2,FALSE),\"\")","v":""},null,null,null,null,null,{"$f":"IFERROR(VLOOKUP(FT22,Personnel!$A$3:$B$290,2,FALSE),\"\")","v":""},null,null,null,null,null,{"$f":"IFERROR(VLOOKUP(FZ22,Personnel!$A$3:$B$290,2,FALSE),\"\")","v":""},null,null,null,null,null,{"$f":"IFERROR(VLOOKUP(GF22,Personnel!$A$3:$B$290,2,FALSE),\"\")","v":""},null,null,null,null,null,{"$f":"IFERROR(VLOOKUP(GL22,Personnel!$A$3:$B$290,2,FALSE),\"\")","v":""}]
[null,{"$f":"IFERROR(VLOOKUP(G23,Personnel!$A$3:$B$290,2,FALSE),\"\")","v":""},null,null,null,null,null,{"$f":"IFERROR(VLOOKUP(M23,Personnel!$A$3:$B$290,2,FALSE),\"\")","v":""},null,null,null,null,null,{"$f":"IFERROR(VLOOKUP(S23,Personnel!$A$3:$B$290,2,FALSE),\"\")","v":""},null,null,null,null,null,{"$f":"IFERROR(VLOOKUP(Y23,Personnel!$A$3:$B$290,2,FALSE),\"\")","v":""},null,null,null,null,null,{"$f":"IFERROR(VLOOKUP(AE23,Personnel!$A$3:$B$290,2,FALSE),\"\")","v":""},null,null,null,null,null,{"$f":"IFERROR(VLOOKUP(AK23,Personnel!$A$3:$B$290,2,FALSE),\"\")","v":""},null,null,null,null,null,{"$f":"IFERROR(VLOOKUP(AQ23,Personnel!$A$3:$B$290,2,FALSE),\"\")","v":""},null,null,null,null,null,{"$f":"IFERROR(VLOOKUP(AW23,Personnel!$A$3:$B$290,2,FALSE),\"\")","v":""},null,null,null,null,null,{"$f":"IFERROR(VLOOKUP(BC23,Personnel!$A$3:$B$290,2,FALSE),\"\")","v":""},null,null,null,null,null,{"$f":"IFERROR(VLOOKUP(BI23,Personnel!$A$3:$B$290,2,FALSE),\"\")","v":""},null,null,null,null,null,{"$f":"IFERROR(VLOOKUP(BO23,Personnel!$A$3:$B$290,2,FALSE),\"\")","v":""},null,null,null,null,null,{"$f":"IFERROR(VLOOKUP(BU23,Personnel!$A$3:$B$290,2,FALSE),\"\")","v":""},null,null,null,null,null,{"$f":"IFERROR(VLOOKUP(CA23,Personnel!$A$3:$B$290,2,FALSE),\"\")","v":""},null,null,null,null,null,{"$f":"IFERROR(VLOOKUP(CG23,Personnel!$A$3:$B$290,2,FALSE),\"\")","v":""},null,null,null,null,null,{"$f":"IFERROR(VLOOKUP(CM23,Personnel!$A$3:$B$290,2,FALSE),\"\")","v":""},null,null,null,null,null,{"$f":"IFERROR(VLOOKUP(CS23,Personnel!$A$3:$B$290,2,FALSE),\"\")","v":""},null,null,null,null,null,{"$f":"IFERROR(VLOOKUP(CY23,Personnel!$A$3:$B$290,2,FALSE),\"\")","v":""},null,null,null,null,null,{"$f":"IFERROR(VLOOKUP(DE23,Personnel!$A$3:$B$290,2,FALSE),\"\")","v":""},null,null,null,null,null,{"$f":"IFERROR(VLOOKUP(DK23,Personnel!$A$3:$B$290,2,FALSE),\"\")","v":""},null,null,null,null,null,{"$f":"IFERROR(VLOOKUP(DQ23,Personnel!$A$3:$B$290,2,FALSE),\"\")","v":""},null,null,null,null,null,{"$f":"IFERROR(VLOOKUP(DW23,Personnel!$A$3:$B$290,2,FALSE),\"\")","v":""},null,null,null,null,null,{"$f":"IFERROR(VLOOKUP(EC23,Personnel!$A$3:$B$290,2,FALSE),\"\")","v":""},null,null,null,null,null,{"$f":"IFERROR(VLOOKUP(EI23,Personnel!$A$3:$B$290,2,FALSE),\"\")","v":""},null,null,null,null,null,{"$f":"IFERROR(VLOOKUP(EO23,Personnel!$A$3:$B$290,2,FALSE),\"\")","v":""},null,null,null,null,null,{"$f":"IFERROR(VLOOKUP(EU23,Personnel!$A$3:$B$290,2,FALSE),\"\")","v":""},null,null,null,null,null,{"$f":"IFERROR(VLOOKUP(FA23,Personnel!$A$3:$B$290,2,FALSE),\"\")","v":""},null,null,null,null,null,null,{"$f":"IFERROR(VLOOKUP(FH23,Personnel!$A$3:$B$290,2,FALSE),\"\")","v":""},null,null,null,null,null,{"$f":"IFERROR(VLOOKUP(FN23,Personnel!$A$3:$B$290,2,FALSE),\"\")","v":""},null,null,null,null,null,{"$f":"IFERROR(VLOOKUP(FT23,Personnel!$A$3:$B$290,2,FALSE),\"\")","v":""},null,null,null,null,null,{"$f":"IFERROR(VLOOKUP(FZ23,Personnel!$A$3:$B$290,2,FALSE),\"\")","v":""},null,null,null,null,null,{"$f":"IFERROR(VLOOKUP(GF23,Personnel!$A$3:$B$290,2,FALSE),\"\")","v":""},null,null,null,null,null,{"$f":"IFERROR(VLOOKUP(GL23,Personnel!$A$3:$B$290,2,FALSE),\"\")","v":""}]
[null,{"$f":"IFERROR(VLOOKUP(G24,Personnel!$A$3:$B$290,2,FALSE),\"\")","v":""},null,null,null,null,null,{"$f":"IFERROR(VLOOKUP(M24,Personnel!$A$3:$B$290,2,FALSE),\"\")","v":""},null,null,null,null,null,{"$f":"IFERROR(VLOOKUP(S24,Personnel!$A$3:$B$290,2,FALSE),\"\")","v":""},null,null,null,null,null,{"$f":"IFERROR(VLOOKUP(Y24,Personnel!$A$3:$B$290,2,FALSE),\"\")","v":""},null,null,null,null,null,{"$f":"IFERROR(VLOOKUP(AE24,Personnel!$A$3:$B$290,2,FALSE),\"\")","v":""},null,null,null,null,null,{"$f":"IFERROR(VLOOKUP(AK24,Personnel!$A$3:$B$290,2,FALSE),\"\")","v":""},null,null,null,null,null,{"$f":"IFERROR(VLOOKUP(AQ24,Personnel!$A$3:$B$290,2,FALSE),\"\")","v":""},null,null,null,null,null,{"$f":"IFERROR(VLOOKUP(AW24,Personnel!$A$3:$B$290,2,FALSE),\"\")","v":""},null,null,null,null,null,{"$f":"IFERROR(VLOOKUP(BC24,Personnel!$A$3:$B$290,2,FALSE),\"\")","v":""},null,null,null,null,null,{"$f":"IFERROR(VLOOKUP(BI24,Personnel!$A$3:$B$290,2,FALSE),\"\")","v":""},null,null,null,null,null,{"$f":"IFERROR(VLOOKUP(BO24,Personnel!$A$3:$B$290,2,FALSE),\"\")","v":""},null,null,null,null,null,{"$f":"IFERROR(VLOOKUP(BU24,Personnel!$A$3:$B$290,2,FALSE),\"\")","v":""},null,null,null,null,null,{"$f":"IFERROR(VLOOKUP(CA24,Personnel!$A$3:$B$290,2,FALSE),\"\")","v":""},null,null,null,null,null,{"$f":"IFERROR(VLOOKUP(CG24,Personnel!$A$3:$B$290,2,FALSE),\"\")","v":""},null,null,null,null,null,{"$f":"IFERROR(VLOOKUP(CM24,Personnel!$A$3:$B$290,2,FALSE),\"\")","v":""},null,null,null,null,null,{"$f":"IFERROR(VLOOKUP(CS24,Personnel!$A$3:$B$290,2,FALSE),\"\")","v":""},null,null,null,null,null,{"$f":"IFERROR(VLOOKUP(CY24,Personnel!$A$3:$B$290,2,FALSE),\"\")","v":""},null,null,null,null,null,{"$f":"IFERROR(VLOOKUP(DE24,Personnel!$A$3:$B$290,2,FALSE),\"\")","v":""},null,null,null,null,null,{"$f":"IFERROR(VLOOKUP(DK24,Personnel!$A$3:$B$290,2,FALSE),\"\")","v":""},null,null,null,null,null,{"$f":"IFERROR(VLOOKUP(DQ24,Personnel!$A$3:$B$290,2,FALSE),\"\")","v":""},null,null,null,null,null,{"$f":"IFERROR(VLOOKUP(DW24,Personnel!$A$3:$B$290,2,FALSE),\"\")","v":""},null,null,null,null,null,{"$f":"IFERROR(VLOOKUP(EC24,Personnel!$A$3:$B$290,2,FALSE),\"\")","v":""},null,null,null,null,null,{"$f":"IFERROR(VLOOKUP(EI24,Personnel!$A$3:$B$290,2,FALSE),\"\")","v":""},null,null,null,null,null,{"$f":"IFERROR(VLOOKUP(EO24,Personnel!$A$3:$B$290,2,FALSE),\"\")","v":""},null,null,null,null,null,{"$f":"IFERROR(VLOOKUP(EU24,Personnel!$A$3:$B$290,2,FALSE),\"\")","v":""},null,null,null,null,null,{"$f":"IFERROR(VLOOKUP(FA24,Personnel!$A$3:$B$290,2,FALSE),\"\")","v":""},null,null,null,null,null,null,{"$f":"IFERROR(VLOOKUP(FH24,Personnel!$A$3:$B$290,2,FALSE),\"\")","v":""},null,null,null,null,null,{"$f":"IFERROR(VLOOKUP(FN24,Personnel!$A$3:$B$290,2,FALSE),\"\")","v":""},null,null,null,null,null,{"$f":"IFERROR(VLOOKUP(FT24,Personnel!$A$3:$B$290,2,FALSE),\"\")","v":""},null,null,null,null,null,{"$f":"IFERROR(VLOOKUP(FZ24,Personnel!$A$3:$B$290,2,FALSE),\"\")","v":""},null,null,null,null,null,{"$f":"IFERROR(VLOOKUP(GF24,Personnel!$A$3:$B$290,2,FALSE),\"\")","v":""},null,null,null,null,null,{"$f":"IFERROR(VLOOKUP(GL24,Personnel!$A$3:$B$290,2,FALSE),\"\")","v":""}]
["MARDI",null,null,null,null,null,null,null,null,null,null,null,null,null,null,null,null,null,null,null,null,null,null,null,null,null,null,null,null,null,null,null,null,null,null,null,null,null,null,null,null,null,null,null,null,null,null,null,null,null,null,null,null,null,null,null,null,null,null,null,null,null,null,null,null,null,null,null,null,null,null,null,null,null,null,null,null,null,null,null,null,null,null,null,null,null,null,null,null,null,null,null,null,null,null,null,null,null,null,null,null,null,null,null,null,null,null,null,null,null,null,null,null,null,null,null,null,null,null,null,null,null,null,null,null,null,null,null,null,null,null,null,null,null,null,null,null,null,null,null,null,null,null,null,null,null,null,null,null,null,null,null,null,null,null,null,null,null,"Formation",null,null,null,null,null,"Absent",null,null,null,null,null,"Maladie / AT",null,null,null,null,null,"Congés"]
[null,null,null,null,null,null,null,null,null,null,null,null,null,null,null,null,null,null,null,null,null,null,null,null,null,null,null,null,null,null,null,null,null,null,null,null,null,null,null,null,null,null,null,null,null,null,null,null,null,null,null,null,null,null,null,null,null,null,null,null,null,null,null,null,null,null,null,null,null,null,null,null,null,null,null,null,null,null,null,null,null,null,null,null,null,null,null,null,null,null,null,null,null,null,null,null,null,null,null,null,null,null,null,null,null,null,null,null,null,null,null,null,null,null,null,null,null,null,null,null,null,null,null,null,null,null,null,null,null,null,null,null,null,null,null,null,null,null,null,null,null,null,null,null,null,null,null,null,null,null,null,null,null,null,null,null,null,null,{"$f":"IFERROR(VLOOKUP(FH26,Personnel!$A$3:$B$290,2,FALSE),\"\")","v":""},null,null,null,null,null,{"$f":"IFERROR(VLOOKUP(FN26,Personnel!$A$3:$B$290,2,FALSE),\"\")","v":""},null,null,null,null,null,{"$f":"IFERROR(VLOOKUP(FT26,Personnel!$A$3:$B$290,2,FALSE),\"\")","v":""},null,null,null,null,null,{"$f":"IFERROR(VLOOKUP(FZ26,Personnel!$A$3:$B$290,2,FALSE),\"\")","v":""}]
[null,null,null,null,null,null,null,null,null,null,null,null,null,null,null,null,null,null,null,null,null,null,null,null,null,null,null,null,null,null,null,null,null,null,null,null,null,null,null,null,null,null,null,null,null,null,null,null,null,null,null,null,null,null,null,null,null,null,null,null,null,null,null,null,null,null,null,null,null,null,null,null,null,null,null,null,null,null,null,null,null,null,null,null,null,null,null,null,null,null,null,null,null,null,null,null,null,null,null,null,null,null,null,null,null,null,null,null,null,null,null,null,null,null,null,null,null,null,null,null,null,null,null,null,null,null,null,null,null,null,null,null,null,null,null,null,null,null,null,null,null,null,null,null,null,null,null,null,null,null,null,null,null,null,null,null,null,null,{"$f":"IFERROR(VLOOKUP(FH27,Personnel!$A$3:$B$290,2,FALSE),\"\")","v":""},null,null,null,null,null,{"$f":"IFERROR(VLOOKUP(FN27,Personnel!$A$3:$B$290,2,FALSE),\"\")","v":""},null,null,null,null,null,{"$f":"IFERROR(VLOOKUP(FT27,Personnel!$A$3:$B$290,2,FALSE),\"\")","v":""},null,null,null,null,null,{"$f":"IFERROR(VLOOKUP(FZ27,Personnel!$A$3:$B$290,2,FALSE),\"\")","v":""}]
[null,null,null,null,null,null,null,null,null,null,null,null,null,null,null,null,null,null,null,null,null,null,null,null,null,null,null,null,null,null,null,null,null,null,null,null,null,null,null,null,null,null,null,null,null,null,null,null,null,null,null,null,null,null,null,null,null,null,null,null,null,null,null,null,null,null,null,null,null,null,null,null,null,null,null,null,null,null,null,null,null,null,null,null,null,null,null,null,null,null,null,null,null,null,null,null,null,null,null,null,null,null,null,null,null,null,null,null,null,null,null,null,null,null,null,null,null,null,null,null,null,null,null,null,null,null,null,null,null,null,null,null,null,null,null,null,null,null,null,null,null,null,null,null,null,null,null,null,null,null,null,null,null,null,null,null,null,null,{"$f":"IFERROR(VLOOKUP(FH28,Personnel!$A$3:$B$290,2,FALSE),\"\")","v":""},null,null,null,null,null,{"$f":"IFERROR(VLOOKUP(FN28,Personnel!$A$3:$B$290,2,FALSE),\"\")","v":""},null,null,null,null,null,{"$f":"IFERROR(VLOOKUP(FT28,Personnel!$A$3:$B$290,2,FALSE),\"\")","v":""},null,null,null,null,null,{"$f":"IFERROR(VLOOKUP(FZ28,Personnel!$A$3:$B$290,2,FALSE),\"\")","v":""}]
[null,null,null,null,null,null,null,null,null,null,null,null,null,null,null,null,null,null,null,null,null,null,null,null,null,null,null,null,null,null,null,null,null,null,null,null,null,null,null,null,null,null,null,null,null,null,null,null,null,null,null,null,null,null,null,null,null,null,null,null,null,null,null,null,null,null,null,null,null,null,null,null,null,null,null,null,null,null,null,null,null,null,null,null,null,null,null,null,null,null,null,null,null,null,null,null,null,null,null,null,null,null,null,null,null,null,null,null,null,null,null,null,null,null,null,null,null,null,null,null,null,null,null,null,null,null,null,null,null,null,null,null,null,null,null,null,null,null,null,null,null,null,null,null,null,null,null,null,null,null,null,null,null,null,null,null,null,null,{"$f":"IFERROR(VLOOKUP(FH29,Personnel!$A$3:$B$290,2,FALSE),\"\")","v":""},null,null,null,null,null,{"$f":"IFERROR(VLOOKUP(FN29,Personnel!$A$3:$B$290,2,FALSE),\"\")","v":""},null,null,null,null,null,{"$f":"IFERROR(VLOOKUP(FT29,Personnel!$A$3:$B$290,2,FALSE),\"\")","v":""},null,null,null,null,null,{"$f":"IFERROR(VLOOKUP(FZ29,Personnel!$A$3:$B$290,2,FALSE),\"\")","v":""}]
[null,null,null,null,null,null,null,null,null,null,null,null,null,null,null,null,null,null,null,null,null,null,null,null,null,null,null,null,null,null,null,null,null,null,null,null,null,null,null,null,null,null,null,null,null,null,null,null,null,null,null,null,null,null,null,null,null,null,null,null,null,null,null,null,null,null,null,null,null,null,null,null,null,null,null,null,null,null,null,null,null,null,null,null,null,null,null,null,null,null,null,null,null,null,null,null,null,null,null,null,null,null,null,null,null,null,null,null,null,null,null,null,null,null,null,null,null,null,null,null,null,null,null,null,null,null,null,null,null,null,null,null,null,null,null,null,null,null,null,null,null,null,null,null,null,null,null,null,null,null,null,null,null,null,null,null,null,null,{"$f":"IFERROR(VLOOKUP(FH30,Personnel!$A$3:$B$290,2,FALSE),\"\")","v":""},null,null,null,null,null,{"$f":"IFERROR(VLOOKUP(FN30,Personnel!$A$3:$B$290,2,FALSE),\"\")","v":""},null,null,null,null,null,{"$f":"IFERROR(VLOOKUP(FT30,Personnel!$A$3:$B$290,2,FALSE),\"\")","v":""},null,null,null,null,null,{"$f":"IFERROR(VLOOKUP(FZ30,Personnel!$A$3:$B$290,2,FALSE),\"\")","v":""}]
[null,null,null,null,null,null,null,null,null,null,null,null,null,null,null,null,null,null,null,null,null,null,null,null,null,null,null,null,null,null,null,null,null,null,null,null,null,null,null,null,null,null,null,null,null,null,null,null,null,null,null,null,null,null,null,null,null,null,null,null,null,null,null,null,null,null,null,null,null,null,null,null,null,null,null,null,null,null,null,null,null,null,null,null,null,null,null,null,null,null,null,null,null,null,null,null,null,null,null,null,null,null,null,null,null,null,null,null,null,null,null,null,null,null,null,null,null,null,null,null,null,null,null,null,null,null,null,null,null,null,null,null,null,null,null,null,null,null,null,null,null,null,null,null,null,null,null,null,null,null,null,null,null,null,null,null,null,null,{"$f":"IFERROR(VLOOKUP(FH31,Personnel!$A$3:$B$290,2,FALSE),\"\")","v":""},null,null,null,null,null,{"$f":"IFERROR(VLOOKUP(FN31,Personnel!$A$3:$B$290,2,FALSE),\"\")","v":""},null,null,null,null,null,{"$f":"IFERROR(VLOOKUP(FT31,Personnel!$A$3:$B$290,2,FALSE),\"\")","v":""},null,null,null,null,null,{"$f":"IFERROR(VLOOKUP(FZ31,Personnel!$A$3:$B$290,2,FALSE),\"\")","v":""}]
[null,null,null,null,null,null,null,null,null,null,null,null,null,null,null,null,null,null,null,null,null,null,null,null,null,null,null,null,null,null,null,null,null,null,null,null,null,null,null,null,null,null,null,null,null,null,null,null,null,null,null,null,null,null,null,null,null,null,null,null,null,null,null,null,null,null,null,null,null,null,null,null,null,null,null,null,null,null,null,null,null,null,null,null,null,null,null,null,null,null,null,null,null,null,null,null,null,null,null,null,null,null,null,null,null,null,null,null,null,null,null,null,null,null,null,null,null,null,null,null,null,null,null,null,null,null,null,null,null,null,null,null,null,null,null,null,null,null,null,null,null,null,null,null,null,null,null,null,null,null,null,null,null,null,null,null,null,null,{"$f":"IFERROR(VLOOKUP(FH32,Personnel!$A$3:$B$290,2,FALSE),\"\")","v":""},null,null,null,null,null,{"$f":"IFERROR(VLOOKUP(FN32,Personnel!$A$3:$B$290,2,FALSE),\"\")","v":""},null,null,null,null,null,{"$f":"IFERROR(VLOOKUP(FT32,Personnel!$A$3:$B$290,2,FALSE),\"\")","v":""},null,null,null,null,null,{"$f":"IFERROR(VLOOKUP(FZ32,Personnel!$A$3:$B$290,2,FALSE),\"\")","v":""}]
[null,null,null,null,null,null,null,null,null,null,null,null,null,null,null,null,null,null,null,null,null,null,null,null,null,null,null,null,null,null,null,null,null,null,null,null,null,null,null,null,null,null,null,null,null,null,null,null,null,null,null,null,null,null,null,null,null,null,null,null,null,null,null,null,null,null,null,null,null,null,null,null,null,null,null,null,null,null,null,null,null,null,null,null,null,null,null,null,null,null,null,null,null,null,null,null,null,null,null,null,null,null,null,null,null,null,null,null,null,null,null,null,null,null,null,null,null,null,null,null,null,null,null,null,null,null,null,null,null,null,null,null,null,null,null,null,null,null,null,null,null,null,null,null,null,null,null,null,null,null,null,null,null,null,null,null,null,null,{"$f":"IFERROR(VLOOKUP(FH33,Personnel!$A$3:$B$290,2,FALSE),\"\")","v":""},null,null,null,null,null,{"$f":"IFERROR(VLOOKUP(FN33,Personnel!$A$3:$B$290,2,FALSE),\"\")","v":""},null,null,null,null,null,{"$f":"IFERROR(VLOOKUP(FT33,Personnel!$A$3:$B$290,2,FALSE),\"\")","v":""},null,null,null,null,null,{"$f":"IFERROR(VLOOKUP(FZ33,Personnel!$A$3:$B$290,2,FALSE),\"\")","v":""}]
[null,null,null,null,null,null,null,null,null,null,null,null,null,null,null,null,null,null,null,null,null,null,null,null,null,null,null,null,null,null,null,null,null,null,null,null,null,null,null,null,null,null,null,null,null,null,null,null,null,null,null,null,null,null,null,null,null,null,null,null,null,null,null,null,null,null,null,null,null,null,null,null,null,null,null,null,null,null,null,null,null,null,null,null,null,null,null,null,null,null,null,null,null,null,null,null,null,null,null,null,null,null,null,null,null,null,null,null,null,null,null,null,null,null,null,null,null,null,null,null,null,null,null,null,null,null,null,null,null,null,null,null,null,null,null,null,null,null,null,null,null,null,null,null,null,null,null,null,null,null,null,null,null,null,null,null,null,null,{"$f":"IFERROR(VLOOKUP(FH34,Personnel!$A$3:$B$290,2,FALSE),\"\")","v":""},null,null,null,null,null,{"$f":"IFERROR(VLOOKUP(FN34,Personnel!$A$3:$B$290,2,FALSE),\"\")","v":""},null,null,null,null,null,{"$f":"IFERROR(VLOOKUP(FT34,Personnel!$A$3:$B$290,2,FALSE),\"\")","v":""},null,null,null,null,null,{"$f":"IFERROR(VLOOKUP(FZ34,Personnel!$A$3:$B$290,2,FALSE),\"\")","v":""}]
[null,null,null,null,null,null,null,null,null,null,null,null,null,null,null,null,null,null,null,null,null,null,null,null,null,null,null,null,null,null,null,null,null,null,null,null,null,null,null,null,null,null,null,null,null,null,null,null,null,null,null,null,null,null,null,null,null,null,null,null,null,null,null,null,null,null,null,null,null,null,null,null,null,null,null,null,null,null,null,null,null,null,null,null,null,null,null,null,null,null,null,null,null,null,null,null,null,null,null,null,null,null,null,null,null,null,null,null,null,null,null,null,null,null,null,null,null,null,null,null,null,null,null,null,null,null,null,null,null,null,null,null,null,null,null,null,null,null,null,null,null,null,null,null,null,null,null,null,null,null,null,null,null,null,null,null,null,null,{"$f":"IFERROR(VLOOKUP(FH35,Personnel!$A$3:$B$290,2,FALSE),\"\")","v":""},null,null,null,null,null,{"$f":"IFERROR(VLOOKUP(FN35,Personnel!$A$3:$B$290,2,FALSE),\"\")","v":""},null,null,null,null,null,{"$f":"IFERROR(VLOOKUP(FT35,Personnel!$A$3:$B$290,2,FALSE),\"\")","v":""},null,null,null,null,null,{"$f":"IFERROR(VLOOKUP(FZ35,Personnel!$A$3:$B$290,2,FALSE),\"\")","v":""}]
[null,null,null,null,null,null,null,null,null,null,null,null,null,null,null,null,null,null,null,null,null,null,null,null,null,null,null,null,null,null,null,null,null,null,null,null,null,null,null,null,null,null,null,null,null,null,null,null,null,null,null,null,null,null,null,null,null,null,null,null,null,null,null,null,null,null,null,null,null,null,null,null,null,null,null,null,null,null,null,null,null,null,null,null,null,null,null,null,null,null,null,null,null,null,null,null,null,null,null,null,null,null,null,null,null,null,null,null,null,null,null,null,null,null,null,null,null,null,null,null,null,null,null,null,null,null,null,null,null,null,null,null,null,null,null,null,null,null,null,null,null,null,null,null,null,null,null,null,null,null,null,null,null,null,null,null,null,null,{"$f":"IFERROR(VLOOKUP(FH36,Personnel!$A$3:$B$290,2,FALSE),\"\")","v":""},null,null,null,null,null,{"$f":"IFERROR(VLOOKUP(FN36,Personnel!$A$3:$B$290,2,FALSE),\"\")","v":""},null,null,null,null,null,{"$f":"IFERROR(VLOOKUP(FT36,Personnel!$A$3:$B$290,2,FALSE),\"\")","v":""},null,null,null,null,null,{"$f":"IFERROR(VLOOKUP(FZ36,Personnel!$A$3:$B$290,2,FALSE),\"\")","v":""}]
[null,"CAMION 1",null,null,null,null,null,"CAMION 2",null,null,null,null,null,"CAMION 3",null,null,null,null,null,"CAMION 4",null,null,null,null,null,"CAMION 5",null,null,null,null,"/","CAMION 6",null,null,null,null,null,"CAMION 7",null,null,null,null,null,"CAMION 8",null,null,null,null,null,"CAMION 9",null,null,null,null,null,"CAMION 10",null,null,null,null,null,"CAMION 11",null,null,null,null,null,"CAMION 12",null,null,null,null,null,"CAMION 13",null,null,null,null,null,"CAMION 14",null,null,null,null,null,"CAMION 15",null,null,null,null,null,"CAMION 16",null,null,null,null,null,"CAMION 17",null,null,null,null,null,"DEPOT",null,null,null,null,null,null,null,null,null,null,null,null,null,null,null,null,null,null,null,null,null,null,null,null,null,null,null,null,null,null,null,null,null,null,null,null,null,null,null,null,null,null,null,null,null,null,null,null,null,null,null,null,null,null,{"$f":"IFERROR(VLOOKUP(FH37,Personnel!$A$3:$B$290,2,FALSE),\"\")","v":""},null,null,null,null,null,{"$f":"IFERROR(VLOOKUP(FN37,Personnel!$A$3:$B$290,2,FALSE),\"\")","v":""},null,null,null,null,null,{"$f":"IFERROR(VLOOKUP(FT37,Personnel!$A$3:$B$290,2,FALSE),\"\")","v":""},null,null,null,null,null,{"$f":"IFERROR(VLOOKUP(FZ37,Personnel!$A$3:$B$290,2,FALSE),\"\")","v":""}]
[null,null,null,null,null,null,null,null,null,null,null,null,null,null,null,null,null,null,null,null,null,null,null,null,null,null,null,null,null,null,null,null,null,null,null,null,null,null,null,null,null,null,null,null,null,null,null,null,null,null,null,null,null,null,null,null,null,null,null,null,null,null,null,null,null,null,null,null,null,null,null,null,null,null,null,null,null,null,null,null,null,null,null,null,null,null,null,null,null,null,null,null,null,null,null,null,null,null,null,null,null,null,null,null,null,null,null,null,null,null,null,null,null,null,null,null,null,null,null,null,null,null,null,null,null,null,null,null,null,null,null,null,null,null,null,null,null,null,null,null,null,null,null,null,null,null,null,null,null,null,null,null,null,null,null,null,null,null,{"$f":"IFERROR(VLOOKUP(FH38,Personnel!$A$3:$B$290,2,FALSE),\"\")","v":""},null,null,null,null,null,{"$f":"IFERROR(VLOOKUP(FN38,Personnel!$A$3:$B$290,2,FALSE),\"\")","v":""},null,null,null,null,null,{"$f":"IFERROR(VLOOKUP(FT38,Personnel!$A$3:$B$290,2,FALSE),\"\")","v":""},null,null,null,null,null,{"$f":"IFERROR(VLOOKUP(FZ38,Personnel!$A$3:$B$290,2,FALSE),\"\")","v":""}]
[{"$f":"A19+1","v":"2022-11-01"},{"$f":"IFERROR(VLOOKUP(G39,Personnel!$A$3:$B$290,2,FALSE),\"\")","v":"Equipier 1"},null,null,null,null,"TN",{"$f":"IFERROR(VLOOKUP(M39,Personnel!$A$3:$B$290,2,FALSE),\"\")","v":""},null,null,null,null,null,{"$f":"IFERROR(VLOOKUP(S39,Personnel!$A$3:$B$290,2,FALSE),\"\")","v":"Equipier 3"},null,null,null,null,"VV",{"$f":"IFERROR(VLOOKUP(Y39,Personnel!$A$3:$B$290,2,FALSE),\"\")","v":""},null,null,null,null,null,{"$f":"IFERROR(VLOOKUP(AE39,Personnel!$A$3:$B$290,2,FALSE),\"\")","v":""},null,null,null,null,null,{"$f":"IFERROR(VLOOKUP(AK39,Personnel!$A$3:$B$290,2,FALSE),\"\")","v":"Equipier 13"},null,null,null,null,"SB",{"$f":"IFERROR(VLOOKUP(AQ39,Personnel!$A$3:$B$290,2,FALSE),\"\")","v":"Equipier 5"},null,null,null,null,"RT",{"$f":"IFERROR(VLOOKUP(AW39,Personnel!$A$3:$B$290,2,FALSE),\"\")","v":"Equipier 11"},null,null,null,null,"CC",{"$f":"IFERROR(VLOOKUP(BC39,Personnel!$A$3:$B$290,2,FALSE),\"\")","v":"Equipier 7"},null,null,null,null,"KL",{"$f":"IFERROR(VLOOKUP(BI39,Personnel!$A$3:$B$290,2,FALSE),\"\")","v":"Equipier 9"},null,null,null,null,"AG",{"$f":"IFERROR(VLOOKUP(BO39,Personnel!$A$3:$B$290,2,FALSE),\"\")","v":"Equipier 12"},null,null,null,null,"LB",{"$f":"IFERROR(VLOOKUP(BU39,Personnel!$A$3:$B$290,2,FALSE),\"\")","v":""},null,null,null,null,null,{"$f":"IFERROR(VLOOKUP(CA39,Personnel!$A$3:$B$290,2,FALSE),\"\")","v":""},null,null,null,null,null,{"$f":"IFERROR(VLOOKUP(CG39,Personnel!$A$3:$B$290,2,FALSE),\"\")","v":""},null,null,null,null,null,{"$f":"IFERROR(VLOOKUP(CM39,Personnel!$A$3:$B$290,2,FALSE),\"\")","v":""},null,null,null,null,null,{"$f":"IFERROR(VLOOKUP(CS39,Personnel!$A$3:$B$290,2,FALSE),\"\")","v":""},null,null,null,null,null,{"$f":"IFERROR(VLOOKUP(CY39,Personnel!$A$3:$B$290,2,FALSE),\"\")","v":""},null,null,null,null,"PF",{"$f":"IFERROR(VLOOKUP(DE39,Personnel!$A$3:$B$290,2,FALSE),\"\")","v":"Equipier 8"},null,null,null,null,"GL",{"$f":"IFERROR(VLOOKUP(DK39,Personnel!$A$3:$B$290,2,FALSE),\"\")","v":""},null,null,null,null,null,{"$f":"IFERROR(VLOOKUP(DQ39,Personnel!$A$3:$B$290,2,FALSE),\"\")","v":""},null,null,null,null,null,{"$f":"IFERROR(VLOOKUP(DW39,Personnel!$A$3:$B$290,2,FALSE),\"\")","v":""},null,null,null,null,null,{"$f":"IFERROR(VLOOKUP(EC39,Personnel!$A$3:$B$290,2,FALSE),\"\")","v":""},null,null,null,null,null,{"$f":"IFERROR(VLOOKUP(EI39,Personnel!$A$3:$B$290,2,FALSE),\"\")","v":""},null,null,null,null,null,{"$f":"IFERROR(VLOOKUP(EO39,Personnel!$A$3:$B$290,2,FALSE),\"\")","v":""},null,null,null,null,null,{"$f":"IFERROR(VLOOKUP(EU39,Personnel!$A$3:$B$290,2,FALSE),\"\")","v":""},null,null,null,null,null,{"$f":"IFERROR(VLOOKUP(FA39,Personnel!$A$3:$B$290,2,FALSE),\"\")","v":""},null,null,null,null,null,null,{"$f":"IFERROR(VLOOKUP(FH39,Personnel!$A$3:$B$290,2,FALSE),\"\")","v":""},null,null,null,null,null,{"$f":"IFERROR(VLOOKUP(FN39,Personnel!$A$3:$B$290,2,FALSE),\"\")","v":""},null,null,null,null,null,{"$f":"IFERROR(VLOOKUP(FT39,Personnel!$A$3:$B$290,2,FALSE),\"\")","v":""},null,null,null,null,null,{"$f":"IFERROR(VLOOKUP(FZ39,Personnel!$A$3:$B$290,2,FALSE),\"\")","v":""}]
[null,{"$f":"IFERROR(VLOOKUP(G40,Personnel!$A$3:$B$290,2,FALSE),\"\")","v":"Equipier 2"},null,null,null,null,"DD",{"$f":"IFERROR(VLOOKUP(M40,Personnel!$A$3:$B$290,2,FALSE),\"\")","v":""},null,null,null,null,null,{"$f":"IFERROR(VLOOKUP(S40,Personnel!$A$3:$B$290,2,FALSE),\"\")","v":"Equipier 15"},null,null,null,null,"RR",{"$f":"IFERROR(VLOOKUP(Y40,Personnel!$A$3:$B$290,2,FALSE),\"\")","v":""},null,null,null,null,null,{"$f":"IFERROR(VLOOKUP(AE40,Personnel!$A$3:$B$290,2,FALSE),\"\")","v":""},null,null,null,null,null,{"$f":"IFERROR(VLOOKUP(AK40,Personnel!$A$3:$B$290,2,FALSE),\"\")","v":"Equipier 10"},null,null,null,null,"CD",{"$f":"IFERROR(VLOOKUP(AQ40,Personnel!$A$3:$B$290,2,FALSE),\"\")","v":""},null,null,null,null,null,{"$f":"IFERROR(VLOOKUP(AW40,Personnel!$A$3:$B$290,2,FALSE),\"\")","v":"Equipier 14"},null,null,null,null,"LV",{"$f":"IFERROR(VLOOKUP(BC40,Personnel!$A$3:$B$290,2,FALSE),\"\")","v":"Equipier 6"},null,null,null,null,"DM",{"$f":"IFERROR(VLOOKUP(BI40,Personnel!$A$3:$B$290,2,FALSE),\"\")","v":"Equipier 20"},null,null,null,null,"MS",{"$f":"IFERROR(VLOOKUP(BO40,Personnel!$A$3:$B$290,2,FALSE),\"\")","v":""},null,null,null,null,null,{"$f":"IFERROR(VLOOKUP(BU40,Personnel!$A$3:$B$290,2,FALSE),\"\")","v":""},null,null,null,null,null,{"$f":"IFERROR(VLOOKUP(CA40,Personnel!$A$3:$B$290,2,FALSE),\"\")","v":""},null,null,null,null,null,{"$f":"IFERROR(VLOOKUP(CG40,Personnel!$A$3:$B$290,2,FALSE),\"\")","v":""},null,null,null,null,null,{"$f":"IFERROR(VLOOKUP(CM40,Personnel!$A$3:$B$290,2,FALSE),\"\")","v":""},null,null,null,null,null,{"$f":"IFERROR(VLOOKUP(CS40,Personnel!$A$3:$B$290,2,FALSE),\"\")","v":""},null,null,null,null,null,{"$f":"IFERROR(VLOOKUP(CY40,Personnel!$A$3:$B$290,2,FALSE),\"\")","v":""},null,null,null,null,null,{"$f":"IFERROR(VLOOKUP(DE40,Personnel!$A$3:$B$290,2,FALSE),\"\")","v":""},null,null,null,null,null,{"$f":"IFERROR(VLOOKUP(DK40,Personnel!$A$3:$B$290,2,FALSE),\"\")","v":""},null,null,null,null,null,{"$f":"IFERROR(VLOOKUP(DQ40,Personnel!$A$3:$B$290,2,FALSE),\"\")","v":""},null,null,null,null,null,{"$f":"IFERROR(VLOOKUP(DW40,Personnel!$A$3:$B$290,2,FALSE),\"\")","v":""},null,null,null,null,null,{"$f":"IFERROR(VLOOKUP(EC40,Personnel!$A$3:$B$290,2,FALSE),\"\")","v":""},null,null,null,null,null,{"$f":"IFERROR(VLOOKUP(EI40,Personnel!$A$3:$B$290,2,FALSE),\"\")","v":""},null,null,null,null,null,{"$f":"IFERROR(VLOOKUP(EO40,Personnel!$A$3:$B$290,2,FALSE),\"\")","v":""},null,null,null,null,null,{"$f":"IFERROR(VLOOKUP(EU40,Personnel!$A$3:$B$290,2,FALSE),\"\")","v":""},null,null,null,null,null,{"$f":"IFERROR(VLOOKUP(FA40,Personnel!$A$3:$B$290,2,FALSE),\"\")","v":""},null,null,null,null,null,null,{"$f":"IFERROR(VLOOKUP(FH40,Personnel!$A$3:$B$290,2,FALSE),\"\")","v":""},null,null,null,null,null,{"$f":"IFERROR(VLOOKUP(FN40,Personnel!$A$3:$B$290,2,FALSE),\"\")","v":""},null,null,null,null,null,{"$f":"IFERROR(VLOOKUP(FT40,Personnel!$A$3:$B$290,2,FALSE),\"\")","v":""},null,null,null,null,null,{"$f":"IFERROR(VLOOKUP(FZ40,Personnel!$A$3:$B$290,2,FALSE),\"\")","v":""}]
[null,{"$f":"IFERROR(VLOOKUP(G41,Personnel!$A$3:$B$290,2,FALSE),\"\")","v":""},null,null,null,null,null,{"$f":"IFERROR(VLOOKUP(M41,Personnel!$A$3:$B$290,2,FALSE),\"\")","v":""},null,null,null,null,null,{"$f":"IFERROR(VLOOKUP(S41,Personnel!$A$3:$B$290,2,FALSE),\"\")","v":""},null,null,null,null,null,{"$f":"IFERROR(VLOOKUP(Y41,Personnel!$A$3:$B$290,2,FALSE),\"\")","v":""},null,null,null,null,null,{"$f":"IFERROR(VLOOKUP(AE41,Personnel!$A$3:$B$290,2,FALSE),\"\")","v":""},null,null,null,null,null,{"$f":"IFERROR(VLOOKUP(AK41,Personnel!$A$3:$B$290,2,FALSE),\"\")","v":""},null,null,null,null,null,{"$f":"IFERROR(VLOOKUP(AQ41,Personnel!$A$3:$B$290,2,FALSE),\"\")","v":""},null,null,null,null,null,{"$f":"IFERROR(VLOOKUP(AW41,Personnel!$A$3:$B$290,2,FALSE),\"\")","v":""},null,null,null,null,null,{"$f":"IFERROR(VLOOKUP(BC41,Personnel!$A$3:$B$290,2,FALSE),\"\")","v":""},null,null,null,null,null,{"$f":"IFERROR(VLOOKUP(BI41,Personnel!$A$3:$B$290,2,FALSE),\"\")","v":""},null,null,null,null,null,{"$f":"IFERROR(VLOOKUP(BO41,Personnel!$A$3:$B$290,2,FALSE),\"\")","v":""},null,null,null,null,null,{"$f":"IFERROR(VLOOKUP(BU41,Personnel!$A$3:$B$290,2,FALSE),\"\")","v":""},null,null,null,null,null,{"$f":"IFERROR(VLOOKUP(CA41,Personnel!$A$3:$B$290,2,FALSE),\"\")","v":""},null,null,null,null,null,{"$f":"IFERROR(VLOOKUP(CG41,Personnel!$A$3:$B$290,2,FALSE),\"\")","v":""},null,null,null,null,null,{"$f":"IFERROR(VLOOKUP(CM41,Personnel!$A$3:$B$290,2,FALSE),\"\")","v":""},null,null,null,null,null,{"$f":"IFERROR(VLOOKUP(CS41,Personnel!$A$3:$B$290,2,FALSE),\"\")","v":""},null,null,null,null,null,{"$f":"IFERROR(VLOOKUP(CY41,Personnel!$A$3:$B$290,2,FALSE),\"\")","v":""},null,null,null,null,null,{"$f":"IFERROR(VLOOKUP(DE41,Personnel!$A$3:$B$290,2,FALSE),\"\")","v":""},null,null,null,null,null,{"$f":"IFERROR(VLOOKUP(DK41,Personnel!$A$3:$B$290,2,FALSE),\"\")","v":""},null,null,null,null,null,{"$f":"IFERROR(VLOOKUP(DQ41,Personnel!$A$3:$B$290,2,FALSE),\"\")","v":""},null,null,null,null,null,{"$f":"IFERROR(VLOOKUP(DW41,Personnel!$A$3:$B$290,2,FALSE),\"\")","v":""},null,null,null,null,null,{"$f":"IFERROR(VLOOKUP(EC41,Personnel!$A$3:$B$290,2,FALSE),\"\")","v":""},null,null,null,null,null,{"$f":"IFERROR(VLOOKUP(EI41,Personnel!$A$3:$B$290,2,FALSE),\"\")","v":""},null,null,null,null,null,{"$f":"IFERROR(VLOOKUP(EO41,Personnel!$A$3:$B$290,2,FALSE),\"\")","v":""},null,null,null,null,null,{"$f":"IFERROR(VLOOKUP(EU41,Personnel!$A$3:$B$290,2,FALSE),\"\")","v":""},null,null,null,null,null,{"$f":"IFERROR(VLOOKUP(FA41,Personnel!$A$3:$B$290,2,FALSE),\"\")","v":""},null,null,null,null,null,null,{"$f":"IFERROR(VLOOKUP(FH41,Personnel!$A$3:$B$290,2,FALSE),\"\")","v":""},null,null,null,null,null,{"$f":"IFERROR(VLOOKUP(FN41,Personnel!$A$3:$B$290,2,FALSE),\"\")","v":""},null,null,null,null,null,{"$f":"IFERROR(VLOOKUP(FT41,Personnel!$A$3:$B$290,2,FALSE),\"\")","v":""},null,null,null,null,null,{"$f":"IFERROR(VLOOKUP(FZ41,Personnel!$A$3:$B$290,2,FALSE),\"\")","v":""}]
[null,{"$f":"IFERROR(VLOOKUP(G42,Personnel!$A$3:$B$290,2,FALSE),\"\")","v":""},null,null,null,null,null,{"$f":"IFERROR(VLOOKUP(M42,Personnel!$A$3:$B$290,2,FALSE),\"\")","v":""},null,null,null,null,null,{"$f":"IFERROR(VLOOKUP(S42,Personnel!$A$3:$B$290,2,FALSE),\"\")","v":""},null,null,null,null,null,{"$f":"IFERROR(VLOOKUP(Y42,Personnel!$A$3:$B$290,2,FALSE),\"\")","v":""},null,null,null,null,null,{"$f":"IFERROR(VLOOKUP(AE42,Personnel!$A$3:$B$290,2,FALSE),\"\")","v":""},null,null,null,null,null,{"$f":"IFERROR(VLOOKUP(AK42,Personnel!$A$3:$B$290,2,FALSE),\"\")","v":""},null,null,null,null,null,{"$f":"IFERROR(VLOOKUP(AQ42,Personnel!$A$3:$B$290,2,FALSE),\"\")","v":""},null,null,null,null,null,{"$f":"IFERROR(VLOOKUP(AW42,Personnel!$A$3:$B$290,2,FALSE),\"\")","v":""},null,null,null,null,null,{"$f":"IFERROR(VLOOKUP(BC42,Personnel!$A$3:$B$290,2,FALSE),\"\")","v":""},null,null,null,null,null,{"$f":"IFERROR(VLOOKUP(BI42,Personnel!$A$3:$B$290,2,FALSE),\"\")","v":""},null,null,null,null,null,{"$f":"IFERROR(VLOOKUP(BO42,Personnel!$A$3:$B$290,2,FALSE),\"\")","v":""},null,null,null,null,null,{"$f":"IFERROR(VLOOKUP(BU42,Personnel!$A$3:$B$290,2,FALSE),\"\")","v":""},null,null,null,null,null,{"$f":"IFERROR(VLOOKUP(CA42,Personnel!$A$3:$B$290,2,FALSE),\"\")","v":""},null,null,null,null,null,{"$f":"IFERROR(VLOOKUP(CG42,Personnel!$A$3:$B$290,2,FALSE),\"\")","v":""},null,null,null,null,null,{"$f":"IFERROR(VLOOKUP(CM42,Personnel!$A$3:$B$290,2,FALSE),\"\")","v":""},null,null,null,null,null,{"$f":"IFERROR(VLOOKUP(CS42,Personnel!$A$3:$B$290,2,FALSE),\"\")","v":""},null,null,null,null,null,{"$f":"IFERROR(VLOOKUP(CY42,Personnel!$A$3:$B$290,2,FALSE),\"\")","v":""},null,null,null,null,null,{"$f":"IFERROR(VLOOKUP(DE42,Personnel!$A$3:$B$290,2,FALSE),\"\")","v":""},null,null,null,null,null,{"$f":"IFERROR(VLOOKUP(DK42,Personnel!$A$3:$B$290,2,FALSE),\"\")","v":""},null,null,null,null,null,{"$f":"IFERROR(VLOOKUP(DQ42,Personnel!$A$3:$B$290,2,FALSE),\"\")","v":""},null,null,null,null,null,{"$f":"IFERROR(VLOOKUP(DW42,Personnel!$A$3:$B$290,2,FALSE),\"\")","v":""},null,null,null,null,null,{"$f":"IFERROR(VLOOKUP(EC42,Personnel!$A$3:$B$290,2,FALSE),\"\")","v":""},null,null,null,null,null,{"$f":"IFERROR(VLOOKUP(EI42,Personnel!$A$3:$B$290,2,FALSE),\"\")","v":""},null,null,null,null,null,{"$f":"IFERROR(VLOOKUP(EO42,Personnel!$A$3:$B$290,2,FALSE),\"\")","v":""},null,null,null,null,null,{"$f":"IFERROR(VLOOKUP(EU42,Personnel!$A$3:$B$290,2,FALSE),\"\")","v":""},null,null,null,null,null,{"$f":"IFERROR(VLOOKUP(FA42,Personnel!$A$3:$B$290,2,FALSE),\"\")","v":""},null,null,null,null,null,null,{"$f":"IFERROR(VLOOKUP(FH42,Personnel!$A$3:$B$290,2,FALSE),\"\")","v":""},null,null,null,null,null,{"$f":"IFERROR(VLOOKUP(FN42,Personnel!$A$3:$B$290,2,FALSE),\"\")","v":""},null,null,null,null,null,{"$f":"IFERROR(VLOOKUP(FT42,Personnel!$A$3:$B$290,2,FALSE),\"\")","v":""},null,null,null,null,null,{"$f":"IFERROR(VLOOKUP(FZ42,Personnel!$A$3:$B$290,2,FALSE),\"\")","v":""}]
[null,{"$f":"IFERROR(VLOOKUP(G43,Personnel!$A$3:$B$290,2,FALSE),\"\")","v":""},null,null,null,null,null,{"$f":"IFERROR(VLOOKUP(M43,Personnel!$A$3:$B$290,2,FALSE),\"\")","v":""},null,null,null,null,null,{"$f":"IFERROR(VLOOKUP(S43,Personnel!$A$3:$B$290,2,FALSE),\"\")","v":""},null,null,null,null,null,{"$f":"IFERROR(VLOOKUP(Y43,Personnel!$A$3:$B$290,2,FALSE),\"\")","v":""},null,null,null,null,null,{"$f":"IFERROR(VLOOKUP(AE43,Personnel!$A$3:$B$290,2,FALSE),\"\")","v":""},null,null,null,null,null,{"$f":"IFERROR(VLOOKUP(AK43,Personnel!$A$3:$B$290,2,FALSE),\"\")","v":""},null,null,null,null,null,{"$f":"IFERROR(VLOOKUP(AQ43,Personnel!$A$3:$B$290,2,FALSE),\"\")","v":""},null,null,null,null,null,{"$f":"IFERROR(VLOOKUP(AW43,Personnel!$A$3:$B$290,2,FALSE),\"\")","v":""},null,null,null,null,null,{"$f":"IFERROR(VLOOKUP(BC43,Personnel!$A$3:$B$290,2,FALSE),\"\")","v":""},null,null,null,null,null,{"$f":"IFERROR(VLOOKUP(BI43,Personnel!$A$3:$B$290,2,FALSE),\"\")","v":""},null,null,null,null,null,{"$f":"IFERROR(VLOOKUP(BO43,Personnel!$A$3:$B$290,2,FALSE),\"\")","v":""},null,null,null,null,null,{"$f":"IFERROR(VLOOKUP(BU43,Personnel!$A$3:$B$290,2,FALSE),\"\")","v":""},null,null,null,null,null,{"$f":"IFERROR(VLOOKUP(CA43,Personnel!$A$3:$B$290,2,FALSE),\"\")","v":""},null,null,null,null,null,{"$f":"IFERROR(VLOOKUP(CG43,Personnel!$A$3:$B$290,2,FALSE),\"\")","v":""},null,null,null,null,null,{"$f":"IFERROR(VLOOKUP(CM43,Personnel!$A$3:$B$290,2,FALSE),\"\")","v":""},null,null,null,null,null,{"$f":"IFERROR(VLOOKUP(CS43,Personnel!$A$3:$B$290,2,FALSE),\"\")","v":""},null,null,null,null,null,{"$f":"IFERROR(VLOOKUP(CY43,Personnel!$A$3:$B$290,2,FALSE),\"\")","v":""},null,null,null,null,null,{"$f":"IFERROR(VLOOKUP(DE43,Personnel!$A$3:$B$290,2,FALSE),\"\")","v":""},null,null,null,null,null,{"$f":"IFERROR(VLOOKUP(DK43,Personnel!$A$3:$B$290,2,FALSE),\"\")","v":""},null,null,null,null,null,{"$f":"IFERROR(VLOOKUP(DQ43,Personnel!$A$3:$B$290,2,FALSE),\"\")","v":""},null,null,null,null,null,{"$f":"IFERROR(VLOOKUP(DW43,Personnel!$A$3:$B$290,2,FALSE),\"\")","v":""},null,null,null,null,null,{"$f":"IFERROR(VLOOKUP(EC43,Personnel!$A$3:$B$290,2,FALSE),\"\")","v":""},null,null,null,null,null,{"$f":"IFERROR(VLOOKUP(EI43,Personnel!$A$3:$B$290,2,FALSE),\"\")","v":""},null,null,null,null,null,{"$f":"IFERROR(VLOOKUP(EO43,Personnel!$A$3:$B$290,2,FALSE),\"\")","v":""},null,null,null,null,null,{"$f":"IFERROR(VLOOKUP(EU43,Personnel!$A$3:$B$290,2,FALSE),\"\")","v":""},null,null,null,null,null,{"$f":"IFERROR(VLOOKUP(FA43,Personnel!$A$3:$B$290,2,FALSE),\"\")","v":""},null,null,null,null,null,null,{"$f":"IFERROR(VLOOKUP(FH43,Personnel!$A$3:$B$290,2,FALSE),\"\")","v":""},null,null,null,null,null,{"$f":"IFERROR(VLOOKUP(FN43,Personnel!$A$3:$B$290,2,FALSE),\"\")","v":""},null,null,null,null,null,{"$f":"IFERROR(VLOOKUP(FT43,Personnel!$A$3:$B$290,2,FALSE),\"\")","v":""},null,null,null,null,null,{"$f":"IFERROR(VLOOKUP(FZ43,Personnel!$A$3:$B$290,2,FALSE),\"\")","v":""}]
[null,{"$f":"IFERROR(VLOOKUP(G44,Personnel!$A$3:$B$290,2,FALSE),\"\")","v":""},null,null,null,null,null,{"$f":"IFERROR(VLOOKUP(M44,Personnel!$A$3:$B$290,2,FALSE),\"\")","v":""},null,null,null,null,null,{"$f":"IFERROR(VLOOKUP(S44,Personnel!$A$3:$B$290,2,FALSE),\"\")","v":""},null,null,null,null,null,{"$f":"IFERROR(VLOOKUP(Y44,Personnel!$A$3:$B$290,2,FALSE),\"\")","v":""},null,null,null,null,null,{"$f":"IFERROR(VLOOKUP(AE44,Personnel!$A$3:$B$290,2,FALSE),\"\")","v":""},null,null,null,null,null,{"$f":"IFERROR(VLOOKUP(AK44,Personnel!$A$3:$B$290,2,FALSE),\"\")","v":""},null,null,null,null,null,{"$f":"IFERROR(VLOOKUP(AQ44,Personnel!$A$3:$B$290,2,FALSE),\"\")","v":""},null,null,null,null,null,{"$f":"IFERROR(VLOOKUP(AW44,Personnel!$A$3:$B$290,2,FALSE),\"\")","v":""},null,null,null,null,null,{"$f":"IFERROR(VLOOKUP(BC44,Personnel!$A$3:$B$290,2,FALSE),\"\")","v":""},null,null,null,null,null,{"$f":"IFERROR(VLOOKUP(BI44,Personnel!$A$3:$B$290,2,FALSE),\"\")","v":""},null,null,null,null,null,{"$f":"IFERROR(VLOOKUP(BO44,Personnel!$A$3:$B$290,2,FALSE),\"\")","v":""},null,null,null,null,null,{"$f":"IFERROR(VLOOKUP(BU44,Personnel!$A$3:$B$290,2,FALSE),\"\")","v":""},null,null,null,null,null,{"$f":"IFERROR(VLOOKUP(CA44,Personnel!$A$3:$B$290,2,FALSE),\"\")","v":""},null,null,null,null,null,{"$f":"IFERROR(VLOOKUP(CG44,Personnel!$A$3:$B$290,2,FALSE),\"\")","v":""},null,null,null,null,null,{"$f":"IFERROR(VLOOKUP(CM44,Personnel!$A$3:$B$290,2,FALSE),\"\")","v":""},null,null,null,null,null,{"$f":"IFERROR(VLOOKUP(CS44,Personnel!$A$3:$B$290,2,FALSE),\"\")","v":""},null,null,null,null,null,{"$f":"IFERROR(VLOOKUP(CY44,Personnel!$A$3:$B$290,2,FALSE),\"\")","v":""},null,null,null,null,null,{"$f":"IFERROR(VLOOKUP(DE44,Personnel!$A$3:$B$290,2,FALSE),\"\")","v":""},null,null,null,null,null,{"$f":"IFERROR(VLOOKUP(DK44,Personnel!$A$3:$B$290,2,FALSE),\"\")","v":""},null,null,null,null,null,{"$f":"IFERROR(VLOOKUP(DQ44,Personnel!$A$3:$B$290,2,FALSE),\"\")","v":""},null,null,null,null,null,{"$f":"IFERROR(VLOOKUP(DW44,Personnel!$A$3:$B$290,2,FALSE),\"\")","v":""},null,null,null,null,null,{"$f":"IFERROR(VLOOKUP(EC44,Personnel!$A$3:$B$290,2,FALSE),\"\")","v":""},null,null,null,null,null,{"$f":"IFERROR(VLOOKUP(EI44,Personnel!$A$3:$B$290,2,FALSE),\"\")","v":""},null,null,null,null,null,{"$f":"IFERROR(VLOOKUP(EO44,Personnel!$A$3:$B$290,2,FALSE),\"\")","v":""},null,null,null,null,null,{"$f":"IFERROR(VLOOKUP(EU44,Personnel!$A$3:$B$290,2,FALSE),\"\")","v":""},null,null,null,null,null,{"$f":"IFERROR(VLOOKUP(FA44,Personnel!$A$3:$B$290,2,FALSE),\"\")","v":""},null,null,null,null,null,null,{"$f":"IFERROR(VLOOKUP(FH44,Personnel!$A$3:$B$290,2,FALSE),\"\")","v":""},null,null,null,null,null,{"$f":"IFERROR(VLOOKUP(FN44,Personnel!$A$3:$B$290,2,FALSE),\"\")","v":""},null,null,null,null,null,{"$f":"IFERROR(VLOOKUP(FT44,Personnel!$A$3:$B$290,2,FALSE),\"\")","v":""},null,null,null,null,null,{"$f":"IFERROR(VLOOKUP(FZ44,Personnel!$A$3:$B$290,2,FALSE),\"\")","v":""}]
["MERCREDI",null,null,null,null,null,null,null,null,null,null,null,null,null,null,null,null,null,null,null,null,null,null,null,null,null,null,null,null,null,null,null,null,null,null,null,null,null,null,null,null,null,null,null,null,null,null,null,null,null,null,null,null,null,null,null,null,null,null,null,null,null,null,null,null,null,null,null,null,null,null,null,null,null,null,null,null,null,null,null,null,null,null,null,null,null,null,null,null,null,null,null,null,null,null,null,null,null,null,null,null,null,null,null,null,null,null,null,null,null,null,null,null,null,null,null,null,null,null,null,null,null,null,null,null,null,null,null,null,null,null,null,null,null,null,null,null,null,null,null,null,null,null,null,null,null,null,null,null,null,null,null,null,null,null,null,null,null,"Formation",null,null,null,null,null,"Absent",null,null,null,null,null,"Maladie / AT",null,null,null,null,null,"Congés"]
[null,null,null,null,null,null,null,null,null,null,null,null,null,null,null,null,null,null,null,null,null,null,null,null,null,null,null,null,null,null,null,null,null,null,null,null,null,null,null,null,null,null,null,null,null,null,null,null,null,null,null,null,null,null,null,null,null,null,null,null,null,null,null,null,null,null,null,null,null,null,null,null,null,null,null,null,null,null,null,null,null,null,null,null,null,null,null,null,null,null,null,null,null,null,null,null,null,null,null,null,null,null,null,null,null,null,null,null,null,null,null,null,null,null,null,null,null,null,null,null,null,null,null,null,null,null,null,null,null,null,null,null,null,null,null,null,null,null,null,null,null,null,null,null,null,null,null,null,null,null,null,null,null,null,null,null,null,null,{"$f":"IFERROR(VLOOKUP(FH46,Personnel!$A$3:$B$290,2,FALSE),\"\")","v":""},null,null,null,null,null,{"$f":"IFERROR(VLOOKUP(FN46,Personnel!$A$3:$B$290,2,FALSE),\"\")","v":""},null,null,null,null,null,{"$f":"IFERROR(VLOOKUP(FT46,Personnel!$A$3:$B$290,2,FALSE),\"\")","v":""},null,null,null,null,null,{"$f":"IFERROR(VLOOKUP(FZ46,Personnel!$A$3:$B$290,2,FALSE),\"\")","v":""}]
[null,null,null,null,null,null,null,null,null,null,null,null,null,null,null,null,null,null,null,null,null,null,null,null,null,null,null,null,null,null,null,null,null,null,null,null,null,null,null,null,null,null,null,null,null,null,null,null,null,null,null,null,null,null,null,null,null,null,null,null,null,null,null,null,null,null,null,null,null,null,null,null,null,null,null,null,null,null,null,null,null,null,null,null,null,null,null,null,null,null,null,null,null,null,null,null,null,null,null,null,null,null,null,null,null,null,null,null,null,null,null,null,null,null,null,null,null,null,null,null,null,null,null,null,null,null,null,null,null,null,null,null,null,null,null,null,null,null,null,null,null,null,null,null,null,null,null,null,null,null,null,null,null,null,null,null,null,null,{"$f":"IFERROR(VLOOKUP(FH47,Personnel!$A$3:$B$290,2,FALSE),\"\")","v":""},null,null,null,null,null,{"$f":"IFERROR(VLOOKUP(FN47,Personnel!$A$3:$B$290,2,FALSE),\"\")","v":""},null,null,null,null,null,{"$f":"IFERROR(VLOOKUP(FT47,Personnel!$A$3:$B$290,2,FALSE),\"\")","v":""},null,null,null,null,null,{"$f":"IFERROR(VLOOKUP(FZ47,Personnel!$A$3:$B$290,2,FALSE),\"\")","v":""}]
[null,null,null,null,null,null,null,null,null,null,null,null,null,null,null,null,null,null,null,null,null,null,null,null,null,null,null,null,null,null,null,null,null,null,null,null,null,null,null,null,null,null,null,null,null,null,null,null,null,null,null,null,null,null,null,null,null,null,null,null,null,null,null,null,null,null,null,null,null,null,null,null,null,null,null,null,null,null,null,null,null,null,null,null,null,null,null,null,null,null,null,null,null,null,null,null,null,null,null,null,null,null,null,null,null,null,null,null,null,null,null,null,null,null,null,null,null,null,null,null,null,null,null,null,null,null,null,null,null,null,null,null,null,null,null,null,null,null,null,null,null,null,null,null,null,null,null,null,null,null,null,null,null,null,null,null,null,null,{"$f":"IFERROR(VLOOKUP(FH48,Personnel!$A$3:$B$290,2,FALSE),\"\")","v":""},null,null,null,null,null,{"$f":"IFERROR(VLOOKUP(FN48,Personnel!$A$3:$B$290,2,FALSE),\"\")","v":""},null,null,null,null,null,{"$f":"IFERROR(VLOOKUP(FT48,Personnel!$A$3:$B$290,2,FALSE),\"\")","v":""},null,null,null,null,null,{"$f":"IFERROR(VLOOKUP(FZ48,Personnel!$A$3:$B$290,2,FALSE),\"\")","v":""}]
[null,null,null,null,null,null,null,null,null,null,null,null,null,null,null,null,null,null,null,null,null,null,null,null,null,null,null,null,null,null,null,null,null,null,null,null,null,null,null,null,null,null,null,null,null,null,null,null,null,null,null,null,null,null,null,null,null,null,null,null,null,null,null,null,null,null,null,null,null,null,null,null,null,null,null,null,null,null,null,null,null,null,null,null,null,null,null,null,null,null,null,null,null,null,null,null,null,null,null,null,null,null,null,null,null,null,null,null,null,null,null,null,null,null,null,null,null,null,null,null,null,null,null,null,null,null,null,null,null,null,null,null,null,null,null,null,null,null,null,null,null,null,null,null,null,null,null,null,null,null,null,null,null,null,null,null,null,null,{"$f":"IFERROR(VLOOKUP(FH49,Personnel!$A$3:$B$290,2,FALSE),\"\")","v":""},null,null,null,null,null,{"$f":"IFERROR(VLOOKUP(FN49,Personnel!$A$3:$B$290,2,FALSE),\"\")","v":""},null,null,null,null,null,{"$f":"IFERROR(VLOOKUP(FT49,Personnel!$A$3:$B$290,2,FALSE),\"\")","v":""},null,null,null,null,null,{"$f":"IFERROR(VLOOKUP(FZ49,Personnel!$A$3:$B$290,2,FALSE),\"\")","v":""}]
[null,null,null,null,null,null,null,null,null,null,null,null,null,null,null,null,null,null,null,null,null,null,null,null,null,null,null,null,null,null,null,null,null,null,null,null,null,null,null,null,null,null,null,null,null,null,null,null,null,null,null,null,null,null,null,null,null,null,null,null,null,null,null,null,null,null,null,null,null,null,null,null,null,null,null,null,null,null,null,null,null,null,null,null,null,null,null,null,null,null,null,null,null,null,null,null,null,null,null,null,null,null,null,null,null,null,null,null,null,null,null,null,null,null,null,null,null,null,null,null,null,null,null,null,null,null,null,null,null,null,null,null,null,null,null,null,null,null,null,null,null,null,null,null,null,null,null,null,null,null,null,null,null,null,null,null,null,null,{"$f":"IFERROR(VLOOKUP(FH50,Personnel!$A$3:$B$290,2,FALSE),\"\")","v":""},null,null,null,null,null,{"$f":"IFERROR(VLOOKUP(FN50,Personnel!$A$3:$B$290,2,FALSE),\"\")","v":""},null,null,null,null,null,{"$f":"IFERROR(VLOOKUP(FT50,Personnel!$A$3:$B$290,2,FALSE),\"\")","v":""},null,null,null,null,null,{"$f":"IFERROR(VLOOKUP(FZ50,Personnel!$A$3:$B$290,2,FALSE),\"\")","v":""}]
[null,null,null,null,null,null,null,null,null,null,null,null,null,null,null,null,null,null,null,null,null,null,null,null,null,null,null,null,null,null,null,null,null,null,null,null,null,null,null,null,null,null,null,null,null,null,null,null,null,null,null,null,null,null,null,null,null,null,null,null,null,null,null,null,null,null,null,null,null,null,null,null,null,null,null,null,null,null,null,null,null,null,null,null,null,null,null,null,null,null,null,null,null,null,null,null,null,null,null,null,null,null,null,null,null,null,null,null,null,null,null,null,null,null,null,null,null,null,null,null,null,null,null,null,null,null,null,null,null,null,null,null,null,null,null,null,null,null,null,null,null,null,null,null,null,null,null,null,null,null,null,null,null,null,null,null,null,null,{"$f":"IFERROR(VLOOKUP(FH51,Personnel!$A$3:$B$290,2,FALSE),\"\")","v":""},null,null,null,null,null,{"$f":"IFERROR(VLOOKUP(FN51,Personnel!$A$3:$B$290,2,FALSE),\"\")","v":""},null,null,null,null,null,{"$f":"IFERROR(VLOOKUP(FT51,Personnel!$A$3:$B$290,2,FALSE),\"\")","v":""},null,null,null,null,null,{"$f":"IFERROR(VLOOKUP(FZ51,Personnel!$A$3:$B$290,2,FALSE),\"\")","v":""}]
[null,null,null,null,null,null,null,null,null,null,null,null,null,null,null,null,null,null,null,null,null,null,null,null,null,null,null,null,null,null,null,null,null,null,null,null,null,null,null,null,null,null,null,null,null,null,null,null,null,null,null,null,null,null,null,null,null,null,null,null,null,null,null,null,null,null,null,null,null,null,null,null,null,null,null,null,null,null,null,null,null,null,null,null,null,null,null,null,null,null,null,null,null,null,null,null,null,null,null,null,null,null,null,null,null,null,null,null,null,null,null,null,null,null,null,null,null,null,null,null,null,null,null,null,null,null,null,null,null,null,null,null,null,null,null,null,null,null,null,null,null,null,null,null,null,null,null,null,null,null,null,null,null,null,null,null,null,null,{"$f":"IFERROR(VLOOKUP(FH52,Personnel!$A$3:$B$290,2,FALSE),\"\")","v":""},null,null,null,null,null,{"$f":"IFERROR(VLOOKUP(FN52,Personnel!$A$3:$B$290,2,FALSE),\"\")","v":""},null,null,null,null,null,{"$f":"IFERROR(VLOOKUP(FT52,Personnel!$A$3:$B$290,2,FALSE),\"\")","v":""},null,null,null,null,null,{"$f":"IFERROR(VLOOKUP(FZ52,Personnel!$A$3:$B$290,2,FALSE),\"\")","v":""}]
[null,null,null,null,null,null,null,null,null,null,null,null,null,null,null,null,null,null,null,null,null,null,null,null,null,null,null,null,null,null,null,null,null,null,null,null,null,null,null,null,null,null,null,null,null,null,null,null,null,null,null,null,null,null,null,null,null,null,null,null,null,null,null,null,null,null,null,null,null,null,null,null,null,null,null,null,null,null,null,null,null,null,null,null,null,null,null,null,null,null,null,null,null,null,null,null,null,null,null,null,null,null,null,null,null,null,null,null,null,null,null,null,null,null,null,null,null,null,null,null,null,null,null,null,null,null,null,null,null,null,null,null,null,null,null,null,null,null,null,null,null,null,null,null,null,null,null,null,null,null,null,null,null,null,null,null,null,null,{"$f":"IFERROR(VLOOKUP(FH53,Personnel!$A$3:$B$290,2,FALSE),\"\")","v":""},null,null,null,null,null,{"$f":"IFERROR(VLOOKUP(FN53,Personnel!$A$3:$B$290,2,FALSE),\"\")","v":""},null,null,null,null,null,{"$f":"IFERROR(VLOOKUP(FT53,Personnel!$A$3:$B$290,2,FALSE),\"\")","v":""},null,null,null,null,null,{"$f":"IFERROR(VLOOKUP(FZ53,Personnel!$A$3:$B$290,2,FALSE),\"\")","v":""}]
[null,null,null,null,null,null,null,null,null,null,null,null,null,null,null,null,null,null,null,null,null,null,null,null,null,null,null,null,null,null,null,null,null,null,null,null,null,null,null,null,null,null,null,null,null,null,null,null,null,null,null,null,null,null,null,null,null,null,null,null,null,null,null,null,null,null,null,null,null,null,null,null,null,null,null,null,null,null,null,null,null,null,null,null,null,null,null,null,null,null,null,null,null,null,null,null,null,null,null,null,null,null,null,null,null,null,null,null,null,null,null,null,null,null,null,null,null,null,null,null,null,null,null,null,null,null,null,null,null,null,null,null,null,null,null,null,null,null,null,null,null,null,null,null,null,null,null,null,null,null,null,null,null,null,null,null,null,null,{"$f":"IFERROR(VLOOKUP(FH54,Personnel!$A$3:$B$290,2,FALSE),\"\")","v":""},null,null,null,null,null,{"$f":"IFERROR(VLOOKUP(FN54,Personnel!$A$3:$B$290,2,FALSE),\"\")","v":""},null,null,null,null,null,{"$f":"IFERROR(VLOOKUP(FT54,Personnel!$A$3:$B$290,2,FALSE),\"\")","v":""},null,null,null,null,null,{"$f":"IFERROR(VLOOKUP(FZ54,Personnel!$A$3:$B$290,2,FALSE),\"\")","v":""}]
[null,null,null,null,null,null,null,null,null,null,null,null,null,null,null,null,null,null,null,null,null,null,null,null,null,null,null,null,null,null,null,null,null,null,null,null,null,null,null,null,null,null,null,null,null,null,null,null,null,null,null,null,null,null,null,null,null,null,null,null,null,null,null,null,null,null,null,null,null,null,null,null,null,null,null,null,null,null,null,null,null,null,null,null,null,null,null,null,null,null,null,null,null,null,null,null,null,null,null,null,null,null,null,null,null,null,null,null,null,null,null,null,null,null,null,null,null,null,null,null,null,null,null,null,null,null,null,null,null,null,null,null,null,null,null,null,null,null,null,null,null,null,null,null,null,null,null,null,null,null,null,null,null,null,null,null,null,null,{"$f":"IFERROR(VLOOKUP(FH55,Personnel!$A$3:$B$290,2,FALSE),\"\")","v":""},null,null,null,null,null,{"$f":"IFERROR(VLOOKUP(FN55,Personnel!$A$3:$B$290,2,FALSE),\"\")","v":""},null,null,null,null,null,{"$f":"IFERROR(VLOOKUP(FT55,Personnel!$A$3:$B$290,2,FALSE),\"\")","v":""},null,null,null,null,null,{"$f":"IFERROR(VLOOKUP(FZ55,Personnel!$A$3:$B$290,2,FALSE),\"\")","v":""}]
[null,null,null,null,null,null,null,null,null,null,null,null,null,null,null,null,null,null,null,null,null,null,null,null,null,null,null,null,null,null,null,null,null,null,null,null,null,null,null,null,null,null,null,null,null,null,null,null,null,null,null,null,null,null,null,null,null,null,null,null,null,null,null,null,null,null,null,null,null,null,null,null,null,null,null,null,null,null,null,null,null,null,null,null,null,null,null,null,null,null,null,null,null,null,null,null,null,null,null,null,null,null,null,null,null,null,null,null,null,null,null,null,null,null,null,null,null,null,null,null,null,null,null,null,null,null,null,null,null,null,null,null,null,null,null,null,null,null,null,null,null,null,null,null,null,null,null,null,null,null,null,null,null,null,null,null,null,null,{"$f":"IFERROR(VLOOKUP(FH56,Personnel!$A$3:$B$290,2,FALSE),\"\")","v":""},null,null,null,null,null,{"$f":"IFERROR(VLOOKUP(FN56,Personnel!$A$3:$B$290,2,FALSE),\"\")","v":""},null,null,null,null,null,{"$f":"IFERROR(VLOOKUP(FT56,Personnel!$A$3:$B$290,2,FALSE),\"\")","v":""},null,null,null,null,null,{"$f":"IFERROR(VLOOKUP(FZ56,Personnel!$A$3:$B$290,2,FALSE),\"\")","v":""}]
[null,"CAMION 1",null,null,null,null,null,"CAMION 2",null,null,null,null,null,"CAMION 3",null,null,null,null,null,"CAMION 4",null,null,null,null,null,"CAMION 5",null,null,null,null,"/","CAMION 6",null,null,null,null,null,"CAMION 7",null,null,null,null,null,"CAMION 8",null,null,null,null,null,"CAMION 9",null,null,null,null,null,"CAMION 10",null,null,null,null,null,"CAMION 11",null,null,null,null,null,"CAMION 12",null,null,null,null,null,"CAMION 13",null,null,null,null,null,"CAMION 14",null,null,null,null,null,"CAMION 15",null,null,null,null,null,"CAMION 16",null,null,null,null,null,"CAMION 17",null,null,null,null,null,"DEPOT",null,null,null,null,null,null,null,null,null,null,null,null,null,null,null,null,null,null,null,null,null,null,null,null,null,null,null,null,null,null,null,null,null,null,null,null,null,null,null,null,null,null,null,null,null,null,null,null,null,null,null,null,null,null,{"$f":"IFERROR(VLOOKUP(FH57,Personnel!$A$3:$B$290,2,FALSE),\"\")","v":""},null,null,null,null,null,{"$f":"IFERROR(VLOOKUP(FN57,Personnel!$A$3:$B$290,2,FALSE),\"\")","v":""},null,null,null,null,null,{"$f":"IFERROR(VLOOKUP(FT57,Personnel!$A$3:$B$290,2,FALSE),\"\")","v":""},null,null,null,null,null,{"$f":"IFERROR(VLOOKUP(FZ57,Personnel!$A$3:$B$290,2,FALSE),\"\")","v":""}]
[null,null,null,null,null,null,null,null,null,null,null,null,null,null,null,null,null,null,null,null,null,null,null,null,null,null,null,null,null,null,null,null,null,null,null,null,null,null,null,null,null,null,null,null,null,null,null,null,null,null,null,null,null,null,null,null,null,null,null,null,null,null,null,null,null,null,null,null,null,null,null,null,null,null,null,null,null,null,null,null,null,null,null,null,null,null,null,null,null,null,null,null,null,null,null,null,null,null,null,null,null,null,null,null,null,null,null,null,null,null,null,null,null,null,null,null,null,null,null,null,null,null,null,null,null,null,null,null,null,null,null,null,null,null,null,null,null,null,null,null,null,null,null,null,null,null,null,null,null,null,null,null,null,null,null,null,null,null,{"$f":"IFERROR(VLOOKUP(FH58,Personnel!$A$3:$B$290,2,FALSE),\"\")","v":""},null,null,null,null,null,{"$f":"IFERROR(VLOOKUP(FN58,Personnel!$A$3:$B$290,2,FALSE),\"\")","v":""},null,null,null,null,null,{"$f":"IFERROR(VLOOKUP(FT58,Personnel!$A$3:$B$290,2,FALSE),\"\")","v":""},null,null,null,null,null,{"$f":"IFERROR(VLOOKUP(FZ58,Personnel!$A$3:$B$290,2,FALSE),\"\")","v":""}]
[{"$f":"A39+1","v":"2022-11-02"},{"$f":"IFERROR(VLOOKUP(G59,Personnel!$A$3:$B$290,2,FALSE),\"\")","v":"Equipier 1"},null,null,null,null,"TN",{"$f":"IFERROR(VLOOKUP(M59,Personnel!$A$3:$B$290,2,FALSE),\"\")","v":""},null,null,null,null,null,{"$f":"IFERROR(VLOOKUP(S59,Personnel!$A$3:$B$290,2,FALSE),\"\")","v":"Equipier 3"},null,null,null,null,"VV",{"$f":"IFERROR(VLOOKUP(Y59,Personnel!$A$3:$B$290,2,FALSE),\"\")","v":""},null,null,null,null,null,{"$f":"IFERROR(VLOOKUP(AE59,Personnel!$A$3:$B$290,2,FALSE),\"\")","v":""},null,null,null,null,null,{"$f":"IFERROR(VLOOKUP(AK59,Personnel!$A$3:$B$290,2,FALSE),\"\")","v":"Equipier 13"},null,null,null,null,"SB",{"$f":"IFERROR(VLOOKUP(AQ59,Personnel!$A$3:$B$290,2,FALSE),\"\")","v":"Equipier 5"},null,null,null,null,"RT",{"$f":"IFERROR(VLOOKUP(AW59,Personnel!$A$3:$B$290,2,FALSE),\"\")","v":"Equipier 11"},null,null,null,null,"CC",{"$f":"IFERROR(VLOOKUP(BC59,Personnel!$A$3:$B$290,2,FALSE),\"\")","v":"Equipier 7"},null,null,null,null,"KL",{"$f":"IFERROR(VLOOKUP(BI59,Personnel!$A$3:$B$290,2,FALSE),\"\")","v":"Equipier 9"},null,null,null,null,"AG",{"$f":"IFERROR(VLOOKUP(BO59,Personnel!$A$3:$B$290,2,FALSE),\"\")","v":"Equipier 12"},null,null,null,null,"LB",{"$f":"IFERROR(VLOOKUP(BU59,Personnel!$A$3:$B$290,2,FALSE),\"\")","v":""},null,null,null,null,null,{"$f":"IFERROR(VLOOKUP(CA59,Personnel!$A$3:$B$290,2,FALSE),\"\")","v":""},null,null,null,null,null,{"$f":"IFERROR(VLOOKUP(CG59,Personnel!$A$3:$B$290,2,FALSE),\"\")","v":""},null,null,null,null,null,{"$f":"IFERROR(VLOOKUP(CM59,Personnel!$A$3:$B$290,2,FALSE),\"\")","v":""},null,null,null,null,null,{"$f":"IFERROR(VLOOKUP(CS59,Personnel!$A$3:$B$290,2,FALSE),\"\")","v":""},null,null,null,null,null,{"$f":"IFERROR(VLOOKUP(CY59,Personnel!$A$3:$B$290,2,FALSE),\"\")","v":""},null,null,null,null,"PF",{"$f":"IFERROR(VLOOKUP(DE59,Personnel!$A$3:$B$290,2,FALSE),\"\")","v":"Equipier 8"},null,null,null,null,"GL",{"$f":"IFERROR(VLOOKUP(DK59,Personnel!$A$3:$B$290,2,FALSE),\"\")","v":""},null,null,null,null,null,{"$f":"IFERROR(VLOOKUP(DQ59,Personnel!$A$3:$B$290,2,FALSE),\"\")","v":""},null,null,null,null,null,{"$f":"IFERROR(VLOOKUP(DW59,Personnel!$A$3:$B$290,2,FALSE),\"\")","v":""},null,null,null,null,null,{"$f":"IFERROR(VLOOKUP(EC59,Personnel!$A$3:$B$290,2,FALSE),\"\")","v":""},null,null,null,null,null,{"$f":"IFERROR(VLOOKUP(EI59,Personnel!$A$3:$B$290,2,FALSE),\"\")","v":""},null,null,null,null,null,{"$f":"IFERROR(VLOOKUP(EO59,Personnel!$A$3:$B$290,2,FALSE),\"\")","v":""},null,null,null,null,null,{"$f":"IFERROR(VLOOKUP(EU59,Personnel!$A$3:$B$290,2,FALSE),\"\")","v":""},null,null,null,null,null,{"$f":"IFERROR(VLOOKUP(FA59,Personnel!$A$3:$B$290,2,FALSE),\"\")","v":""},null,null,null,null,null,null,{"$f":"IFERROR(VLOOKUP(FH59,Personnel!$A$3:$B$290,2,FALSE),\"\")","v":""},null,null,null,null,null,{"$f":"IFERROR(VLOOKUP(FN59,Personnel!$A$3:$B$290,2,FALSE),\"\")","v":""},null,null,null,null,null,{"$f":"IFERROR(VLOOKUP(FT59,Personnel!$A$3:$B$290,2,FALSE),\"\")","v":""},null,null,null,null,null,{"$f":"IFERROR(VLOOKUP(FZ59,Personnel!$A$3:$B$290,2,FALSE),\"\")","v":""}]
[null,{"$f":"IFERROR(VLOOKUP(G60,Personnel!$A$3:$B$290,2,FALSE),\"\")","v":"Equipier 2"},null,null,null,null,"DD",{"$f":"IFERROR(VLOOKUP(M60,Personnel!$A$3:$B$290,2,FALSE),\"\")","v":""},null,null,null,null,null,{"$f":"IFERROR(VLOOKUP(S60,Personnel!$A$3:$B$290,2,FALSE),\"\")","v":"Equipier 15"},null,null,null,null,"RR",{"$f":"IFERROR(VLOOKUP(Y60,Personnel!$A$3:$B$290,2,FALSE),\"\")","v":""},null,null,null,null,null,{"$f":"IFERROR(VLOOKUP(AE60,Personnel!$A$3:$B$290,2,FALSE),\"\")","v":""},null,null,null,null,null,{"$f":"IFERROR(VLOOKUP(AK60,Personnel!$A$3:$B$290,2,FALSE),\"\")","v":"Equipier 10"},null,null,null,null,"CD",{"$f":"IFERROR(VLOOKUP(AQ60,Personnel!$A$3:$B$290,2,FALSE),\"\")","v":""},null,null,null,null,null,{"$f":"IFERROR(VLOOKUP(AW60,Personnel!$A$3:$B$290,2,FALSE),\"\")","v":"Equipier 14"},null,null,null,null,"LV",{"$f":"IFERROR(VLOOKUP(BC60,Personnel!$A$3:$B$290,2,FALSE),\"\")","v":"Equipier 6"},null,null,null,null,"DM",{"$f":"IFERROR(VLOOKUP(BI60,Personnel!$A$3:$B$290,2,FALSE),\"\")","v":"Equipier 20"},null,null,null,null,"MS",{"$f":"IFERROR(VLOOKUP(BO60,Personnel!$A$3:$B$290,2,FALSE),\"\")","v":""},null,null,null,null,null,{"$f":"IFERROR(VLOOKUP(BU60,Personnel!$A$3:$B$290,2,FALSE),\"\")","v":""},null,null,null,null,null,{"$f":"IFERROR(VLOOKUP(CA60,Personnel!$A$3:$B$290,2,FALSE),\"\")","v":""},null,null,null,null,null,{"$f":"IFERROR(VLOOKUP(CG60,Personnel!$A$3:$B$290,2,FALSE),\"\")","v":""},null,null,null,null,null,{"$f":"IFERROR(VLOOKUP(CM60,Personnel!$A$3:$B$290,2,FALSE),\"\")","v":""},null,null,null,null,null,{"$f":"IFERROR(VLOOKUP(CS60,Personnel!$A$3:$B$290,2,FALSE),\"\")","v":""},null,null,null,null,null,{"$f":"IFERROR(VLOOKUP(CY60,Personnel!$A$3:$B$290,2,FALSE),\"\")","v":""},null,null,null,null,null,{"$f":"IFERROR(VLOOKUP(DE60,Personnel!$A$3:$B$290,2,FALSE),\"\")","v":""},null,null,null,null,null,{"$f":"IFERROR(VLOOKUP(DK60,Personnel!$A$3:$B$290,2,FALSE),\"\")","v":""},null,null,null,null,null,{"$f":"IFERROR(VLOOKUP(DQ60,Personnel!$A$3:$B$290,2,FALSE),\"\")","v":""},null,null,null,null,null,{"$f":"IFERROR(VLOOKUP(DW60,Personnel!$A$3:$B$290,2,FALSE),\"\")","v":""},null,null,null,null,null,{"$f":"IFERROR(VLOOKUP(EC60,Personnel!$A$3:$B$290,2,FALSE),\"\")","v":""},null,null,null,null,null,{"$f":"IFERROR(VLOOKUP(EI60,Personnel!$A$3:$B$290,2,FALSE),\"\")","v":""},null,null,null,null,null,{"$f":"IFERROR(VLOOKUP(EO60,Personnel!$A$3:$B$290,2,FALSE),\"\")","v":""},null,null,null,null,null,{"$f":"IFERROR(VLOOKUP(EU60,Personnel!$A$3:$B$290,2,FALSE),\"\")","v":""},null,null,null,null,null,{"$f":"IFERROR(VLOOKUP(FA60,Personnel!$A$3:$B$290,2,FALSE),\"\")","v":""},null,null,null,null,null,null,{"$f":"IFERROR(VLOOKUP(FH60,Personnel!$A$3:$B$290,2,FALSE),\"\")","v":""},null,null,null,null,null,{"$f":"IFERROR(VLOOKUP(FN60,Personnel!$A$3:$B$290,2,FALSE),\"\")","v":""},null,null,null,null,null,{"$f":"IFERROR(VLOOKUP(FT60,Personnel!$A$3:$B$290,2,FALSE),\"\")","v":""},null,null,null,null,null,{"$f":"IFERROR(VLOOKUP(FZ60,Personnel!$A$3:$B$290,2,FALSE),\"\")","v":""}]
[null,{"$f":"IFERROR(VLOOKUP(G61,Personnel!$A$3:$B$290,2,FALSE),\"\")","v":""},null,null,null,null,null,{"$f":"IFERROR(VLOOKUP(M61,Personnel!$A$3:$B$290,2,FALSE),\"\")","v":""},null,null,null,null,null,{"$f":"IFERROR(VLOOKUP(S61,Personnel!$A$3:$B$290,2,FALSE),\"\")","v":""},null,null,null,null,null,{"$f":"IFERROR(VLOOKUP(Y61,Personnel!$A$3:$B$290,2,FALSE),\"\")","v":""},null,null,null,null,null,{"$f":"IFERROR(VLOOKUP(AE61,Personnel!$A$3:$B$290,2,FALSE),\"\")","v":""},null,null,null,null,null,{"$f":"IFERROR(VLOOKUP(AK61,Personnel!$A$3:$B$290,2,FALSE),\"\")","v":""},null,null,null,null,null,{"$f":"IFERROR(VLOOKUP(AQ61,Personnel!$A$3:$B$290,2,FALSE),\"\")","v":""},null,null,null,null,null,{"$f":"IFERROR(VLOOKUP(AW61,Personnel!$A$3:$B$290,2,FALSE),\"\")","v":""},null,null,null,null,null,{"$f":"IFERROR(VLOOKUP(BC61,Personnel!$A$3:$B$290,2,FALSE),\"\")","v":""},null,null,null,null,null,{"$f":"IFERROR(VLOOKUP(BI61,Personnel!$A$3:$B$290,2,FALSE),\"\")","v":""},null,null,null,null,null,{"$f":"IFERROR(VLOOKUP(BO61,Personnel!$A$3:$B$290,2,FALSE),\"\")","v":""},null,null,null,null,null,{"$f":"IFERROR(VLOOKUP(BU61,Personnel!$A$3:$B$290,2,FALSE),\"\")","v":""},null,null,null,null,null,{"$f":"IFERROR(VLOOKUP(CA61,Personnel!$A$3:$B$290,2,FALSE),\"\")","v":""},null,null,null,null,null,{"$f":"IFERROR(VLOOKUP(CG61,Personnel!$A$3:$B$290,2,FALSE),\"\")","v":""},null,null,null,null,null,{"$f":"IFERROR(VLOOKUP(CM61,Personnel!$A$3:$B$290,2,FALSE),\"\")","v":""},null,null,null,null,null,{"$f":"IFERROR(VLOOKUP(CS61,Personnel!$A$3:$B$290,2,FALSE),\"\")","v":""},null,null,null,null,null,{"$f":"IFERROR(VLOOKUP(CY61,Personnel!$A$3:$B$290,2,FALSE),\"\")","v":""},null,null,null,null,null,{"$f":"IFERROR(VLOOKUP(DE61,Personnel!$A$3:$B$290,2,FALSE),\"\")","v":""},null,null,null,null,null,{"$f":"IFERROR(VLOOKUP(DK61,Personnel!$A$3:$B$290,2,FALSE),\"\")","v":""},null,null,null,null,null,{"$f":"IFERROR(VLOOKUP(DQ61,Personnel!$A$3:$B$290,2,FALSE),\"\")","v":""},null,null,null,null,null,{"$f":"IFERROR(VLOOKUP(DW61,Personnel!$A$3:$B$290,2,FALSE),\"\")","v":""},null,null,null,null,null,{"$f":"IFERROR(VLOOKUP(EC61,Personnel!$A$3:$B$290,2,FALSE),\"\")","v":""},null,null,null,null,null,{"$f":"IFERROR(VLOOKUP(EI61,Personnel!$A$3:$B$290,2,FALSE),\"\")","v":""},null,null,null,null,null,{"$f":"IFERROR(VLOOKUP(EO61,Personnel!$A$3:$B$290,2,FALSE),\"\")","v":""},null,null,null,null,null,{"$f":"IFERROR(VLOOKUP(EU61,Personnel!$A$3:$B$290,2,FALSE),\"\")","v":""},null,null,null,null,null,{"$f":"IFERROR(VLOOKUP(FA61,Personnel!$A$3:$B$290,2,FALSE),\"\")","v":""},null,null,null,null,null,null,{"$f":"IFERROR(VLOOKUP(FH61,Personnel!$A$3:$B$290,2,FALSE),\"\")","v":""},null,null,null,null,null,{"$f":"IFERROR(VLOOKUP(FN61,Personnel!$A$3:$B$290,2,FALSE),\"\")","v":""},null,null,null,null,null,{"$f":"IFERROR(VLOOKUP(FT61,Personnel!$A$3:$B$290,2,FALSE),\"\")","v":""},null,null,null,null,null,{"$f":"IFERROR(VLOOKUP(FZ61,Personnel!$A$3:$B$290,2,FALSE),\"\")","v":""}]
[null,{"$f":"IFERROR(VLOOKUP(G62,Personnel!$A$3:$B$290,2,FALSE),\"\")","v":""},null,null,null,null,null,{"$f":"IFERROR(VLOOKUP(M62,Personnel!$A$3:$B$290,2,FALSE),\"\")","v":""},null,null,null,null,null,{"$f":"IFERROR(VLOOKUP(S62,Personnel!$A$3:$B$290,2,FALSE),\"\")","v":""},null,null,null,null,null,{"$f":"IFERROR(VLOOKUP(Y62,Personnel!$A$3:$B$290,2,FALSE),\"\")","v":""},null,null,null,null,null,{"$f":"IFERROR(VLOOKUP(AE62,Personnel!$A$3:$B$290,2,FALSE),\"\")","v":""},null,null,null,null,null,{"$f":"IFERROR(VLOOKUP(AK62,Personnel!$A$3:$B$290,2,FALSE),\"\")","v":""},null,null,null,null,null,{"$f":"IFERROR(VLOOKUP(AQ62,Personnel!$A$3:$B$290,2,FALSE),\"\")","v":""},null,null,null,null,null,{"$f":"IFERROR(VLOOKUP(AW62,Personnel!$A$3:$B$290,2,FALSE),\"\")","v":""},null,null,null,null,null,{"$f":"IFERROR(VLOOKUP(BC62,Personnel!$A$3:$B$290,2,FALSE),\"\")","v":""},null,null,null,null,null,{"$f":"IFERROR(VLOOKUP(BI62,Personnel!$A$3:$B$290,2,FALSE),\"\")","v":""},null,null,null,null,null,{"$f":"IFERROR(VLOOKUP(BO62,Personnel!$A$3:$B$290,2,FALSE),\"\")","v":""},null,null,null,null,null,{"$f":"IFERROR(VLOOKUP(BU62,Personnel!$A$3:$B$290,2,FALSE),\"\")","v":""},null,null,null,null,null,{"$f":"IFERROR(VLOOKUP(CA62,Personnel!$A$3:$B$290,2,FALSE),\"\")","v":""},null,null,null,null,null,{"$f":"IFERROR(VLOOKUP(CG62,Personnel!$A$3:$B$290,2,FALSE),\"\")","v":""},null,null,null,null,null,{"$f":"IFERROR(VLOOKUP(CM62,Personnel!$A$3:$B$290,2,FALSE),\"\")","v":""},null,null,null,null,null,{"$f":"IFERROR(VLOOKUP(CS62,Personnel!$A$3:$B$290,2,FALSE),\"\")","v":""},null,null,null,null,null,{"$f":"IFERROR(VLOOKUP(CY62,Personnel!$A$3:$B$290,2,FALSE),\"\")","v":""},null,null,null,null,null,{"$f":"IFERROR(VLOOKUP(DE62,Personnel!$A$3:$B$290,2,FALSE),\"\")","v":""},null,null,null,null,null,{"$f":"IFERROR(VLOOKUP(DK62,Personnel!$A$3:$B$290,2,FALSE),\"\")","v":""},null,null,null,null,null,{"$f":"IFERROR(VLOOKUP(DQ62,Personnel!$A$3:$B$290,2,FALSE),\"\")","v":""},null,null,null,null,null,{"$f":"IFERROR(VLOOKUP(DW62,Personnel!$A$3:$B$290,2,FALSE),\"\")","v":""},null,null,null,null,null,{"$f":"IFERROR(VLOOKUP(EC62,Personnel!$A$3:$B$290,2,FALSE),\"\")","v":""},null,null,null,null,null,{"$f":"IFERROR(VLOOKUP(EI62,Personnel!$A$3:$B$290,2,FALSE),\"\")","v":""},null,null,null,null,null,{"$f":"IFERROR(VLOOKUP(EO62,Personnel!$A$3:$B$290,2,FALSE),\"\")","v":""},null,null,null,null,null,{"$f":"IFERROR(VLOOKUP(EU62,Personnel!$A$3:$B$290,2,FALSE),\"\")","v":""},null,null,null,null,null,{"$f":"IFERROR(VLOOKUP(FA62,Personnel!$A$3:$B$290,2,FALSE),\"\")","v":""},null,null,null,null,null,null,{"$f":"IFERROR(VLOOKUP(FH62,Personnel!$A$3:$B$290,2,FALSE),\"\")","v":""},null,null,null,null,null,{"$f":"IFERROR(VLOOKUP(FN62,Personnel!$A$3:$B$290,2,FALSE),\"\")","v":""},null,null,null,null,null,{"$f":"IFERROR(VLOOKUP(FT62,Personnel!$A$3:$B$290,2,FALSE),\"\")","v":""},null,null,null,null,null,{"$f":"IFERROR(VLOOKUP(FZ62,Personnel!$A$3:$B$290,2,FALSE),\"\")","v":""}]
[null,{"$f":"IFERROR(VLOOKUP(G63,Personnel!$A$3:$B$290,2,FALSE),\"\")","v":""},null,null,null,null,null,{"$f":"IFERROR(VLOOKUP(M63,Personnel!$A$3:$B$290,2,FALSE),\"\")","v":""},null,null,null,null,null,{"$f":"IFERROR(VLOOKUP(S63,Personnel!$A$3:$B$290,2,FALSE),\"\")","v":""},null,null,null,null,null,{"$f":"IFERROR(VLOOKUP(Y63,Personnel!$A$3:$B$290,2,FALSE),\"\")","v":""},null,null,null,null,null,{"$f":"IFERROR(VLOOKUP(AE63,Personnel!$A$3:$B$290,2,FALSE),\"\")","v":""},null,null,null,null,null,{"$f":"IFERROR(VLOOKUP(AK63,Personnel!$A$3:$B$290,2,FALSE),\"\")","v":""},null,null,null,null,null,{"$f":"IFERROR(VLOOKUP(AQ63,Personnel!$A$3:$B$290,2,FALSE),\"\")","v":""},null,null,null,null,null,{"$f":"IFERROR(VLOOKUP(AW63,Personnel!$A$3:$B$290,2,FALSE),\"\")","v":""},null,null,null,null,null,{"$f":"IFERROR(VLOOKUP(BC63,Personnel!$A$3:$B$290,2,FALSE),\"\")","v":""},null,null,null,null,null,{"$f":"IFERROR(VLOOKUP(BI63,Personnel!$A$3:$B$290,2,FALSE),\"\")","v":""},null,null,null,null,null,{"$f":"IFERROR(VLOOKUP(BO63,Personnel!$A$3:$B$290,2,FALSE),\"\")","v":""},null,null,null,null,null,{"$f":"IFERROR(VLOOKUP(BU63,Personnel!$A$3:$B$290,2,FALSE),\"\")","v":""},null,null,null,null,null,{"$f":"IFERROR(VLOOKUP(CA63,Personnel!$A$3:$B$290,2,FALSE),\"\")","v":""},null,null,null,null,null,{"$f":"IFERROR(VLOOKUP(CG63,Personnel!$A$3:$B$290,2,FALSE),\"\")","v":""},null,null,null,null,null,{"$f":"IFERROR(VLOOKUP(CM63,Personnel!$A$3:$B$290,2,FALSE),\"\")","v":""},null,null,null,null,null,{"$f":"IFERROR(VLOOKUP(CS63,Personnel!$A$3:$B$290,2,FALSE),\"\")","v":""},null,null,null,null,null,{"$f":"IFERROR(VLOOKUP(CY63,Personnel!$A$3:$B$290,2,FALSE),\"\")","v":""},null,null,null,null,null,{"$f":"IFERROR(VLOOKUP(DE63,Personnel!$A$3:$B$290,2,FALSE),\"\")","v":""},null,null,null,null,null,{"$f":"IFERROR(VLOOKUP(DK63,Personnel!$A$3:$B$290,2,FALSE),\"\")","v":""},null,null,null,null,null,{"$f":"IFERROR(VLOOKUP(DQ63,Personnel!$A$3:$B$290,2,FALSE),\"\")","v":""},null,null,null,null,null,{"$f":"IFERROR(VLOOKUP(DW63,Personnel!$A$3:$B$290,2,FALSE),\"\")","v":""},null,null,null,null,null,{"$f":"IFERROR(VLOOKUP(EC63,Personnel!$A$3:$B$290,2,FALSE),\"\")","v":""},null,null,null,null,null,{"$f":"IFERROR(VLOOKUP(EI63,Personnel!$A$3:$B$290,2,FALSE),\"\")","v":""},null,null,null,null,null,{"$f":"IFERROR(VLOOKUP(EO63,Personnel!$A$3:$B$290,2,FALSE),\"\")","v":""},null,null,null,null,null,{"$f":"IFERROR(VLOOKUP(EU63,Personnel!$A$3:$B$290,2,FALSE),\"\")","v":""},null,null,null,null,null,{"$f":"IFERROR(VLOOKUP(FA63,Personnel!$A$3:$B$290,2,FALSE),\"\")","v":""},null,null,null,null,null,null,{"$f":"IFERROR(VLOOKUP(FH63,Personnel!$A$3:$B$290,2,FALSE),\"\")","v":""},null,null,null,null,null,{"$f":"IFERROR(VLOOKUP(FN63,Personnel!$A$3:$B$290,2,FALSE),\"\")","v":""},null,null,null,null,null,{"$f":"IFERROR(VLOOKUP(FT63,Personnel!$A$3:$B$290,2,FALSE),\"\")","v":""},null,null,null,null,null,{"$f":"IFERROR(VLOOKUP(FZ63,Personnel!$A$3:$B$290,2,FALSE),\"\")","v":""}]
[null,{"$f":"IFERROR(VLOOKUP(G64,Personnel!$A$3:$B$290,2,FALSE),\"\")","v":""},null,null,null,null,null,{"$f":"IFERROR(VLOOKUP(M64,Personnel!$A$3:$B$290,2,FALSE),\"\")","v":""},null,null,null,null,null,{"$f":"IFERROR(VLOOKUP(S64,Personnel!$A$3:$B$290,2,FALSE),\"\")","v":""},null,null,null,null,null,{"$f":"IFERROR(VLOOKUP(Y64,Personnel!$A$3:$B$290,2,FALSE),\"\")","v":""},null,null,null,null,null,{"$f":"IFERROR(VLOOKUP(AE64,Personnel!$A$3:$B$290,2,FALSE),\"\")","v":""},null,null,null,null,null,{"$f":"IFERROR(VLOOKUP(AK64,Personnel!$A$3:$B$290,2,FALSE),\"\")","v":""},null,null,null,null,null,{"$f":"IFERROR(VLOOKUP(AQ64,Personnel!$A$3:$B$290,2,FALSE),\"\")","v":""},null,null,null,null,null,{"$f":"IFERROR(VLOOKUP(AW64,Personnel!$A$3:$B$290,2,FALSE),\"\")","v":""},null,null,null,null,null,{"$f":"IFERROR(VLOOKUP(BC64,Personnel!$A$3:$B$290,2,FALSE),\"\")","v":""},null,null,null,null,null,{"$f":"IFERROR(VLOOKUP(BI64,Personnel!$A$3:$B$290,2,FALSE),\"\")","v":""},null,null,null,null,null,{"$f":"IFERROR(VLOOKUP(BO64,Personnel!$A$3:$B$290,2,FALSE),\"\")","v":""},null,null,null,null,null,{"$f":"IFERROR(VLOOKUP(BU64,Personnel!$A$3:$B$290,2,FALSE),\"\")","v":""},null,null,null,null,null,{"$f":"IFERROR(VLOOKUP(CA64,Personnel!$A$3:$B$290,2,FALSE),\"\")","v":""},null,null,null,null,null,{"$f":"IFERROR(VLOOKUP(CG64,Personnel!$A$3:$B$290,2,FALSE),\"\")","v":""},null,null,null,null,null,{"$f":"IFERROR(VLOOKUP(CM64,Personnel!$A$3:$B$290,2,FALSE),\"\")","v":""},null,null,null,null,null,{"$f":"IFERROR(VLOOKUP(CS64,Personnel!$A$3:$B$290,2,FALSE),\"\")","v":""},null,null,null,null,null,{"$f":"IFERROR(VLOOKUP(CY64,Personnel!$A$3:$B$290,2,FALSE),\"\")","v":""},null,null,null,null,null,{"$f":"IFERROR(VLOOKUP(DE64,Personnel!$A$3:$B$290,2,FALSE),\"\")","v":""},null,null,null,null,null,{"$f":"IFERROR(VLOOKUP(DK64,Personnel!$A$3:$B$290,2,FALSE),\"\")","v":""},null,null,null,null,null,{"$f":"IFERROR(VLOOKUP(DQ64,Personnel!$A$3:$B$290,2,FALSE),\"\")","v":""},null,null,null,null,null,{"$f":"IFERROR(VLOOKUP(DW64,Personnel!$A$3:$B$290,2,FALSE),\"\")","v":""},null,null,null,null,null,{"$f":"IFERROR(VLOOKUP(EC64,Personnel!$A$3:$B$290,2,FALSE),\"\")","v":""},null,null,null,null,null,{"$f":"IFERROR(VLOOKUP(EI64,Personnel!$A$3:$B$290,2,FALSE),\"\")","v":""},null,null,null,null,null,{"$f":"IFERROR(VLOOKUP(EO64,Personnel!$A$3:$B$290,2,FALSE),\"\")","v":""},null,null,null,null,null,{"$f":"IFERROR(VLOOKUP(EU64,Personnel!$A$3:$B$290,2,FALSE),\"\")","v":""},null,null,null,null,null,{"$f":"IFERROR(VLOOKUP(FA64,Personnel!$A$3:$B$290,2,FALSE),\"\")","v":""},null,null,null,null,null,null,{"$f":"IFERROR(VLOOKUP(FH64,Personnel!$A$3:$B$290,2,FALSE),\"\")","v":""},null,null,null,null,null,{"$f":"IFERROR(VLOOKUP(FN64,Personnel!$A$3:$B$290,2,FALSE),\"\")","v":""},null,null,null,null,null,{"$f":"IFERROR(VLOOKUP(FT64,Personnel!$A$3:$B$290,2,FALSE),\"\")","v":""},null,null,null,null,null,{"$f":"IFERROR(VLOOKUP(FZ64,Personnel!$A$3:$B$290,2,FALSE),\"\")","v":""}]
["JEUDI",null,null,null,null,null,null,null,null,null,null,null,null,null,null,null,null,null,null,null,null,null,null,null,null,null,null,null,null,null,null,null,null,null,null,null,null,null,null,null,null,null,null,null,null,null,null,null,null,null,null,null,null,null,null,null,null,null,null,null,null,null,null,null,null,null,null,null,null,null,null,null,null,null,null,null,null,null,null,null,null,null,null,null,null,null,null,null,null,null,null,null,null,null,null,null,null,null,null,null,null,null,null,null,null,null,null,null,null,null,null,null,null,null,null,null,null,null,null,null,null,null,null,null,null,null,null,null,null,null,null,null,null,null,null,null,null,null,null,null,null,null,null,null,null,null,null,null,null,null,null,null,null,null,null,null,null,null,"Formation",null,null,null,null,null,"Absent",null,null,null,null,null,"Maladie / AT",null,null,null,null,null,"Congés"]
[null,null,null,null,null,null,null,null,null,null,null,null,null,null,null,null,null,null,null,null,null,null,null,null,null,null,null,null,null,null,null,null,null,null,null,null,null,null,null,null,null,null,null,null,null,null,null,null,null,null,null,null,null,null,null,null,null,null,null,null,null,null,null,null,null,null,null,null,null,null,null,null,null,null,null,null,null,null,null,null,null,null,null,null,null,null,null,null,null,null,null,null,null,null,null,null,null,null,null,null,null,null,null,null,null,null,null,null,null,null,null,null,null,null,null,null,null,null,null,null,null,null,null,null,null,null,null,null,null,null,null,null,null,null,null,null,null,null,null,null,null,null,null,null,null,null,null,null,null,null,null,null,null,null,null,null,null,null,{"$f":"IFERROR(VLOOKUP(FH66,Personnel!$A$3:$B$290,2,FALSE),\"\")","v":""},null,null,null,null,null,{"$f":"IFERROR(VLOOKUP(FN66,Personnel!$A$3:$B$290,2,FALSE),\"\")","v":""},null,null,null,null,null,{"$f":"IFERROR(VLOOKUP(FT66,Personnel!$A$3:$B$290,2,FALSE),\"\")","v":""},null,null,null,null,null,{"$f":"IFERROR(VLOOKUP(FZ66,Personnel!$A$3:$B$290,2,FALSE),\"\")","v":""}]
[null,null,null,null,null,null,null,null,null,null,null,null,null,null,null,null,null,null,null,null,null,null,null,null,null,null,null,null,null,null,null,null,null,null,null,null,null,null,null,null,null,null,null,null,null,null,null,null,null,null,null,null,null,null,null,null,null,null,null,null,null,null,null,null,null,null,null,null,null,null,null,null,null,null,null,null,null,null,null,null,null,null,null,null,null,null,null,null,null,null,null,null,null,null,null,null,null,null,null,null,null,null,null,null,null,null,null,null,null,null,null,null,null,null,null,null,null,null,null,null,null,null,null,null,null,null,null,null,null,null,null,null,null,null,null,null,null,null,null,null,null,null,null,null,null,null,null,null,null,null,null,null,null,null,null,null,null,null,{"$f":"IFERROR(VLOOKUP(FH67,Personnel!$A$3:$B$290,2,FALSE),\"\")","v":""},null,null,null,null,null,{"$f":"IFERROR(VLOOKUP(FN67,Personnel!$A$3:$B$290,2,FALSE),\"\")","v":""},null,null,null,null,null,{"$f":"IFERROR(VLOOKUP(FT67,Personnel!$A$3:$B$290,2,FALSE),\"\")","v":""},null,null,null,null,null,{"$f":"IFERROR(VLOOKUP(FZ67,Personnel!$A$3:$B$290,2,FALSE),\"\")","v":""}]
[null,null,null,null,null,null,null,null,null,null,null,null,null,null,null,null,null,null,null,null,null,null,null,null,null,null,null,null,null,null,null,null,null,null,null,null,null,null,null,null,null,null,null,null,null,null,null,null,null,null,null,null,null,null,null,null,null,null,null,null,null,null,null,null,null,null,null,null,null,null,null,null,null,null,null,null,null,null,null,null,null,null,null,null,null,null,null,null,null,null,null,null,null,null,null,null,null,null,null,null,null,null,null,null,null,null,null,null,null,null,null,null,null,null,null,null,null,null,null,null,null,null,null,null,null,null,null,null,null,null,null,null,null,null,null,null,null,null,null,null,null,null,null,null,null,null,null,null,null,null,null,null,null,null,null,null,null,null,{"$f":"IFERROR(VLOOKUP(FH68,Personnel!$A$3:$B$290,2,FALSE),\"\")","v":""},null,null,null,null,null,{"$f":"IFERROR(VLOOKUP(FN68,Personnel!$A$3:$B$290,2,FALSE),\"\")","v":""},null,null,null,null,null,{"$f":"IFERROR(VLOOKUP(FT68,Personnel!$A$3:$B$290,2,FALSE),\"\")","v":""},null,null,null,null,null,{"$f":"IFERROR(VLOOKUP(FZ68,Personnel!$A$3:$B$290,2,FALSE),\"\")","v":""}]
[null,null,null,null,null,null,null,null,null,null,null,null,null,null,null,null,null,null,null,null,null,null,null,null,null,null,null,null,null,null,null,null,null,null,null,null,null,null,null,null,null,null,null,null,null,null,null,null,null,null,null,null,null,null,null,null,null,null,null,null,null,null,null,null,null,null,null,null,null,null,null,null,null,null,null,null,null,null,null,null,null,null,null,null,null,null,null,null,null,null,null,null,null,null,null,null,null,null,null,null,null,null,null,null,null,null,null,null,null,null,null,null,null,null,null,null,null,null,null,null,null,null,null,null,null,null,null,null,null,null,null,null,null,null,null,null,null,null,null,null,null,null,null,null,null,null,null,null,null,null,null,null,null,null,null,null,null,null,{"$f":"IFERROR(VLOOKUP(FH69,Personnel!$A$3:$B$290,2,FALSE),\"\")","v":""},null,null,null,null,null,{"$f":"IFERROR(VLOOKUP(FN69,Personnel!$A$3:$B$290,2,FALSE),\"\")","v":""},null,null,null,null,null,{"$f":"IFERROR(VLOOKUP(FT69,Personnel!$A$3:$B$290,2,FALSE),\"\")","v":""},null,null,null,null,null,{"$f":"IFERROR(VLOOKUP(FZ69,Personnel!$A$3:$B$290,2,FALSE),\"\")","v":""}]
[null,null,null,null,null,null,null,null,null,null,null,null,null,null,null,null,null,null,null,null,null,null,null,null,null,null,null,null,null,null,null,null,null,null,null,null,null,null,null,null,null,null,null,null,null,null,null,null,null,null,null,null,null,null,null,null,null,null,null,null,null,null,null,null,null,null,null,null,null,null,null,null,null,null,null,null,null,null,null,null,null,null,null,null,null,null,null,null,null,null,null,null,null,null,null,null,null,null,null,null,null,null,null,null,null,null,null,null,null,null,null,null,null,null,null,null,null,null,null,null,null,null,null,null,null,null,null,null,null,null,null,null,null,null,null,null,null,null,null,null,null,null,null,null,null,null,null,null,null,null,null,null,null,null,null,null,null,null,{"$f":"IFERROR(VLOOKUP(FH70,Personnel!$A$3:$B$290,2,FALSE),\"\")","v":""},null,null,null,null,null,{"$f":"IFERROR(VLOOKUP(FN70,Personnel!$A$3:$B$290,2,FALSE),\"\")","v":""},null,null,null,null,null,{"$f":"IFERROR(VLOOKUP(FT70,Personnel!$A$3:$B$290,2,FALSE),\"\")","v":""},null,null,null,null,null,{"$f":"IFERROR(VLOOKUP(FZ70,Personnel!$A$3:$B$290,2,FALSE),\"\")","v":""}]
[null,null,null,null,null,null,null,null,null,null,null,null,null,null,null,null,null,null,null,null,null,null,null,null,null,null,null,null,null,null,null,null,null,null,null,null,null,null,null,null,null,null,null,null,null,null,null,null,null,null,null,null,null,null,null,null,null,null,null,null,null,null,null,null,null,null,null,null,null,null,null,null,null,null,null,null,null,null,null,null,null,null,null,null,null,null,null,null,null,null,null,null,null,null,null,null,null,null,null,null,null,null,null,null,null,null,null,null,null,null,null,null,null,null,null,null,null,null,null,null,null,null,null,null,null,null,null,null,null,null,null,null,null,null,null,null,null,null,null,null,null,null,null,null,null,null,null,null,null,null,null,null,null,null,null,null,null,null,{"$f":"IFERROR(VLOOKUP(FH71,Personnel!$A$3:$B$290,2,FALSE),\"\")","v":""},null,null,null,null,null,{"$f":"IFERROR(VLOOKUP(FN71,Personnel!$A$3:$B$290,2,FALSE),\"\")","v":""},null,null,null,null,null,{"$f":"IFERROR(VLOOKUP(FT71,Personnel!$A$3:$B$290,2,FALSE),\"\")","v":""},null,null,null,null,null,{"$f":"IFERROR(VLOOKUP(FZ71,Personnel!$A$3:$B$290,2,FALSE),\"\")","v":""}]
[null,null,null,null,null,null,null,null,null,null,null,null,null,null,null,null,null,null,null,null,null,null,null,null,null,null,null,null,null,null,null,null,null,null,null,null,null,null,null,null,null,null,null,null,null,null,null,null,null,null,null,null,null,null,null,null,null,null,null,null,null,null,null,null,null,null,null,null,null,null,null,null,null,null,null,null,null,null,null,null,null,null,null,null,null,null,null,null,null,null,null,null,null,null,null,null,null,null,null,null,null,null,null,null,null,null,null,null,null,null,null,null,null,null,null,null,null,null,null,null,null,null,null,null,null,null,null,null,null,null,null,null,null,null,null,null,null,null,null,null,null,null,null,null,null,null,null,null,null,null,null,null,null,null,null,null,null,null,{"$f":"IFERROR(VLOOKUP(FH72,Personnel!$A$3:$B$290,2,FALSE),\"\")","v":""},null,null,null,null,null,{"$f":"IFERROR(VLOOKUP(FN72,Personnel!$A$3:$B$290,2,FALSE),\"\")","v":""},null,null,null,null,null,{"$f":"IFERROR(VLOOKUP(FT72,Personnel!$A$3:$B$290,2,FALSE),\"\")","v":""},null,null,null,null,null,{"$f":"IFERROR(VLOOKUP(FZ72,Personnel!$A$3:$B$290,2,FALSE),\"\")","v":""}]
[null,null,null,null,null,null,null,null,null,null,null,null,null,null,null,null,null,null,null,null,null,null,null,null,null,null,null,null,null,null,null,null,null,null,null,null,null,null,null,null,null,null,null,null,null,null,null,null,null,null,null,null,null,null,null,null,null,null,null,null,null,null,null,null,null,null,null,null,null,null,null,null,null,null,null,null,null,null,null,null,null,null,null,null,null,null,null,null,null,null,null,null,null,null,null,null,null,null,null,null,null,null,null,null,null,null,null,null,null,null,null,null,null,null,null,null,null,null,null,null,null,null,null,null,null,null,null,null,null,null,null,null,null,null,null,null,null,null,null,null,null,null,null,null,null,null,null,null,null,null,null,null,null,null,null,null,null,null,{"$f":"IFERROR(VLOOKUP(FH73,Personnel!$A$3:$B$290,2,FALSE),\"\")","v":""},null,null,null,null,null,{"$f":"IFERROR(VLOOKUP(FN73,Personnel!$A$3:$B$290,2,FALSE),\"\")","v":""},null,null,null,null,null,{"$f":"IFERROR(VLOOKUP(FT73,Personnel!$A$3:$B$290,2,FALSE),\"\")","v":""},null,null,null,null,null,{"$f":"IFERROR(VLOOKUP(FZ73,Personnel!$A$3:$B$290,2,FALSE),\"\")","v":""}]
[null,null,null,null,null,null,null,null,null,null,null,null,null,null,null,null,null,null,null,null,null,null,null,null,null,null,null,null,null,null,null,null,null,null,null,null,null,null,null,null,null,null,null,null,null,null,null,null,null,null,null,null,null,null,null,null,null,null,null,null,null,null,null,null,null,null,null,null,null,null,null,null,null,null,null,null,null,null,null,null,null,null,null,null,null,null,null,null,null,null,null,null,null,null,null,null,null,null,null,null,null,null,null,null,null,null,null,null,null,null,null,null,null,null,null,null,null,null,null,null,null,null,null,null,null,null,null,null,null,null,null,null,null,null,null,null,null,null,null,null,null,null,null,null,null,null,null,null,null,null,null,null,null,null,null,null,null,null,{"$f":"IFERROR(VLOOKUP(FH74,Personnel!$A$3:$B$290,2,FALSE),\"\")","v":""},null,null,null,null,null,{"$f":"IFERROR(VLOOKUP(FN74,Personnel!$A$3:$B$290,2,FALSE),\"\")","v":""},null,null,null,null,null,{"$f":"IFERROR(VLOOKUP(FT74,Personnel!$A$3:$B$290,2,FALSE),\"\")","v":""},null,null,null,null,null,{"$f":"IFERROR(VLOOKUP(FZ74,Personnel!$A$3:$B$290,2,FALSE),\"\")","v":""}]
[null,null,null,null,null,null,null,null,null,null,null,null,null,null,null,null,null,null,null,null,null,null,null,null,null,null,null,null,null,null,null,null,null,null,null,null,null,null,null,null,null,null,null,null,null,null,null,null,null,null,null,null,null,null,null,null,null,null,null,null,null,null,null,null,null,null,null,null,null,null,null,null,null,null,null,null,null,null,null,null,null,null,null,null,null,null,null,null,null,null,null,null,null,null,null,null,null,null,null,null,null,null,null,null,null,null,null,null,null,null,null,null,null,null,null,null,null,null,null,null,null,null,null,null,null,null,null,null,null,null,null,null,null,null,null,null,null,null,null,null,null,null,null,null,null,null,null,null,null,null,null,null,null,null,null,null,null,null,{"$f":"IFERROR(VLOOKUP(FH75,Personnel!$A$3:$B$290,2,FALSE),\"\")","v":""},null,null,null,null,null,{"$f":"IFERROR(VLOOKUP(FN75,Personnel!$A$3:$B$290,2,FALSE),\"\")","v":""},null,null,null,null,null,{"$f":"IFERROR(VLOOKUP(FT75,Personnel!$A$3:$B$290,2,FALSE),\"\")","v":""},null,null,null,null,null,{"$f":"IFERROR(VLOOKUP(FZ75,Personnel!$A$3:$B$290,2,FALSE),\"\")","v":""}]
[null,null,null,null,null,null,null,null,null,null,null,null,null,null,null,null,null,null,null,null,null,null,null,null,null,null,null,null,null,null,null,null,null,null,null,null,null,null,null,null,null,null,null,null,null,null,null,null,null,null,null,null,null,null,null,null,null,null,null,null,null,null,null,null,null,null,null,null,null,null,null,null,null,null,null,null,null,null,null,null,null,null,null,null,null,null,null,null,null,null,null,null,null,null,null,null,null,null,null,null,null,null,null,null,null,null,null,null,null,null,null,null,null,null,null,null,null,null,null,null,null,null,null,null,null,null,null,null,null,null,null,null,null,null,null,null,null,null,null,null,null,null,null,null,null,null,null,null,null,null,null,null,null,null,null,null,null,null,{"$f":"IFERROR(VLOOKUP(FH76,Personnel!$A$3:$B$290,2,FALSE),\"\")","v":""},null,null,null,null,null,{"$f":"IFERROR(VLOOKUP(FN76,Personnel!$A$3:$B$290,2,FALSE),\"\")","v":""},null,null,null,null,null,{"$f":"IFERROR(VLOOKUP(FT76,Personnel!$A$3:$B$290,2,FALSE),\"\")","v":""},null,null,null,null,null,{"$f":"IFERROR(VLOOKUP(FZ76,Personnel!$A$3:$B$290,2,FALSE),\"\")","v":""}]
[null,"CAMION 1",null,null,null,null,null,"CAMION 2",null,null,null,null,null,"CAMION 3",null,null,null,null,null,"CAMION 4",null,null,null,null,null,"CAMION 5",null,null,null,null,"/","CAMION 6",null,null,null,null,null,"CAMION 7",null,null,null,null,null,"CAMION 8",null,null,null,null,null,"CAMION 9",null,null,null,null,null,"CAMION 10",null,null,null,null,null,"CAMION 11",null,null,null,null,null,"CAMION 12",null,null,null,null,null,"CAMION 13",null,null,null,null,null,"CAMION 14",null,null,null,null,null,"CAMION 15",null,null,null,null,null,"CAMION 16",null,null,null,null,null,"CAMION 17",null,null,null,null,null,"DEPOT",null,null,null,null,null,null,null,null,null,null,null,null,null,null,null,null,null,null,null,null,null,null,null,null,null,null,null,null,null,null,null,null,null,null,null,null,null,null,null,null,null,null,null,null,null,null,null,null,null,null,null,null,null,null,{"$f":"IFERROR(VLOOKUP(FH77,Personnel!$A$3:$B$290,2,FALSE),\"\")","v":""},null,null,null,null,null,{"$f":"IFERROR(VLOOKUP(FN77,Personnel!$A$3:$B$290,2,FALSE),\"\")","v":""},null,null,null,null,null,{"$f":"IFERROR(VLOOKUP(FT77,Personnel!$A$3:$B$290,2,FALSE),\"\")","v":""},null,null,null,null,null,{"$f":"IFERROR(VLOOKUP(FZ77,Personnel!$A$3:$B$290,2,FALSE),\"\")","v":""}]
[null,null,null,null,null,null,null,null,null,null,null,null,null,null,null,null,null,null,null,null,null,null,null,null,null,null,null,null,null,null,null,null,null,null,null,null,null,null,null,null,null,null,null,null,null,null,null,null,null,null,null,null,null,null,null,null,null,null,null,null,null,null,null,null,null,null,null,null,null,null,null,null,null,null,null,null,null,null,null,null,null,null,null,null,null,null,null,null,null,null,null,null,null,null,null,null,null,null,null,null,null,null,null,null,null,null,null,null,null,null,null,null,null,null,null,null,null,null,null,null,null,null,null,null,null,null,null,null,null,null,null,null,null,null,null,null,null,null,null,null,null,null,null,null,null,null,null,null,null,null,null,null,null,null,null,null,null,null,{"$f":"IFERROR(VLOOKUP(FH78,Personnel!$A$3:$B$290,2,FALSE),\"\")","v":""},null,null,null,null,null,{"$f":"IFERROR(VLOOKUP(FN78,Personnel!$A$3:$B$290,2,FALSE),\"\")","v":""},null,null,null,null,null,{"$f":"IFERROR(VLOOKUP(FT78,Personnel!$A$3:$B$290,2,FALSE),\"\")","v":""},null,null,null,null,null,{"$f":"IFERROR(VLOOKUP(FZ78,Personnel!$A$3:$B$290,2,FALSE),\"\")","v":""}]
[{"$f":"A59+1","v":"2022-11-03"},{"$f":"IFERROR(VLOOKUP(G79,Personnel!$A$3:$B$290,2,FALSE),\"\")","v":"Equipier 1"},null,null,null,null,"TN",{"$f":"IFERROR(VLOOKUP(M79,Personnel!$A$3:$B$290,2,FALSE),\"\")","v":""},null,null,null,null,null,{"$f":"IFERROR(VLOOKUP(S79,Personnel!$A$3:$B$290,2,FALSE),\"\")","v":"Equipier 3"},null,null,null,null,"VV",{"$f":"IFERROR(VLOOKUP(Y79,Personnel!$A$3:$B$290,2,FALSE),\"\")","v":""},null,null,null,null,null,{"$f":"IFERROR(VLOOKUP(AE79,Personnel!$A$3:$B$290,2,FALSE),\"\")","v":""},null,null,null,null,null,{"$f":"IFERROR(VLOOKUP(AK79,Personnel!$A$3:$B$290,2,FALSE),\"\")","v":"Equipier 13"},null,null,null,null,"SB",{"$f":"IFERROR(VLOOKUP(AQ79,Personnel!$A$3:$B$290,2,FALSE),\"\")","v":"Equipier 5"},null,null,null,null,"RT",{"$f":"IFERROR(VLOOKUP(AW79,Personnel!$A$3:$B$290,2,FALSE),\"\")","v":"Equipier 11"},null,null,null,null,"CC",{"$f":"IFERROR(VLOOKUP(BC79,Personnel!$A$3:$B$290,2,FALSE),\"\")","v":"Equipier 7"},null,null,null,null,"KL",{"$f":"IFERROR(VLOOKUP(BI79,Personnel!$A$3:$B$290,2,FALSE),\"\")","v":"Equipier 9"},null,null,null,null,"AG",{"$f":"IFERROR(VLOOKUP(BO79,Personnel!$A$3:$B$290,2,FALSE),\"\")","v":"Equipier 12"},null,null,null,null,"LB",{"$f":"IFERROR(VLOOKUP(BU79,Personnel!$A$3:$B$290,2,FALSE),\"\")","v":""},null,null,null,null,null,{"$f":"IFERROR(VLOOKUP(CA79,Personnel!$A$3:$B$290,2,FALSE),\"\")","v":""},null,null,null,null,null,{"$f":"IFERROR(VLOOKUP(CG79,Personnel!$A$3:$B$290,2,FALSE),\"\")","v":""},null,null,null,null,null,{"$f":"IFERROR(VLOOKUP(CM79,Personnel!$A$3:$B$290,2,FALSE),\"\")","v":""},null,null,null,null,null,{"$f":"IFERROR(VLOOKUP(CS79,Personnel!$A$3:$B$290,2,FALSE),\"\")","v":""},null,null,null,null,null,{"$f":"IFERROR(VLOOKUP(CY79,Personnel!$A$3:$B$290,2,FALSE),\"\")","v":""},null,null,null,null,"PF",{"$f":"IFERROR(VLOOKUP(DE79,Personnel!$A$3:$B$290,2,FALSE),\"\")","v":"Equipier 8"},null,null,null,null,"GL",{"$f":"IFERROR(VLOOKUP(DK79,Personnel!$A$3:$B$290,2,FALSE),\"\")","v":""},null,null,null,null,null,{"$f":"IFERROR(VLOOKUP(DQ79,Personnel!$A$3:$B$290,2,FALSE),\"\")","v":""},null,null,null,null,null,{"$f":"IFERROR(VLOOKUP(DW79,Personnel!$A$3:$B$290,2,FALSE),\"\")","v":""},null,null,null,null,null,{"$f":"IFERROR(VLOOKUP(EC79,Personnel!$A$3:$B$290,2,FALSE),\"\")","v":""},null,null,null,null,null,{"$f":"IFERROR(VLOOKUP(EI79,Personnel!$A$3:$B$290,2,FALSE),\"\")","v":""},null,null,null,null,null,{"$f":"IFERROR(VLOOKUP(EO79,Personnel!$A$3:$B$290,2,FALSE),\"\")","v":""},null,null,null,null,null,{"$f":"IFERROR(VLOOKUP(EU79,Personnel!$A$3:$B$290,2,FALSE),\"\")","v":""},null,null,null,null,null,{"$f":"IFERROR(VLOOKUP(FA79,Personnel!$A$3:$B$290,2,FALSE),\"\")","v":""},null,null,null,null,null,null,{"$f":"IFERROR(VLOOKUP(FH79,Personnel!$A$3:$B$290,2,FALSE),\"\")","v":""},null,null,null,null,null,{"$f":"IFERROR(VLOOKUP(FN79,Personnel!$A$3:$B$290,2,FALSE),\"\")","v":""},null,null,null,null,null,{"$f":"IFERROR(VLOOKUP(FT79,Personnel!$A$3:$B$290,2,FALSE),\"\")","v":""},null,null,null,null,null,{"$f":"IFERROR(VLOOKUP(FZ79,Personnel!$A$3:$B$290,2,FALSE),\"\")","v":""}]
[null,{"$f":"IFERROR(VLOOKUP(G80,Personnel!$A$3:$B$290,2,FALSE),\"\")","v":"Equipier 2"},null,null,null,null,"DD",{"$f":"IFERROR(VLOOKUP(M80,Personnel!$A$3:$B$290,2,FALSE),\"\")","v":""},null,null,null,null,null,{"$f":"IFERROR(VLOOKUP(S80,Personnel!$A$3:$B$290,2,FALSE),\"\")","v":"Equipier 15"},null,null,null,null,"RR",{"$f":"IFERROR(VLOOKUP(Y80,Personnel!$A$3:$B$290,2,FALSE),\"\")","v":""},null,null,null,null,null,{"$f":"IFERROR(VLOOKUP(AE80,Personnel!$A$3:$B$290,2,FALSE),\"\")","v":""},null,null,null,null,null,{"$f":"IFERROR(VLOOKUP(AK80,Personnel!$A$3:$B$290,2,FALSE),\"\")","v":"Equipier 10"},null,null,null,null,"CD",{"$f":"IFERROR(VLOOKUP(AQ80,Personnel!$A$3:$B$290,2,FALSE),\"\")","v":""},null,null,null,null,null,{"$f":"IFERROR(VLOOKUP(AW80,Personnel!$A$3:$B$290,2,FALSE),\"\")","v":"Equipier 14"},null,null,null,null,"LV",{"$f":"IFERROR(VLOOKUP(BC80,Personnel!$A$3:$B$290,2,FALSE),\"\")","v":"Equipier 6"},null,null,null,null,"DM",{"$f":"IFERROR(VLOOKUP(BI80,Personnel!$A$3:$B$290,2,FALSE),\"\")","v":"Equipier 20"},null,null,null,null,"MS",{"$f":"IFERROR(VLOOKUP(BO80,Personnel!$A$3:$B$290,2,FALSE),\"\")","v":""},null,null,null,null,null,{"$f":"IFERROR(VLOOKUP(BU80,Personnel!$A$3:$B$290,2,FALSE),\"\")","v":""},null,null,null,null,null,{"$f":"IFERROR(VLOOKUP(CA80,Personnel!$A$3:$B$290,2,FALSE),\"\")","v":""},null,null,null,null,null,{"$f":"IFERROR(VLOOKUP(CG80,Personnel!$A$3:$B$290,2,FALSE),\"\")","v":""},null,null,null,null,null,{"$f":"IFERROR(VLOOKUP(CM80,Personnel!$A$3:$B$290,2,FALSE),\"\")","v":""},null,null,null,null,null,{"$f":"IFERROR(VLOOKUP(CS80,Personnel!$A$3:$B$290,2,FALSE),\"\")","v":""},null,null,null,null,null,{"$f":"IFERROR(VLOOKUP(CY80,Personnel!$A$3:$B$290,2,FALSE),\"\")","v":""},null,null,null,null,null,{"$f":"IFERROR(VLOOKUP(DE80,Personnel!$A$3:$B$290,2,FALSE),\"\")","v":""},null,null,null,null,null,{"$f":"IFERROR(VLOOKUP(DK80,Personnel!$A$3:$B$290,2,FALSE),\"\")","v":""},null,null,null,null,null,{"$f":"IFERROR(VLOOKUP(DQ80,Personnel!$A$3:$B$290,2,FALSE),\"\")","v":""},null,null,null,null,null,{"$f":"IFERROR(VLOOKUP(DW80,Personnel!$A$3:$B$290,2,FALSE),\"\")","v":""},null,null,null,null,null,{"$f":"IFERROR(VLOOKUP(EC80,Personnel!$A$3:$B$290,2,FALSE),\"\")","v":""},null,null,null,null,null,{"$f":"IFERROR(VLOOKUP(EI80,Personnel!$A$3:$B$290,2,FALSE),\"\")","v":""},null,null,null,null,null,{"$f":"IFERROR(VLOOKUP(EO80,Personnel!$A$3:$B$290,2,FALSE),\"\")","v":""},null,null,null,null,null,{"$f":"IFERROR(VLOOKUP(EU80,Personnel!$A$3:$B$290,2,FALSE),\"\")","v":""},null,null,null,null,null,{"$f":"IFERROR(VLOOKUP(FA80,Personnel!$A$3:$B$290,2,FALSE),\"\")","v":""},null,null,null,null,null,null,{"$f":"IFERROR(VLOOKUP(FH80,Personnel!$A$3:$B$290,2,FALSE),\"\")","v":""},null,null,null,null,null,{"$f":"IFERROR(VLOOKUP(FN80,Personnel!$A$3:$B$290,2,FALSE),\"\")","v":""},null,null,null,null,null,{"$f":"IFERROR(VLOOKUP(FT80,Personnel!$A$3:$B$290,2,FALSE),\"\")","v":""},null,null,null,null,null,{"$f":"IFERROR(VLOOKUP(FZ80,Personnel!$A$3:$B$290,2,FALSE),\"\")","v":""}]
[null,{"$f":"IFERROR(VLOOKUP(G81,Personnel!$A$3:$B$290,2,FALSE),\"\")","v":""},null,null,null,null,null,{"$f":"IFERROR(VLOOKUP(M81,Personnel!$A$3:$B$290,2,FALSE),\"\")","v":""},null,null,null,null,null,{"$f":"IFERROR(VLOOKUP(S81,Personnel!$A$3:$B$290,2,FALSE),\"\")","v":""},null,null,null,null,null,{"$f":"IFERROR(VLOOKUP(Y81,Personnel!$A$3:$B$290,2,FALSE),\"\")","v":""},null,null,null,null,null,{"$f":"IFERROR(VLOOKUP(AE81,Personnel!$A$3:$B$290,2,FALSE),\"\")","v":""},null,null,null,null,null,{"$f":"IFERROR(VLOOKUP(AK81,Personnel!$A$3:$B$290,2,FALSE),\"\")","v":""},null,null,null,null,null,{"$f":"IFERROR(VLOOKUP(AQ81,Personnel!$A$3:$B$290,2,FALSE),\"\")","v":""},null,null,null,null,null,{"$f":"IFERROR(VLOOKUP(AW81,Personnel!$A$3:$B$290,2,FALSE),\"\")","v":""},null,null,null,null,null,{"$f":"IFERROR(VLOOKUP(BC81,Personnel!$A$3:$B$290,2,FALSE),\"\")","v":""},null,null,null,null,null,{"$f":"IFERROR(VLOOKUP(BI81,Personnel!$A$3:$B$290,2,FALSE),\"\")","v":""},null,null,null,null,null,{"$f":"IFERROR(VLOOKUP(BO81,Personnel!$A$3:$B$290,2,FALSE),\"\")","v":""},null,null,null,null,null,{"$f":"IFERROR(VLOOKUP(BU81,Personnel!$A$3:$B$290,2,FALSE),\"\")","v":""},null,null,null,null,null,{"$f":"IFERROR(VLOOKUP(CA81,Personnel!$A$3:$B$290,2,FALSE),\"\")","v":""},null,null,null,null,null,{"$f":"IFERROR(VLOOKUP(CG81,Personnel!$A$3:$B$290,2,FALSE),\"\")","v":""},null,null,null,null,null,{"$f":"IFERROR(VLOOKUP(CM81,Personnel!$A$3:$B$290,2,FALSE),\"\")","v":""},null,null,null,null,null,{"$f":"IFERROR(VLOOKUP(CS81,Personnel!$A$3:$B$290,2,FALSE),\"\")","v":""},null,null,null,null,null,{"$f":"IFERROR(VLOOKUP(CY81,Personnel!$A$3:$B$290,2,FALSE),\"\")","v":""},null,null,null,null,null,{"$f":"IFERROR(VLOOKUP(DE81,Personnel!$A$3:$B$290,2,FALSE),\"\")","v":""},null,null,null,null,null,{"$f":"IFERROR(VLOOKUP(DK81,Personnel!$A$3:$B$290,2,FALSE),\"\")","v":""},null,null,null,null,null,{"$f":"IFERROR(VLOOKUP(DQ81,Personnel!$A$3:$B$290,2,FALSE),\"\")","v":""},null,null,null,null,null,{"$f":"IFERROR(VLOOKUP(DW81,Personnel!$A$3:$B$290,2,FALSE),\"\")","v":""},null,null,null,null,null,{"$f":"IFERROR(VLOOKUP(EC81,Personnel!$A$3:$B$290,2,FALSE),\"\")","v":""},null,null,null,null,null,{"$f":"IFERROR(VLOOKUP(EI81,Personnel!$A$3:$B$290,2,FALSE),\"\")","v":""},null,null,null,null,null,{"$f":"IFERROR(VLOOKUP(EO81,Personnel!$A$3:$B$290,2,FALSE),\"\")","v":""},null,null,null,null,null,{"$f":"IFERROR(VLOOKUP(EU81,Personnel!$A$3:$B$290,2,FALSE),\"\")","v":""},null,null,null,null,null,{"$f":"IFERROR(VLOOKUP(FA81,Personnel!$A$3:$B$290,2,FALSE),\"\")","v":""},null,null,null,null,null,null,{"$f":"IFERROR(VLOOKUP(FH81,Personnel!$A$3:$B$290,2,FALSE),\"\")","v":""},null,null,null,null,null,{"$f":"IFERROR(VLOOKUP(FN81,Personnel!$A$3:$B$290,2,FALSE),\"\")","v":""},null,null,null,null,null,{"$f":"IFERROR(VLOOKUP(FT81,Personnel!$A$3:$B$290,2,FALSE),\"\")","v":""},null,null,null,null,null,{"$f":"IFERROR(VLOOKUP(FZ81,Personnel!$A$3:$B$290,2,FALSE),\"\")","v":""}]
[null,{"$f":"IFERROR(VLOOKUP(G82,Personnel!$A$3:$B$290,2,FALSE),\"\")","v":""},null,null,null,null,null,{"$f":"IFERROR(VLOOKUP(M82,Personnel!$A$3:$B$290,2,FALSE),\"\")","v":""},null,null,null,null,null,{"$f":"IFERROR(VLOOKUP(S82,Personnel!$A$3:$B$290,2,FALSE),\"\")","v":""},null,null,null,null,null,{"$f":"IFERROR(VLOOKUP(Y82,Personnel!$A$3:$B$290,2,FALSE),\"\")","v":""},null,null,null,null,null,{"$f":"IFERROR(VLOOKUP(AE82,Personnel!$A$3:$B$290,2,FALSE),\"\")","v":""},null,null,null,null,null,{"$f":"IFERROR(VLOOKUP(AK82,Personnel!$A$3:$B$290,2,FALSE),\"\")","v":""},null,null,null,null,null,{"$f":"IFERROR(VLOOKUP(AQ82,Personnel!$A$3:$B$290,2,FALSE),\"\")","v":""},null,null,null,null,null,{"$f":"IFERROR(VLOOKUP(AW82,Personnel!$A$3:$B$290,2,FALSE),\"\")","v":""},null,null,null,null,null,{"$f":"IFERROR(VLOOKUP(BC82,Personnel!$A$3:$B$290,2,FALSE),\"\")","v":""},null,null,null,null,null,{"$f":"IFERROR(VLOOKUP(BI82,Personnel!$A$3:$B$290,2,FALSE),\"\")","v":""},null,null,null,null,null,{"$f":"IFERROR(VLOOKUP(BO82,Personnel!$A$3:$B$290,2,FALSE),\"\")","v":""},null,null,null,null,null,{"$f":"IFERROR(VLOOKUP(BU82,Personnel!$A$3:$B$290,2,FALSE),\"\")","v":""},null,null,null,null,null,{"$f":"IFERROR(VLOOKUP(CA82,Personnel!$A$3:$B$290,2,FALSE),\"\")","v":""},null,null,null,null,null,{"$f":"IFERROR(VLOOKUP(CG82,Personnel!$A$3:$B$290,2,FALSE),\"\")","v":""},null,null,null,null,null,{"$f":"IFERROR(VLOOKUP(CM82,Personnel!$A$3:$B$290,2,FALSE),\"\")","v":""},null,null,null,null,null,{"$f":"IFERROR(VLOOKUP(CS82,Personnel!$A$3:$B$290,2,FALSE),\"\")","v":""},null,null,null,null,null,{"$f":"IFERROR(VLOOKUP(CY82,Personnel!$A$3:$B$290,2,FALSE),\"\")","v":""},null,null,null,null,null,{"$f":"IFERROR(VLOOKUP(DE82,Personnel!$A$3:$B$290,2,FALSE),\"\")","v":""},null,null,null,null,null,{"$f":"IFERROR(VLOOKUP(DK82,Personnel!$A$3:$B$290,2,FALSE),\"\")","v":""},null,null,null,null,null,{"$f":"IFERROR(VLOOKUP(DQ82,Personnel!$A$3:$B$290,2,FALSE),\"\")","v":""},null,null,null,null,null,{"$f":"IFERROR(VLOOKUP(DW82,Personnel!$A$3:$B$290,2,FALSE),\"\")","v":""},null,null,null,null,null,{"$f":"IFERROR(VLOOKUP(EC82,Personnel!$A$3:$B$290,2,FALSE),\"\")","v":""},null,null,null,null,null,{"$f":"IFERROR(VLOOKUP(EI82,Personnel!$A$3:$B$290,2,FALSE),\"\")","v":""},null,null,null,null,null,{"$f":"IFERROR(VLOOKUP(EO82,Personnel!$A$3:$B$290,2,FALSE),\"\")","v":""},null,null,null,null,null,{"$f":"IFERROR(VLOOKUP(EU82,Personnel!$A$3:$B$290,2,FALSE),\"\")","v":""},null,null,null,null,null,{"$f":"IFERROR(VLOOKUP(FA82,Personnel!$A$3:$B$290,2,FALSE),\"\")","v":""},null,null,null,null,null,null,{"$f":"IFERROR(VLOOKUP(FH82,Personnel!$A$3:$B$290,2,FALSE),\"\")","v":""},null,null,null,null,null,{"$f":"IFERROR(VLOOKUP(FN82,Personnel!$A$3:$B$290,2,FALSE),\"\")","v":""},null,null,null,null,null,{"$f":"IFERROR(VLOOKUP(FT82,Personnel!$A$3:$B$290,2,FALSE),\"\")","v":""},null,null,null,null,null,{"$f":"IFERROR(VLOOKUP(FZ82,Personnel!$A$3:$B$290,2,FALSE),\"\")","v":""}]
[null,{"$f":"IFERROR(VLOOKUP(G83,Personnel!$A$3:$B$290,2,FALSE),\"\")","v":""},null,null,null,null,null,{"$f":"IFERROR(VLOOKUP(M83,Personnel!$A$3:$B$290,2,FALSE),\"\")","v":""},null,null,null,null,null,{"$f":"IFERROR(VLOOKUP(S83,Personnel!$A$3:$B$290,2,FALSE),\"\")","v":""},null,null,null,null,null,{"$f":"IFERROR(VLOOKUP(Y83,Personnel!$A$3:$B$290,2,FALSE),\"\")","v":""},null,null,null,null,null,{"$f":"IFERROR(VLOOKUP(AE83,Personnel!$A$3:$B$290,2,FALSE),\"\")","v":""},null,null,null,null,null,{"$f":"IFERROR(VLOOKUP(AK83,Personnel!$A$3:$B$290,2,FALSE),\"\")","v":""},null,null,null,null,null,{"$f":"IFERROR(VLOOKUP(AQ83,Personnel!$A$3:$B$290,2,FALSE),\"\")","v":""},null,null,null,null,null,{"$f":"IFERROR(VLOOKUP(AW83,Personnel!$A$3:$B$290,2,FALSE),\"\")","v":""},null,null,null,null,null,{"$f":"IFERROR(VLOOKUP(BC83,Personnel!$A$3:$B$290,2,FALSE),\"\")","v":""},null,null,null,null,null,{"$f":"IFERROR(VLOOKUP(BI83,Personnel!$A$3:$B$290,2,FALSE),\"\")","v":""},null,null,null,null,null,{"$f":"IFERROR(VLOOKUP(BO83,Personnel!$A$3:$B$290,2,FALSE),\"\")","v":""},null,null,null,null,null,{"$f":"IFERROR(VLOOKUP(BU83,Personnel!$A$3:$B$290,2,FALSE),\"\")","v":""},null,null,null,null,null,{"$f":"IFERROR(VLOOKUP(CA83,Personnel!$A$3:$B$290,2,FALSE),\"\")","v":""},null,null,null,null,null,{"$f":"IFERROR(VLOOKUP(CG83,Personnel!$A$3:$B$290,2,FALSE),\"\")","v":""},null,null,null,null,null,{"$f":"IFERROR(VLOOKUP(CM83,Personnel!$A$3:$B$290,2,FALSE),\"\")","v":""},null,null,null,null,null,{"$f":"IFERROR(VLOOKUP(CS83,Personnel!$A$3:$B$290,2,FALSE),\"\")","v":""},null,null,null,null,null,{"$f":"IFERROR(VLOOKUP(CY83,Personnel!$A$3:$B$290,2,FALSE),\"\")","v":""},null,null,null,null,null,{"$f":"IFERROR(VLOOKUP(DE83,Personnel!$A$3:$B$290,2,FALSE),\"\")","v":""},null,null,null,null,null,{"$f":"IFERROR(VLOOKUP(DK83,Personnel!$A$3:$B$290,2,FALSE),\"\")","v":""},null,null,null,null,null,{"$f":"IFERROR(VLOOKUP(DQ83,Personnel!$A$3:$B$290,2,FALSE),\"\")","v":""},null,null,null,null,null,{"$f":"IFERROR(VLOOKUP(DW83,Personnel!$A$3:$B$290,2,FALSE),\"\")","v":""},null,null,null,null,null,{"$f":"IFERROR(VLOOKUP(EC83,Personnel!$A$3:$B$290,2,FALSE),\"\")","v":""},null,null,null,null,null,{"$f":"IFERROR(VLOOKUP(EI83,Personnel!$A$3:$B$290,2,FALSE),\"\")","v":""},null,null,null,null,null,{"$f":"IFERROR(VLOOKUP(EO83,Personnel!$A$3:$B$290,2,FALSE),\"\")","v":""},null,null,null,null,null,{"$f":"IFERROR(VLOOKUP(EU83,Personnel!$A$3:$B$290,2,FALSE),\"\")","v":""},null,null,null,null,null,{"$f":"IFERROR(VLOOKUP(FA83,Personnel!$A$3:$B$290,2,FALSE),\"\")","v":""},null,null,null,null,null,null,{"$f":"IFERROR(VLOOKUP(FH83,Personnel!$A$3:$B$290,2,FALSE),\"\")","v":""},null,null,null,null,null,{"$f":"IFERROR(VLOOKUP(FN83,Personnel!$A$3:$B$290,2,FALSE),\"\")","v":""},null,null,null,null,null,{"$f":"IFERROR(VLOOKUP(FT83,Personnel!$A$3:$B$290,2,FALSE),\"\")","v":""},null,null,null,null,null,{"$f":"IFERROR(VLOOKUP(FZ83,Personnel!$A$3:$B$290,2,FALSE),\"\")","v":""}]
[null,{"$f":"IFERROR(VLOOKUP(G84,Personnel!$A$3:$B$290,2,FALSE),\"\")","v":""},null,null,null,null,null,{"$f":"IFERROR(VLOOKUP(M84,Personnel!$A$3:$B$290,2,FALSE),\"\")","v":""},null,null,null,null,null,{"$f":"IFERROR(VLOOKUP(S84,Personnel!$A$3:$B$290,2,FALSE),\"\")","v":""},null,null,null,null,null,{"$f":"IFERROR(VLOOKUP(Y84,Personnel!$A$3:$B$290,2,FALSE),\"\")","v":""},null,null,null,null,null,{"$f":"IFERROR(VLOOKUP(AE84,Personnel!$A$3:$B$290,2,FALSE),\"\")","v":""},null,null,null,null,null,{"$f":"IFERROR(VLOOKUP(AK84,Personnel!$A$3:$B$290,2,FALSE),\"\")","v":""},null,null,null,null,null,{"$f":"IFERROR(VLOOKUP(AQ84,Personnel!$A$3:$B$290,2,FALSE),\"\")","v":""},null,null,null,null,null,{"$f":"IFERROR(VLOOKUP(AW84,Personnel!$A$3:$B$290,2,FALSE),\"\")","v":""},null,null,null,null,null,{"$f":"IFERROR(VLOOKUP(BC84,Personnel!$A$3:$B$290,2,FALSE),\"\")","v":""},null,null,null,null,null,{"$f":"IFERROR(VLOOKUP(BI84,Personnel!$A$3:$B$290,2,FALSE),\"\")","v":""},null,null,null,null,null,{"$f":"IFERROR(VLOOKUP(BO84,Personnel!$A$3:$B$290,2,FALSE),\"\")","v":""},null,null,null,null,null,{"$f":"IFERROR(VLOOKUP(BU84,Personnel!$A$3:$B$290,2,FALSE),\"\")","v":""},null,null,null,null,null,{"$f":"IFERROR(VLOOKUP(CA84,Personnel!$A$3:$B$290,2,FALSE),\"\")","v":""},null,null,null,null,null,{"$f":"IFERROR(VLOOKUP(CG84,Personnel!$A$3:$B$290,2,FALSE),\"\")","v":""},null,null,null,null,null,{"$f":"IFERROR(VLOOKUP(CM84,Personnel!$A$3:$B$290,2,FALSE),\"\")","v":""},null,null,null,null,null,{"$f":"IFERROR(VLOOKUP(CS84,Personnel!$A$3:$B$290,2,FALSE),\"\")","v":""},null,null,null,null,null,{"$f":"IFERROR(VLOOKUP(CY84,Personnel!$A$3:$B$290,2,FALSE),\"\")","v":""},null,null,null,null,null,{"$f":"IFERROR(VLOOKUP(DE84,Personnel!$A$3:$B$290,2,FALSE),\"\")","v":""},null,null,null,null,null,{"$f":"IFERROR(VLOOKUP(DK84,Personnel!$A$3:$B$290,2,FALSE),\"\")","v":""},null,null,null,null,null,{"$f":"IFERROR(VLOOKUP(DQ84,Personnel!$A$3:$B$290,2,FALSE),\"\")","v":""},null,null,null,null,null,{"$f":"IFERROR(VLOOKUP(DW84,Personnel!$A$3:$B$290,2,FALSE),\"\")","v":""},null,null,null,null,null,{"$f":"IFERROR(VLOOKUP(EC84,Personnel!$A$3:$B$290,2,FALSE),\"\")","v":""},null,null,null,null,null,{"$f":"IFERROR(VLOOKUP(EI84,Personnel!$A$3:$B$290,2,FALSE),\"\")","v":""},null,null,null,null,null,{"$f":"IFERROR(VLOOKUP(EO84,Personnel!$A$3:$B$290,2,FALSE),\"\")","v":""},null,null,null,null,null,{"$f":"IFERROR(VLOOKUP(EU84,Personnel!$A$3:$B$290,2,FALSE),\"\")","v":""},null,null,null,null,null,{"$f":"IFERROR(VLOOKUP(FA84,Personnel!$A$3:$B$290,2,FALSE),\"\")","v":""},null,null,null,null,null,null,{"$f":"IFERROR(VLOOKUP(FH84,Personnel!$A$3:$B$290,2,FALSE),\"\")","v":""},null,null,null,null,null,{"$f":"IFERROR(VLOOKUP(FN84,Personnel!$A$3:$B$290,2,FALSE),\"\")","v":""},null,null,null,null,null,{"$f":"IFERROR(VLOOKUP(FT84,Personnel!$A$3:$B$290,2,FALSE),\"\")","v":""},null,null,null,null,null,{"$f":"IFERROR(VLOOKUP(FZ84,Personnel!$A$3:$B$290,2,FALSE),\"\")","v":""}]
["VENDREDI",null,null,null,null,null,null,null,null,null,null,null,null,null,null,null,null,null,null,null,null,null,null,null,null,null,null,null,null,null,null,null,null,null,null,null,null,null,null,null,null,null,null,null,null,null,null,null,null,null,null,null,null,null,null,null,null,null,null,null,null,null,null,null,null,null,null,null,null,null,null,null,null,null,null,null,null,null,null,null,null,null,null,null,null,null,null,null,null,null,null,null,null,null,null,null,null,null,null,null,null,null,null,null,null,null,null,null,null,null,null,null,null,null,null,null,null,null,null,null,null,null,null,null,null,null,null,null,null,null,null,null,null,null,null,null,null,null,null,null,null,null,null,null,null,null,null,null,null,null,null,null,null,null,null,null,null,null,"Formation",null,null,null,null,null,"Absent",null,null,null,null,null,"Maladie / AT",null,null,null,null,null,"Congés"]
[null,null,null,null,null,null,null,null,null,null,null,null,null,null,null,null,null,null,null,null,null,null,null,null,null,null,null,null,null,null,null,null,null,null,null,null,null,null,null,null,null,null,null,null,null,null,null,null,null,null,null,null,null,null,null,null,null,null,null,null,null,null,null,null,null,null,null,null,null,null,null,null,null,null,null,null,null,null,null,null,null,null,null,null,null,null,null,null,null,null,null,null,null,null,null,null,null,null,null,null,null,null,null,null,null,null,null,null,null,null,null,null,null,null,null,null,null,null,null,null,null,null,null,null,null,null,null,null,null,null,null,null,null,null,null,null,null,null,null,null,null,null,null,null,null,null,null,null,null,null,null,null,null,null,null,null,null,null,{"$f":"IFERROR(VLOOKUP(FH86,Personnel!$A$3:$B$290,2,FALSE),\"\")","v":""},null,null,null,null,null,{"$f":"IFERROR(VLOOKUP(FN86,Personnel!$A$3:$B$290,2,FALSE),\"\")","v":""},null,null,null,null,null,{"$f":"IFERROR(VLOOKUP(FT86,Personnel!$A$3:$B$290,2,FALSE),\"\")","v":""},null,null,null,null,null,{"$f":"IFERROR(VLOOKUP(FZ86,Personnel!$A$3:$B$290,2,FALSE),\"\")","v":""}]
[null,null,null,null,null,null,null,null,null,null,null,null,null,null,null,null,null,null,null,null,null,null,null,null,null,null,null,null,null,null,null,null,null,null,null,null,null,null,null,null,null,null,null,null,null,null,null,null,null,null,null,null,null,null,null,null,null,null,null,null,null,null,null,null,null,null,null,null,null,null,null,null,null,null,null,null,null,null,null,null,null,null,null,null,null,null,null,null,null,null,null,null,null,null,null,null,null,null,null,null,null,null,null,null,null,null,null,null,null,null,null,null,null,null,null,null,null,null,null,null,null,null,null,null,null,null,null,null,null,null,null,null,null,null,null,null,null,null,null,null,null,null,null,null,null,null,null,null,null,null,null,null,null,null,null,null,null,null,{"$f":"IFERROR(VLOOKUP(FH87,Personnel!$A$3:$B$290,2,FALSE),\"\")","v":""},null,null,null,null,null,{"$f":"IFERROR(VLOOKUP(FN87,Personnel!$A$3:$B$290,2,FALSE),\"\")","v":""},null,null,null,null,null,{"$f":"IFERROR(VLOOKUP(FT87,Personnel!$A$3:$B$290,2,FALSE),\"\")","v":""},null,null,null,null,null,{"$f":"IFERROR(VLOOKUP(FZ87,Personnel!$A$3:$B$290,2,FALSE),\"\")","v":""}]
[null,null,null,null,null,null,null,null,null,null,null,null,null,null,null,null,null,null,null,null,null,null,null,null,null,null,null,null,null,null,null,null,null,null,null,null,null,null,null,null,null,null,null,null,null,null,null,null,null,null,null,null,null,null,null,null,null,null,null,null,null,null,null,null,null,null,null,null,null,null,null,null,null,null,null,null,null,null,null,null,null,null,null,null,null,null,null,null,null,null,null,null,null,null,null,null,null,null,null,null,null,null,null,null,null,null,null,null,null,null,null,null,null,null,null,null,null,null,null,null,null,null,null,null,null,null,null,null,null,null,null,null,null,null,null,null,null,null,null,null,null,null,null,null,null,null,null,null,null,null,null,null,null,null,null,null,null,null,{"$f":"IFERROR(VLOOKUP(FH88,Personnel!$A$3:$B$290,2,FALSE),\"\")","v":""},null,null,null,null,null,{"$f":"IFERROR(VLOOKUP(FN88,Personnel!$A$3:$B$290,2,FALSE),\"\")","v":""},null,null,null,null,null,{"$f":"IFERROR(VLOOKUP(FT88,Personnel!$A$3:$B$290,2,FALSE),\"\")","v":""},null,null,null,null,null,{"$f":"IFERROR(VLOOKUP(FZ88,Personnel!$A$3:$B$290,2,FALSE),\"\")","v":""}]
[null,null,null,null,null,null,null,null,null,null,null,null,null,null,null,null,null,null,null,null,null,null,null,null,null,null,null,null,null,null,null,null,null,null,null,null,null,null,null,null,null,null,null,null,null,null,null,null,null,null,null,null,null,null,null,null,null,null,null,null,null,null,null,null,null,null,null,null,null,null,null,null,null,null,null,null,null,null,null,null,null,null,null,null,null,null,null,null,null,null,null,null,null,null,null,null,null,null,null,null,null,null,null,null,null,null,null,null,null,null,null,null,null,null,null,null,null,null,null,null,null,null,null,null,null,null,null,null,null,null,null,null,null,null,null,null,null,null,null,null,null,null,null,null,null,null,null,null,null,null,null,null,null,null,null,null,null,null,{"$f":"IFERROR(VLOOKUP(FH89,Personnel!$A$3:$B$290,2,FALSE),\"\")","v":""},null,null,null,null,null,{"$f":"IFERROR(VLOOKUP(FN89,Personnel!$A$3:$B$290,2,FALSE),\"\")","v":""},null,null,null,null,null,{"$f":"IFERROR(VLOOKUP(FT89,Personnel!$A$3:$B$290,2,FALSE),\"\")","v":""},null,null,null,null,null,{"$f":"IFERROR(VLOOKUP(FZ89,Personnel!$A$3:$B$290,2,FALSE),\"\")","v":""}]
[null,null,null,null,null,null,null,null,null,null,null,null,null,null,null,null,null,null,null,null,null,null,null,null,null,null,null,null,null,null,null,null,null,null,null,null,null,null,null,null,null,null,null,null,null,null,null,null,null,null,null,null,null,null,null,null,null,null,null,null,null,null,null,null,null,null,null,null,null,null,null,null,null,null,null,null,null,null,null,null,null,null,null,null,null,null,null,null,null,null,null,null,null,null,null,null,null,null,null,null,null,null,null,null,null,null,null,null,null,null,null,null,null,null,null,null,null,null,null,null,null,null,null,null,null,null,null,null,null,null,null,null,null,null,null,null,null,null,null,null,null,null,null,null,null,null,null,null,null,null,null,null,null,null,null,null,null,null,{"$f":"IFERROR(VLOOKUP(FH90,Personnel!$A$3:$B$290,2,FALSE),\"\")","v":""},null,null,null,null,null,{"$f":"IFERROR(VLOOKUP(FN90,Personnel!$A$3:$B$290,2,FALSE),\"\")","v":""},null,null,null,null,null,{"$f":"IFERROR(VLOOKUP(FT90,Personnel!$A$3:$B$290,2,FALSE),\"\")","v":""},null,null,null,null,null,{"$f":"IFERROR(VLOOKUP(FZ90,Personnel!$A$3:$B$290,2,FALSE),\"\")","v":""}]
[null,null,null,null,null,null,null,null,null,null,null,null,null,null,null,null,null,null,null,null,null,null,null,null,null,null,null,null,null,null,null,null,null,null,null,null,null,null,null,null,null,null,null,null,null,null,null,null,null,null,null,null,null,null,null,null,null,null,null,null,null,null,null,null,null,null,null,null,null,null,null,null,null,null,null,null,null,null,null,null,null,null,null,null,null,null,null,null,null,null,null,null,null,null,null,null,null,null,null,null,null,null,null,null,null,null,null,null,null,null,null,null,null,null,null,null,null,null,null,null,null,null,null,null,null,null,null,null,null,null,null,null,null,null,null,null,null,null,null,null,null,null,null,null,null,null,null,null,null,null,null,null,null,null,null,null,null,null,{"$f":"IFERROR(VLOOKUP(FH91,Personnel!$A$3:$B$290,2,FALSE),\"\")","v":""},null,null,null,null,null,{"$f":"IFERROR(VLOOKUP(FN91,Personnel!$A$3:$B$290,2,FALSE),\"\")","v":""},null,null,null,null,null,{"$f":"IFERROR(VLOOKUP(FT91,Personnel!$A$3:$B$290,2,FALSE),\"\")","v":""},null,null,null,null,null,{"$f":"IFERROR(VLOOKUP(FZ91,Personnel!$A$3:$B$290,2,FALSE),\"\")","v":""}]
[null,null,null,null,null,null,null,null,null,null,null,null,null,null,null,null,null,null,null,null,null,null,null,null,null,null,null,null,null,null,null,null,null,null,null,null,null,null,null,null,null,null,null,null,null,null,null,null,null,null,null,null,null,null,null,null,null,null,null,null,null,null,null,null,null,null,null,null,null,null,null,null,null,null,null,null,null,null,null,null,null,null,null,null,null,null,null,null,null,null,null,null,null,null,null,null,null,null,null,null,null,null,null,null,null,null,null,null,null,null,null,null,null,null,null,null,null,null,null,null,null,null,null,null,null,null,null,null,null,null,null,null,null,null,null,null,null,null,null,null,null,null,null,null,null,null,null,null,null,null,null,null,null,null,null,null,null,null,{"$f":"IFERROR(VLOOKUP(FH92,Personnel!$A$3:$B$290,2,FALSE),\"\")","v":""},null,null,null,null,null,{"$f":"IFERROR(VLOOKUP(FN92,Personnel!$A$3:$B$290,2,FALSE),\"\")","v":""},null,null,null,null,null,{"$f":"IFERROR(VLOOKUP(FT92,Personnel!$A$3:$B$290,2,FALSE),\"\")","v":""},null,null,null,null,null,{"$f":"IFERROR(VLOOKUP(FZ92,Personnel!$A$3:$B$290,2,FALSE),\"\")","v":""}]
[null,null,null,null,null,null,null,null,null,null,null,null,null,null,null,null,null,null,null,null,null,null,null,null,null,null,null,null,null,null,null,null,null,null,null,null,null,null,null,null,null,null,null,null,null,null,null,null,null,null,null,null,null,null,null,null,null,null,null,null,null,null,null,null,null,null,null,null,null,null,null,null,null,null,null,null,null,null,null,null,null,null,null,null,null,null,null,null,null,null,null,null,null,null,null,null,null,null,null,null,null,null,null,null,null,null,null,null,null,null,null,null,null,null,null,null,null,null,null,null,null,null,null,null,null,null,null,null,null,null,null,null,null,null,null,null,null,null,null,null,null,null,null,null,null,null,null,null,null,null,null,null,null,null,null,null,null,null,{"$f":"IFERROR(VLOOKUP(FH93,Personnel!$A$3:$B$290,2,FALSE),\"\")","v":""},null,null,null,null,null,{"$f":"IFERROR(VLOOKUP(FN93,Personnel!$A$3:$B$290,2,FALSE),\"\")","v":""},null,null,null,null,null,{"$f":"IFERROR(VLOOKUP(FT93,Personnel!$A$3:$B$290,2,FALSE),\"\")","v":""},null,null,null,null,null,{"$f":"IFERROR(VLOOKUP(FZ93,Personnel!$A$3:$B$290,2,FALSE),\"\")","v":""}]
[null,null,null,null,null,null,null,null,null,null,null,null,null,null,null,null,null,null,null,null,null,null,null,null,null,null,null,null,null,null,null,null,null,null,null,null,null,null,null,null,null,null,null,null,null,null,null,null,null,null,null,null,null,null,null,null,null,null,null,null,null,null,null,null,null,null,null,null,null,null,null,null,null,null,null,null,null,null,null,null,null,null,null,null,null,null,null,null,null,null,null,null,null,null,null,null,null,null,null,null,null,null,null,null,null,null,null,null,null,null,null,null,null,null,null,null,null,null,null,null,null,null,null,null,null,null,null,null,null,null,null,null,null,null,null,null,null,null,null,null,null,null,null,null,null,null,null,null,null,null,null,null,null,null,null,null,null,null,{"$f":"IFERROR(VLOOKUP(FH94,Personnel!$A$3:$B$290,2,FALSE),\"\")","v":""},null,null,null,null,null,{"$f":"IFERROR(VLOOKUP(FN94,Personnel!$A$3:$B$290,2,FALSE),\"\")","v":""},null,null,null,null,null,{"$f":"IFERROR(VLOOKUP(FT94,Personnel!$A$3:$B$290,2,FALSE),\"\")","v":""},null,null,null,null,null,{"$f":"IFERROR(VLOOKUP(FZ94,Personnel!$A$3:$B$290,2,FALSE),\"\")","v":""}]
[null,null,null,null,null,null,null,null,null,null,null,null,null,null,null,null,null,null,null,null,null,null,null,null,null,null,null,null,null,null,null,null,null,null,null,null,null,null,null,null,null,null,null,null,null,null,null,null,null,null,null,null,null,null,null,null,null,null,null,null,null,null,null,null,null,null,null,null,null,null,null,null,null,null,null,null,null,null,null,null,null,null,null,null,null,null,null,null,null,null,null,null,null,null,null,null,null,null,null,null,null,null,null,null,null,null,null,null,null,null,null,null,null,null,null,null,null,null,null,null,null,null,null,null,null,null,null,null,null,null,null,null,null,null,null,null,null,null,null,null,null,null,null,null,null,null,null,null,null,null,null,null,null,null,null,null,null,null,{"$f":"IFERROR(VLOOKUP(FH95,Personnel!$A$3:$B$290,2,FALSE),\"\")","v":""},null,null,null,null,null,{"$f":"IFERROR(VLOOKUP(FN95,Personnel!$A$3:$B$290,2,FALSE),\"\")","v":""},null,null,null,null,null,{"$f":"IFERROR(VLOOKUP(FT95,Personnel!$A$3:$B$290,2,FALSE),\"\")","v":""},null,null,null,null,null,{"$f":"IFERROR(VLOOKUP(FZ95,Personnel!$A$3:$B$290,2,FALSE),\"\")","v":""}]
[null,null,null,null,null,null,null,null,null,null,null,null,null,null,null,null,null,null,null,null,null,null,null,null,null,null,null,null,null,null,null,null,null,null,null,null,null,null,null,null,null,null,null,null,null,null,null,null,null,null,null,null,null,null,null,null,null,null,null,null,null,null,null,null,null,null,null,null,null,null,null,null,null,null,null,null,null,null,null,null,null,null,null,null,null,null,null,null,null,null,null,null,null,null,null,null,null,null,null,null,null,null,null,null,null,null,null,null,null,null,null,null,null,null,null,null,null,null,null,null,null,null,null,null,null,null,null,null,null,null,null,null,null,null,null,null,null,null,null,null,null,null,null,null,null,null,null,null,null,null,null,null,null,null,null,null,null,null,{"$f":"IFERROR(VLOOKUP(FH96,Personnel!$A$3:$B$290,2,FALSE),\"\")","v":""},null,null,null,null,null,{"$f":"IFERROR(VLOOKUP(FN96,Personnel!$A$3:$B$290,2,FALSE),\"\")","v":""},null,null,null,null,null,{"$f":"IFERROR(VLOOKUP(FT96,Personnel!$A$3:$B$290,2,FALSE),\"\")","v":""},null,null,null,null,null,{"$f":"IFERROR(VLOOKUP(FZ96,Personnel!$A$3:$B$290,2,FALSE),\"\")","v":""}]
[null,"CAMION 1",null,null,null,null,null,"CAMION 2",null,null,null,null,null,"CAMION 3",null,null,null,null,null,"CAMION 4",null,null,null,null,null,"CAMION 5",null,null,null,null,"/","CAMION 6",null,null,null,null,null,"CAMION 7",null,null,null,null,null,"CAMION 8",null,null,null,null,null,"CAMION 9",null,null,null,null,null,"CAMION 10",null,null,null,null,null,"CAMION 11",null,null,null,null,null,"CAMION 12",null,null,null,null,null,"CAMION 13",null,null,null,null,null,"CAMION 14",null,null,null,null,null,"CAMION 15",null,null,null,null,null,"CAMION 16",null,null,null,null,null,"CAMION 17",null,null,null,null,null,"DEPOT",null,null,null,null,null,null,null,null,null,null,null,null,null,null,null,null,null,null,null,null,null,null,null,null,null,null,null,null,null,null,null,null,null,null,null,null,null,null,null,null,null,null,null,null,null,null,null,null,null,null,null,null,null,null,{"$f":"IFERROR(VLOOKUP(FH97,Personnel!$A$3:$B$290,2,FALSE),\"\")","v":""},null,null,null,null,null,{"$f":"IFERROR(VLOOKUP(FN97,Personnel!$A$3:$B$290,2,FALSE),\"\")","v":""},null,null,null,null,null,{"$f":"IFERROR(VLOOKUP(FT97,Personnel!$A$3:$B$290,2,FALSE),\"\")","v":""},null,null,null,null,null,{"$f":"IFERROR(VLOOKUP(FZ97,Personnel!$A$3:$B$290,2,FALSE),\"\")","v":""}]
[null,null,null,null,null,null,null,null,null,null,null,null,null,null,null,null,null,null,null,null,null,null,null,null,null,null,null,null,null,null,null,null,null,null,null,null,null,null,null,null,null,null,null,null,null,null,null,null,null,null,null,null,null,null,null,null,null,null,null,null,null,null,null,null,null,null,null,null,null,null,null,null,null,null,null,null,null,null,null,null,null,null,null,null,null,null,null,null,null,null,null,null,null,null,null,null,null,null,null,null,null,null,null,null,null,null,null,null,null,null,null,null,null,null,null,null,null,null,null,null,null,null,null,null,null,null,null,null,null,null,null,null,null,null,null,null,null,null,null,null,null,null,null,null,null,null,null,null,null,null,null,null,null,null,null,null,null,null,{"$f":"IFERROR(VLOOKUP(FH98,Personnel!$A$3:$B$290,2,FALSE),\"\")","v":""},null,null,null,null,null,{"$f":"IFERROR(VLOOKUP(FN98,Personnel!$A$3:$B$290,2,FALSE),\"\")","v":""},null,null,null,null,null,{"$f":"IFERROR(VLOOKUP(FT98,Personnel!$A$3:$B$290,2,FALSE),\"\")","v":""},null,null,null,null,null,{"$f":"IFERROR(VLOOKUP(FZ98,Personnel!$A$3:$B$290,2,FALSE),\"\")","v":""}]
[{"$f":"A79+1","v":"2022-11-04"},{"$f":"IFERROR(VLOOKUP(G99,Personnel!$A$3:$B$290,2,FALSE),\"\")","v":"Equipier 1"},null,null,null,null,"TN",{"$f":"IFERROR(VLOOKUP(M99,Personnel!$A$3:$B$290,2,FALSE),\"\")","v":""},null,null,null,null,null,{"$f":"IFERROR(VLOOKUP(S99,Personnel!$A$3:$B$290,2,FALSE),\"\")","v":"Equipier 3"},null,null,null,null,"VV",{"$f":"IFERROR(VLOOKUP(Y99,Personnel!$A$3:$B$290,2,FALSE),\"\")","v":""},null,null,null,null,null,{"$f":"IFERROR(VLOOKUP(AE99,Personnel!$A$3:$B$290,2,FALSE),\"\")","v":""},null,null,null,null,null,{"$f":"IFERROR(VLOOKUP(AK99,Personnel!$A$3:$B$290,2,FALSE),\"\")","v":"Equipier 13"},null,null,null,null,"SB",{"$f":"IFERROR(VLOOKUP(AQ99,Personnel!$A$3:$B$290,2,FALSE),\"\")","v":"Equipier 5"},null,null,null,null,"RT",{"$f":"IFERROR(VLOOKUP(AW99,Personnel!$A$3:$B$290,2,FALSE),\"\")","v":"Equipier 11"},null,null,null,null,"CC",{"$f":"IFERROR(VLOOKUP(BC99,Personnel!$A$3:$B$290,2,FALSE),\"\")","v":"Equipier 7"},null,null,null,null,"KL",{"$f":"IFERROR(VLOOKUP(BI99,Personnel!$A$3:$B$290,2,FALSE),\"\")","v":"Equipier 9"},null,null,null,null,"AG",{"$f":"IFERROR(VLOOKUP(BO99,Personnel!$A$3:$B$290,2,FALSE),\"\")","v":"Equipier 12"},null,null,null,null,"LB",{"$f":"IFERROR(VLOOKUP(BU99,Personnel!$A$3:$B$290,2,FALSE),\"\")","v":""},null,null,null,null,null,{"$f":"IFERROR(VLOOKUP(CA99,Personnel!$A$3:$B$290,2,FALSE),\"\")","v":""},null,null,null,null,null,{"$f":"IFERROR(VLOOKUP(CG99,Personnel!$A$3:$B$290,2,FALSE),\"\")","v":""},null,null,null,null,null,{"$f":"IFERROR(VLOOKUP(CM99,Personnel!$A$3:$B$290,2,FALSE),\"\")","v":""},null,null,null,null,null,{"$f":"IFERROR(VLOOKUP(CS99,Personnel!$A$3:$B$290,2,FALSE),\"\")","v":""},null,null,null,null,null,{"$f":"IFERROR(VLOOKUP(CY99,Personnel!$A$3:$B$290,2,FALSE),\"\")","v":""},null,null,null,null,"PF",{"$f":"IFERROR(VLOOKUP(DE99,Personnel!$A$3:$B$290,2,FALSE),\"\")","v":"Equipier 8"},null,null,null,null,"GL",{"$f":"IFERROR(VLOOKUP(DK99,Personnel!$A$3:$B$290,2,FALSE),\"\")","v":""},null,null,null,null,null,{"$f":"IFERROR(VLOOKUP(DQ99,Personnel!$A$3:$B$290,2,FALSE),\"\")","v":""},null,null,null,null,null,{"$f":"IFERROR(VLOOKUP(DW99,Personnel!$A$3:$B$290,2,FALSE),\"\")","v":""},null,null,null,null,null,{"$f":"IFERROR(VLOOKUP(EC99,Personnel!$A$3:$B$290,2,FALSE),\"\")","v":""},null,null,null,null,null,{"$f":"IFERROR(VLOOKUP(EI99,Personnel!$A$3:$B$290,2,FALSE),\"\")","v":""},null,null,null,null,null,{"$f":"IFERROR(VLOOKUP(EO99,Personnel!$A$3:$B$290,2,FALSE),\"\")","v":""},null,null,null,null,null,{"$f":"IFERROR(VLOOKUP(EU99,Personnel!$A$3:$B$290,2,FALSE),\"\")","v":""},null,null,null,null,null,{"$f":"IFERROR(VLOOKUP(FA99,Personnel!$A$3:$B$290,2,FALSE),\"\")","v":""},null,null,null,null,null,null,{"$f":"IFERROR(VLOOKUP(FH99,Personnel!$A$3:$B$290,2,FALSE),\"\")","v":""},null,null,null,null,null,{"$f":"IFERROR(VLOOKUP(FN99,Personnel!$A$3:$B$290,2,FALSE),\"\")","v":""},null,null,null,null,null,{"$f":"IFERROR(VLOOKUP(FT99,Personnel!$A$3:$B$290,2,FALSE),\"\")","v":""},null,null,null,null,null,{"$f":"IFERROR(VLOOKUP(FZ99,Personnel!$A$3:$B$290,2,FALSE),\"\")","v":""}]
[null,{"$f":"IFERROR(VLOOKUP(G100,Personnel!$A$3:$B$290,2,FALSE),\"\")","v":"Equipier 2"},null,null,null,null,"DD",{"$f":"IFERROR(VLOOKUP(M100,Personnel!$A$3:$B$290,2,FALSE),\"\")","v":""},null,null,null,null,null,{"$f":"IFERROR(VLOOKUP(S100,Personnel!$A$3:$B$290,2,FALSE),\"\")","v":"Equipier 15"},null,null,null,null,"RR",{"$f":"IFERROR(VLOOKUP(Y100,Personnel!$A$3:$B$290,2,FALSE),\"\")","v":""},null,null,null,null,null,{"$f":"IFERROR(VLOOKUP(AE100,Personnel!$A$3:$B$290,2,FALSE),\"\")","v":""},null,null,null,null,null,{"$f":"IFERROR(VLOOKUP(AK100,Personnel!$A$3:$B$290,2,FALSE),\"\")","v":"Equipier 10"},null,null,null,null,"CD",{"$f":"IFERROR(VLOOKUP(AQ100,Personnel!$A$3:$B$290,2,FALSE),\"\")","v":""},null,null,null,null,null,{"$f":"IFERROR(VLOOKUP(AW100,Personnel!$A$3:$B$290,2,FALSE),\"\")","v":"Equipier 14"},null,null,null,null,"LV",{"$f":"IFERROR(VLOOKUP(BC100,Personnel!$A$3:$B$290,2,FALSE),\"\")","v":"Equipier 6"},null,null,null,null,"DM",{"$f":"IFERROR(VLOOKUP(BI100,Personnel!$A$3:$B$290,2,FALSE),\"\")","v":"Equipier 20"},null,null,null,null,"MS",{"$f":"IFERROR(VLOOKUP(BO100,Personnel!$A$3:$B$290,2,FALSE),\"\")","v":""},null,null,null,null,null,{"$f":"IFERROR(VLOOKUP(BU100,Personnel!$A$3:$B$290,2,FALSE),\"\")","v":""},null,null,null,null,null,{"$f":"IFERROR(VLOOKUP(CA100,Personnel!$A$3:$B$290,2,FALSE),\"\")","v":""},null,null,null,null,null,{"$f":"IFERROR(VLOOKUP(CG100,Personnel!$A$3:$B$290,2,FALSE),\"\")","v":""},null,null,null,null,null,{"$f":"IFERROR(VLOOKUP(CM100,Personnel!$A$3:$B$290,2,FALSE),\"\")","v":""},null,null,null,null,null,{"$f":"IFERROR(VLOOKUP(CS100,Personnel!$A$3:$B$290,2,FALSE),\"\")","v":""},null,null,null,null,null,{"$f":"IFERROR(VLOOKUP(CY100,Personnel!$A$3:$B$290,2,FALSE),\"\")","v":""},null,null,null,null,null,{"$f":"IFERROR(VLOOKUP(DE100,Personnel!$A$3:$B$290,2,FALSE),\"\")","v":""},null,null,null,null,null,{"$f":"IFERROR(VLOOKUP(DK100,Personnel!$A$3:$B$290,2,FALSE),\"\")","v":""},null,null,null,null,null,{"$f":"IFERROR(VLOOKUP(DQ100,Personnel!$A$3:$B$290,2,FALSE),\"\")","v":""},null,null,null,null,null,{"$f":"IFERROR(VLOOKUP(DW100,Personnel!$A$3:$B$290,2,FALSE),\"\")","v":""},null,null,null,null,null,{"$f":"IFERROR(VLOOKUP(EC100,Personnel!$A$3:$B$290,2,FALSE),\"\")","v":""},null,null,null,null,null,{"$f":"IFERROR(VLOOKUP(EI100,Personnel!$A$3:$B$290,2,FALSE),\"\")","v":""},null,null,null,null,null,{"$f":"IFERROR(VLOOKUP(EO100,Personnel!$A$3:$B$290,2,FALSE),\"\")","v":""},null,null,null,null,null,{"$f":"IFERROR(VLOOKUP(EU100,Personnel!$A$3:$B$290,2,FALSE),\"\")","v":""},null,null,null,null,null,{"$f":"IFERROR(VLOOKUP(FA100,Personnel!$A$3:$B$290,2,FALSE),\"\")","v":""},null,null,null,null,null,null,{"$f":"IFERROR(VLOOKUP(FH100,Personnel!$A$3:$B$290,2,FALSE),\"\")","v":""},null,null,null,null,null,{"$f":"IFERROR(VLOOKUP(FN100,Personnel!$A$3:$B$290,2,FALSE),\"\")","v":""},null,null,null,null,null,{"$f":"IFERROR(VLOOKUP(FT100,Personnel!$A$3:$B$290,2,FALSE),\"\")","v":""},null,null,null,null,null,{"$f":"IFERROR(VLOOKUP(FZ100,Personnel!$A$3:$B$290,2,FALSE),\"\")","v":""}]
[null,{"$f":"IFERROR(VLOOKUP(G101,Personnel!$A$3:$B$290,2,FALSE),\"\")","v":""},null,null,null,null,null,{"$f":"IFERROR(VLOOKUP(M101,Personnel!$A$3:$B$290,2,FALSE),\"\")","v":""},null,null,null,null,null,{"$f":"IFERROR(VLOOKUP(S101,Personnel!$A$3:$B$290,2,FALSE),\"\")","v":""},null,null,null,null,null,{"$f":"IFERROR(VLOOKUP(Y101,Personnel!$A$3:$B$290,2,FALSE),\"\")","v":""},null,null,null,null,null,{"$f":"IFERROR(VLOOKUP(AE101,Personnel!$A$3:$B$290,2,FALSE),\"\")","v":""},null,null,null,null,null,{"$f":"IFERROR(VLOOKUP(AK101,Personnel!$A$3:$B$290,2,FALSE),\"\")","v":""},null,null,null,null,null,{"$f":"IFERROR(VLOOKUP(AQ101,Personnel!$A$3:$B$290,2,FALSE),\"\")","v":""},null,null,null,null,null,{"$f":"IFERROR(VLOOKUP(AW101,Personnel!$A$3:$B$290,2,FALSE),\"\")","v":""},null,null,null,null,null,{"$f":"IFERROR(VLOOKUP(BC101,Personnel!$A$3:$B$290,2,FALSE),\"\")","v":""},null,null,null,null,null,{"$f":"IFERROR(VLOOKUP(BI101,Personnel!$A$3:$B$290,2,FALSE),\"\")","v":""},null,null,null,null,null,{"$f":"IFERROR(VLOOKUP(BO101,Personnel!$A$3:$B$290,2,FALSE),\"\")","v":""},null,null,null,null,null,{"$f":"IFERROR(VLOOKUP(BU101,Personnel!$A$3:$B$290,2,FALSE),\"\")","v":""},null,null,null,null,null,{"$f":"IFERROR(VLOOKUP(CA101,Personnel!$A$3:$B$290,2,FALSE),\"\")","v":""},null,null,null,null,null,{"$f":"IFERROR(VLOOKUP(CG101,Personnel!$A$3:$B$290,2,FALSE),\"\")","v":""},null,null,null,null,null,{"$f":"IFERROR(VLOOKUP(CM101,Personnel!$A$3:$B$290,2,FALSE),\"\")","v":""},null,null,null,null,null,{"$f":"IFERROR(VLOOKUP(CS101,Personnel!$A$3:$B$290,2,FALSE),\"\")","v":""},null,null,null,null,null,{"$f":"IFERROR(VLOOKUP(CY101,Personnel!$A$3:$B$290,2,FALSE),\"\")","v":""},null,null,null,null,null,{"$f":"IFERROR(VLOOKUP(DE101,Personnel!$A$3:$B$290,2,FALSE),\"\")","v":""},null,null,null,null,null,{"$f":"IFERROR(VLOOKUP(DK101,Personnel!$A$3:$B$290,2,FALSE),\"\")","v":""},null,null,null,null,null,{"$f":"IFERROR(VLOOKUP(DQ101,Personnel!$A$3:$B$290,2,FALSE),\"\")","v":""},null,null,null,null,null,{"$f":"IFERROR(VLOOKUP(DW101,Personnel!$A$3:$B$290,2,FALSE),\"\")","v":""},null,null,null,null,null,{"$f":"IFERROR(VLOOKUP(EC101,Personnel!$A$3:$B$290,2,FALSE),\"\")","v":""},null,null,null,null,null,{"$f":"IFERROR(VLOOKUP(EI101,Personnel!$A$3:$B$290,2,FALSE),\"\")","v":""},null,null,null,null,null,{"$f":"IFERROR(VLOOKUP(EO101,Personnel!$A$3:$B$290,2,FALSE),\"\")","v":""},null,null,null,null,null,{"$f":"IFERROR(VLOOKUP(EU101,Personnel!$A$3:$B$290,2,FALSE),\"\")","v":""},null,null,null,null,null,{"$f":"IFERROR(VLOOKUP(FA101,Personnel!$A$3:$B$290,2,FALSE),\"\")","v":""},null,null,null,null,null,null,{"$f":"IFERROR(VLOOKUP(FH101,Personnel!$A$3:$B$290,2,FALSE),\"\")","v":""},null,null,null,null,null,{"$f":"IFERROR(VLOOKUP(FN101,Personnel!$A$3:$B$290,2,FALSE),\"\")","v":""},null,null,null,null,null,{"$f":"IFERROR(VLOOKUP(FT101,Personnel!$A$3:$B$290,2,FALSE),\"\")","v":""},null,null,null,null,null,{"$f":"IFERROR(VLOOKUP(FZ101,Personnel!$A$3:$B$290,2,FALSE),\"\")","v":""}]
[null,{"$f":"IFERROR(VLOOKUP(G102,Personnel!$A$3:$B$290,2,FALSE),\"\")","v":""},null,null,null,null,null,{"$f":"IFERROR(VLOOKUP(M102,Personnel!$A$3:$B$290,2,FALSE),\"\")","v":""},null,null,null,null,null,{"$f":"IFERROR(VLOOKUP(S102,Personnel!$A$3:$B$290,2,FALSE),\"\")","v":""},null,null,null,null,null,{"$f":"IFERROR(VLOOKUP(Y102,Personnel!$A$3:$B$290,2,FALSE),\"\")","v":""},null,null,null,null,null,{"$f":"IFERROR(VLOOKUP(AE102,Personnel!$A$3:$B$290,2,FALSE),\"\")","v":""},null,null,null,null,null,{"$f":"IFERROR(VLOOKUP(AK102,Personnel!$A$3:$B$290,2,FALSE),\"\")","v":""},null,null,null,null,null,{"$f":"IFERROR(VLOOKUP(AQ102,Personnel!$A$3:$B$290,2,FALSE),\"\")","v":""},null,null,null,null,null,{"$f":"IFERROR(VLOOKUP(AW102,Personnel!$A$3:$B$290,2,FALSE),\"\")","v":""},null,null,null,null,null,{"$f":"IFERROR(VLOOKUP(BC102,Personnel!$A$3:$B$290,2,FALSE),\"\")","v":""},null,null,null,null,null,{"$f":"IFERROR(VLOOKUP(BI102,Personnel!$A$3:$B$290,2,FALSE),\"\")","v":""},null,null,null,null,null,{"$f":"IFERROR(VLOOKUP(BO102,Personnel!$A$3:$B$290,2,FALSE),\"\")","v":""},null,null,null,null,null,{"$f":"IFERROR(VLOOKUP(BU102,Personnel!$A$3:$B$290,2,FALSE),\"\")","v":""},null,null,null,null,null,{"$f":"IFERROR(VLOOKUP(CA102,Personnel!$A$3:$B$290,2,FALSE),\"\")","v":""},null,null,null,null,null,{"$f":"IFERROR(VLOOKUP(CG102,Personnel!$A$3:$B$290,2,FALSE),\"\")","v":""},null,null,null,null,null,{"$f":"IFERROR(VLOOKUP(CM102,Personnel!$A$3:$B$290,2,FALSE),\"\")","v":""},null,null,null,null,null,{"$f":"IFERROR(VLOOKUP(CS102,Personnel!$A$3:$B$290,2,FALSE),\"\")","v":""},null,null,null,null,null,{"$f":"IFERROR(VLOOKUP(CY102,Personnel!$A$3:$B$290,2,FALSE),\"\")","v":""},null,null,null,null,null,{"$f":"IFERROR(VLOOKUP(DE102,Personnel!$A$3:$B$290,2,FALSE),\"\")","v":""},null,null,null,null,null,{"$f":"IFERROR(VLOOKUP(DK102,Personnel!$A$3:$B$290,2,FALSE),\"\")","v":""},null,null,null,null,null,{"$f":"IFERROR(VLOOKUP(DQ102,Personnel!$A$3:$B$290,2,FALSE),\"\")","v":""},null,null,null,null,null,{"$f":"IFERROR(VLOOKUP(DW102,Personnel!$A$3:$B$290,2,FALSE),\"\")","v":""},null,null,null,null,null,{"$f":"IFERROR(VLOOKUP(EC102,Personnel!$A$3:$B$290,2,FALSE),\"\")","v":""},null,null,null,null,null,{"$f":"IFERROR(VLOOKUP(EI102,Personnel!$A$3:$B$290,2,FALSE),\"\")","v":""},null,null,null,null,null,{"$f":"IFERROR(VLOOKUP(EO102,Personnel!$A$3:$B$290,2,FALSE),\"\")","v":""},null,null,null,null,null,{"$f":"IFERROR(VLOOKUP(EU102,Personnel!$A$3:$B$290,2,FALSE),\"\")","v":""},null,null,null,null,null,{"$f":"IFERROR(VLOOKUP(FA102,Personnel!$A$3:$B$290,2,FALSE),\"\")","v":""},null,null,null,null,null,null,{"$f":"IFERROR(VLOOKUP(FH102,Personnel!$A$3:$B$290,2,FALSE),\"\")","v":""},null,null,null,null,null,{"$f":"IFERROR(VLOOKUP(FN102,Personnel!$A$3:$B$290,2,FALSE),\"\")","v":""},null,null,null,null,null,{"$f":"IFERROR(VLOOKUP(FT102,Personnel!$A$3:$B$290,2,FALSE),\"\")","v":""},null,null,null,null,null,{"$f":"IFERROR(VLOOKUP(FZ102,Personnel!$A$3:$B$290,2,FALSE),\"\")","v":""}]
[null,{"$f":"IFERROR(VLOOKUP(G103,Personnel!$A$3:$B$290,2,FALSE),\"\")","v":""},null,null,null,null,null,{"$f":"IFERROR(VLOOKUP(M103,Personnel!$A$3:$B$290,2,FALSE),\"\")","v":""},null,null,null,null,null,{"$f":"IFERROR(VLOOKUP(S103,Personnel!$A$3:$B$290,2,FALSE),\"\")","v":""},null,null,null,null,null,{"$f":"IFERROR(VLOOKUP(Y103,Personnel!$A$3:$B$290,2,FALSE),\"\")","v":""},null,null,null,null,null,{"$f":"IFERROR(VLOOKUP(AE103,Personnel!$A$3:$B$290,2,FALSE),\"\")","v":""},null,null,null,null,null,{"$f":"IFERROR(VLOOKUP(AK103,Personnel!$A$3:$B$290,2,FALSE),\"\")","v":""},null,null,null,null,null,{"$f":"IFERROR(VLOOKUP(AQ103,Personnel!$A$3:$B$290,2,FALSE),\"\")","v":""},null,null,null,null,null,{"$f":"IFERROR(VLOOKUP(AW103,Personnel!$A$3:$B$290,2,FALSE),\"\")","v":""},null,null,null,null,null,{"$f":"IFERROR(VLOOKUP(BC103,Personnel!$A$3:$B$290,2,FALSE),\"\")","v":""},null,null,null,null,null,{"$f":"IFERROR(VLOOKUP(BI103,Personnel!$A$3:$B$290,2,FALSE),\"\")","v":""},null,null,null,null,null,{"$f":"IFERROR(VLOOKUP(BO103,Personnel!$A$3:$B$290,2,FALSE),\"\")","v":""},null,null,null,null,null,{"$f":"IFERROR(VLOOKUP(BU103,Personnel!$A$3:$B$290,2,FALSE),\"\")","v":""},null,null,null,null,null,{"$f":"IFERROR(VLOOKUP(CA103,Personnel!$A$3:$B$290,2,FALSE),\"\")","v":""},null,null,null,null,null,{"$f":"IFERROR(VLOOKUP(CG103,Personnel!$A$3:$B$290,2,FALSE),\"\")","v":""},null,null,null,null,null,{"$f":"IFERROR(VLOOKUP(CM103,Personnel!$A$3:$B$290,2,FALSE),\"\")","v":""},null,null,null,null,null,{"$f":"IFERROR(VLOOKUP(CS103,Personnel!$A$3:$B$290,2,FALSE),\"\")","v":""},null,null,null,null,null,{"$f":"IFERROR(VLOOKUP(CY103,Personnel!$A$3:$B$290,2,FALSE),\"\")","v":""},null,null,null,null,null,{"$f":"IFERROR(VLOOKUP(DE103,Personnel!$A$3:$B$290,2,FALSE),\"\")","v":""},null,null,null,null,null,{"$f":"IFERROR(VLOOKUP(DK103,Personnel!$A$3:$B$290,2,FALSE),\"\")","v":""},null,null,null,null,null,{"$f":"IFERROR(VLOOKUP(DQ103,Personnel!$A$3:$B$290,2,FALSE),\"\")","v":""},null,null,null,null,null,{"$f":"IFERROR(VLOOKUP(DW103,Personnel!$A$3:$B$290,2,FALSE),\"\")","v":""},null,null,null,null,null,{"$f":"IFERROR(VLOOKUP(EC103,Personnel!$A$3:$B$290,2,FALSE),\"\")","v":""},null,null,null,null,null,{"$f":"IFERROR(VLOOKUP(EI103,Personnel!$A$3:$B$290,2,FALSE),\"\")","v":""},null,null,null,null,null,{"$f":"IFERROR(VLOOKUP(EO103,Personnel!$A$3:$B$290,2,FALSE),\"\")","v":""},null,null,null,null,null,{"$f":"IFERROR(VLOOKUP(EU103,Personnel!$A$3:$B$290,2,FALSE),\"\")","v":""},null,null,null,null,null,{"$f":"IFERROR(VLOOKUP(FA103,Personnel!$A$3:$B$290,2,FALSE),\"\")","v":""},null,null,null,null,null,null,{"$f":"IFERROR(VLOOKUP(FH103,Personnel!$A$3:$B$290,2,FALSE),\"\")","v":""},null,null,null,null,null,{"$f":"IFERROR(VLOOKUP(FN103,Personnel!$A$3:$B$290,2,FALSE),\"\")","v":""},null,null,null,null,null,{"$f":"IFERROR(VLOOKUP(FT103,Personnel!$A$3:$B$290,2,FALSE),\"\")","v":""},null,null,null,null,null,{"$f":"IFERROR(VLOOKUP(FZ103,Personnel!$A$3:$B$290,2,FALSE),\"\")","v":""}]
[null,{"$f":"IFERROR(VLOOKUP(G104,Personnel!$A$3:$B$290,2,FALSE),\"\")","v":""},null,null,null,null,null,{"$f":"IFERROR(VLOOKUP(M104,Personnel!$A$3:$B$290,2,FALSE),\"\")","v":""},null,null,null,null,null,{"$f":"IFERROR(VLOOKUP(S104,Personnel!$A$3:$B$290,2,FALSE),\"\")","v":""},null,null,null,null,null,{"$f":"IFERROR(VLOOKUP(Y104,Personnel!$A$3:$B$290,2,FALSE),\"\")","v":""},null,null,null,null,null,{"$f":"IFERROR(VLOOKUP(AE104,Personnel!$A$3:$B$290,2,FALSE),\"\")","v":""},null,null,null,null,null,{"$f":"IFERROR(VLOOKUP(AK104,Personnel!$A$3:$B$290,2,FALSE),\"\")","v":""},null,null,null,null,null,{"$f":"IFERROR(VLOOKUP(AQ104,Personnel!$A$3:$B$290,2,FALSE),\"\")","v":""},null,null,null,null,null,{"$f":"IFERROR(VLOOKUP(AW104,Personnel!$A$3:$B$290,2,FALSE),\"\")","v":""},null,null,null,null,null,{"$f":"IFERROR(VLOOKUP(BC104,Personnel!$A$3:$B$290,2,FALSE),\"\")","v":""},null,null,null,null,null,{"$f":"IFERROR(VLOOKUP(BI104,Personnel!$A$3:$B$290,2,FALSE),\"\")","v":""},null,null,null,null,null,{"$f":"IFERROR(VLOOKUP(BO104,Personnel!$A$3:$B$290,2,FALSE),\"\")","v":""},null,null,null,null,null,{"$f":"IFERROR(VLOOKUP(BU104,Personnel!$A$3:$B$290,2,FALSE),\"\")","v":""},null,null,null,null,null,{"$f":"IFERROR(VLOOKUP(CA104,Personnel!$A$3:$B$290,2,FALSE),\"\")","v":""},null,null,null,null,null,{"$f":"IFERROR(VLOOKUP(CG104,Personnel!$A$3:$B$290,2,FALSE),\"\")","v":""},null,null,null,null,null,{"$f":"IFERROR(VLOOKUP(CM104,Personnel!$A$3:$B$290,2,FALSE),\"\")","v":""},null,null,null,null,null,{"$f":"IFERROR(VLOOKUP(CS104,Personnel!$A$3:$B$290,2,FALSE),\"\")","v":""},null,null,null,null,null,{"$f":"IFERROR(VLOOKUP(CY104,Personnel!$A$3:$B$290,2,FALSE),\"\")","v":""},null,null,null,null,null,{"$f":"IFERROR(VLOOKUP(DE104,Personnel!$A$3:$B$290,2,FALSE),\"\")","v":""},null,null,null,null,null,{"$f":"IFERROR(VLOOKUP(DK104,Personnel!$A$3:$B$290,2,FALSE),\"\")","v":""},null,null,null,null,null,{"$f":"IFERROR(VLOOKUP(DQ104,Personnel!$A$3:$B$290,2,FALSE),\"\")","v":""},null,null,null,null,null,{"$f":"IFERROR(VLOOKUP(DW104,Personnel!$A$3:$B$290,2,FALSE),\"\")","v":""},null,null,null,null,null,{"$f":"IFERROR(VLOOKUP(EC104,Personnel!$A$3:$B$290,2,FALSE),\"\")","v":""},null,null,null,null,null,{"$f":"IFERROR(VLOOKUP(EI104,Personnel!$A$3:$B$290,2,FALSE),\"\")","v":""},null,null,null,null,null,{"$f":"IFERROR(VLOOKUP(EO104,Personnel!$A$3:$B$290,2,FALSE),\"\")","v":""},null,null,null,null,null,{"$f":"IFERROR(VLOOKUP(EU104,Personnel!$A$3:$B$290,2,FALSE),\"\")","v":""},null,null,null,null,null,{"$f":"IFERROR(VLOOKUP(FA104,Personnel!$A$3:$B$290,2,FALSE),\"\")","v":""},null,null,null,null,null,null,{"$f":"IFERROR(VLOOKUP(FH104,Personnel!$A$3:$B$290,2,FALSE),\"\")","v":""},null,null,null,null,null,{"$f":"IFERROR(VLOOKUP(FN104,Personnel!$A$3:$B$290,2,FALSE),\"\")","v":""},null,null,null,null,null,{"$f":"IFERROR(VLOOKUP(FT104,Personnel!$A$3:$B$290,2,FALSE),\"\")","v":""},null,null,null,null,null,{"$f":"IFERROR(VLOOKUP(FZ104,Personnel!$A$3:$B$290,2,FALSE),\"\")","v":""}]
["SAMEDI",null,null,null,null,null,null,null,null,null,null,null,null,null,null,null,null,null,null,null,null,null,null,null,null,null,null,null,null,null,null,null,null,null,null,null,null,null,null,null,null,null,null,null,null,null,null,null,null,null,null,null,null,null,null,null,null,null,null,null,null,null,null,null,null,null,null,null,null,null,null,null,null,null,null,null,null,null,null,null,null,null,null,null,null,null,null,null,null,null,null,null,null,null,null,null,null,null,null,null,null,null,null,null,null,null,null,null,null,null,null,null,null,null,null,null,null,null,null,null,null,null,null,null,null,null,null,null,null,null,null,null,null,null,null,null,null,null,null,null,null,null,null,null,null,null,null,null,null,null,null,null,null,null,null,null,null,null,"Formation",null,null,null,null,null,"Absent",null,null,null,null,null,"Maladie / AT",null,null,null,null,null,"Congés"]
[null,null,null,null,null,null,null,null,null,null,null,null,null,null,null,null,null,null,null,null,null,null,null,null,null,null,null,null,null,null,null,null,null,null,null,null,null,null,null,null,null,null,null,null,null,null,null,null,null,null,null,null,null,null,null,null,null,null,null,null,null,null,null,null,null,null,null,null,null,null,null,null,null,null,null,null,null,null,null,null,null,null,null,null,null,null,null,null,null,null,null,null,null,null,null,null,null,null,null,null,null,null,null,null,null,null,null,null,null,null,null,null,null,null,null,null,null,null,null,null,null,null,null,null,null,null,null,null,null,null,null,null,null,null,null,null,null,null,null,null,null,null,null,null,null,null,null,null,null,null,null,null,null,null,null,null,null,null,{"$f":"IFERROR(VLOOKUP(FH106,Personnel!$A$3:$B$290,2,FALSE),\"\")","v":""},null,null,null,null,null,{"$f":"IFERROR(VLOOKUP(FN106,Personnel!$A$3:$B$290,2,FALSE),\"\")","v":""},null,null,null,null,null,{"$f":"IFERROR(VLOOKUP(FT106,Personnel!$A$3:$B$290,2,FALSE),\"\")","v":""},null,null,null,null,null,{"$f":"IFERROR(VLOOKUP(FZ106,Personnel!$A$3:$B$290,2,FALSE),\"\")","v":""}]
[null,null,null,null,null,null,null,null,null,null,null,null,null,null,null,null,null,null,null,null,null,null,null,null,null,null,null,null,null,null,null,null,null,null,null,null,null,null,null,null,null,null,null,null,null,null,null,null,null,null,null,null,null,null,null,null,null,null,null,null,null,null,null,null,null,null,null,null,null,null,null,null,null,null,null,null,null,null,null,null,null,null,null,null,null,null,null,null,null,null,null,null,null,null,null,null,null,null,null,null,null,null,null,null,null,null,null,null,null,null,null,null,null,null,null,null,null,null,null,null,null,null,null,null,null,null,null,null,null,null,null,null,null,null,null,null,null,null,null,null,null,null,null,null,null,null,null,null,null,null,null,null,null,null,null,null,null,null,{"$f":"IFERROR(VLOOKUP(FH107,Personnel!$A$3:$B$290,2,FALSE),\"\")","v":""},null,null,null,null,null,{"$f":"IFERROR(VLOOKUP(FN107,Personnel!$A$3:$B$290,2,FALSE),\"\")","v":""},null,null,null,null,null,{"$f":"IFERROR(VLOOKUP(FT107,Personnel!$A$3:$B$290,2,FALSE),\"\")","v":""},null,null,null,null,null,{"$f":"IFERROR(VLOOKUP(FZ107,Personnel!$A$3:$B$290,2,FALSE),\"\")","v":""}]
[null,null,null,null,null,null,null,null,null,null,null,null,null,null,null,null,null,null,null,null,null,null,null,null,null,null,null,null,null,null,null,null,null,null,null,null,null,null,null,null,null,null,null,null,null,null,null,null,null,null,null,null,null,null,null,null,null,null,null,null,null,null,null,null,null,null,null,null,null,null,null,null,null,null,null,null,null,null,null,null,null,null,null,null,null,null,null,null,null,null,null,null,null,null,null,null,null,null,null,null,null,null,null,null,null,null,null,null,null,null,null,null,null,null,null,null,null,null,null,null,null,null,null,null,null,null,null,null,null,null,null,null,null,null,null,null,null,null,null,null,null,null,null,null,null,null,null,null,null,null,null,null,null,null,null,null,null,null,{"$f":"IFERROR(VLOOKUP(FH108,Personnel!$A$3:$B$290,2,FALSE),\"\")","v":""},null,null,null,null,null,{"$f":"IFERROR(VLOOKUP(FN108,Personnel!$A$3:$B$290,2,FALSE),\"\")","v":""},null,null,null,null,null,{"$f":"IFERROR(VLOOKUP(FT108,Personnel!$A$3:$B$290,2,FALSE),\"\")","v":""},null,null,null,null,null,{"$f":"IFERROR(VLOOKUP(FZ108,Personnel!$A$3:$B$290,2,FALSE),\"\")","v":""}]
[null,null,null,null,null,null,null,null,null,null,null,null,null,null,null,null,null,null,null,null,null,null,null,null,null,null,null,null,null,null,null,null,null,null,null,null,null,null,null,null,null,null,null,null,null,null,null,null,null,null,null,null,null,null,null,null,null,null,null,null,null,null,null,null,null,null,null,null,null,null,null,null,null,null,null,null,null,null,null,null,null,null,null,null,null,null,null,null,null,null,null,null,null,null,null,null,null,null,null,null,null,null,null,null,null,null,null,null,null,null,null,null,null,null,null,null,null,null,null,null,null,null,null,null,null,null,null,null,null,null,null,null,null,null,null,null,null,null,null,null,null,null,null,null,null,null,null,null,null,null,null,null,null,null,null,null,null,null,{"$f":"IFERROR(VLOOKUP(FH109,Personnel!$A$3:$B$290,2,FALSE),\"\")","v":""},null,null,null,null,null,{"$f":"IFERROR(VLOOKUP(FN109,Personnel!$A$3:$B$290,2,FALSE),\"\")","v":""},null,null,null,null,null,{"$f":"IFERROR(VLOOKUP(FT109,Personnel!$A$3:$B$290,2,FALSE),\"\")","v":""},null,null,null,null,null,{"$f":"IFERROR(VLOOKUP(FZ109,Personnel!$A$3:$B$290,2,FALSE),\"\")","v":""}]
[null,null,null,null,null,null,null,null,null,null,null,null,null,null,null,null,null,null,null,null,null,null,null,null,null,null,null,null,null,null,null,null,null,null,null,null,null,null,null,null,null,null,null,null,null,null,null,null,null,null,null,null,null,null,null,null,null,null,null,null,null,null,null,null,null,null,null,null,null,null,null,null,null,null,null,null,null,null,null,null,null,null,null,null,null,null,null,null,null,null,null,null,null,null,null,null,null,null,null,null,null,null,null,null,null,null,null,null,null,null,null,null,null,null,null,null,null,null,null,null,null,null,null,null,null,null,null,null,null,null,null,null,null,null,null,null,null,null,null,null,null,null,null,null,null,null,null,null,null,null,null,null,null,null,null,null,null,null,{"$f":"IFERROR(VLOOKUP(FH110,Personnel!$A$3:$B$290,2,FALSE),\"\")","v":""},null,null,null,null,null,{"$f":"IFERROR(VLOOKUP(FN110,Personnel!$A$3:$B$290,2,FALSE),\"\")","v":""},null,null,null,null,null,{"$f":"IFERROR(VLOOKUP(FT110,Personnel!$A$3:$B$290,2,FALSE),\"\")","v":""},null,null,null,null,null,{"$f":"IFERROR(VLOOKUP(FZ110,Personnel!$A$3:$B$290,2,FALSE),\"\")","v":""}]
[null,null,null,null,null,null,null,null,null,null,null,null,null,null,null,null,null,null,null,null,null,null,null,null,null,null,null,null,null,null,null,null,null,null,null,null,null,null,null,null,null,null,null,null,null,null,null,null,null,null,null,null,null,null,null,null,null,null,null,null,null,null,null,null,null,null,null,null,null,null,null,null,null,null,null,null,null,null,null,null,null,null,null,null,null,null,null,null,null,null,null,null,null,null,null,null,null,null,null,null,null,null,null,null,null,null,null,null,null,null,null,null,null,null,null,null,null,null,null,null,null,null,null,null,null,null,null,null,null,null,null,null,null,null,null,null,null,null,null,null,null,null,null,null,null,null,null,null,null,null,null,null,null,null,null,null,null,null,{"$f":"IFERROR(VLOOKUP(FH111,Personnel!$A$3:$B$290,2,FALSE),\"\")","v":""},null,null,null,null,null,{"$f":"IFERROR(VLOOKUP(FN111,Personnel!$A$3:$B$290,2,FALSE),\"\")","v":""},null,null,null,null,null,{"$f":"IFERROR(VLOOKUP(FT111,Personnel!$A$3:$B$290,2,FALSE),\"\")","v":""},null,null,null,null,null,{"$f":"IFERROR(VLOOKUP(FZ111,Personnel!$A$3:$B$290,2,FALSE),\"\")","v":""}]
[null,null,null,null,null,null,null,null,null,null,null,null,null,null,null,null,null,null,null,null,null,null,null,null,null,null,null,null,null,null,null,null,null,null,null,null,null,null,null,null,null,null,null,null,null,null,null,null,null,null,null,null,null,null,null,null,null,null,null,null,null,null,null,null,null,null,null,null,null,null,null,null,null,null,null,null,null,null,null,null,null,null,null,null,null,null,null,null,null,null,null,null,null,null,null,null,null,null,null,null,null,null,null,null,null,null,null,null,null,null,null,null,null,null,null,null,null,null,null,null,null,null,null,null,null,null,null,null,null,null,null,null,null,null,null,null,null,null,null,null,null,null,null,null,null,null,null,null,null,null,null,null,null,null,null,null,null,null,{"$f":"IFERROR(VLOOKUP(FH112,Personnel!$A$3:$B$290,2,FALSE),\"\")","v":""},null,null,null,null,null,{"$f":"IFERROR(VLOOKUP(FN112,Personnel!$A$3:$B$290,2,FALSE),\"\")","v":""},null,null,null,null,null,{"$f":"IFERROR(VLOOKUP(FT112,Personnel!$A$3:$B$290,2,FALSE),\"\")","v":""},null,null,null,null,null,{"$f":"IFERROR(VLOOKUP(FZ112,Personnel!$A$3:$B$290,2,FALSE),\"\")","v":""}]
[null,null,null,null,null,null,null,null,null,null,null,null,null,null,null,null,null,null,null,null,null,null,null,null,null,null,null,null,null,null,null,null,null,null,null,null,null,null,null,null,null,null,null,null,null,null,null,null,null,null,null,null,null,null,null,null,null,null,null,null,null,null,null,null,null,null,null,null,null,null,null,null,null,null,null,null,null,null,null,null,null,null,null,null,null,null,null,null,null,null,null,null,null,null,null,null,null,null,null,null,null,null,null,null,null,null,null,null,null,null,null,null,null,null,null,null,null,null,null,null,null,null,null,null,null,null,null,null,null,null,null,null,null,null,null,null,null,null,null,null,null,null,null,null,null,null,null,null,null,null,null,null,null,null,null,null,null,null,{"$f":"IFERROR(VLOOKUP(FH113,Personnel!$A$3:$B$290,2,FALSE),\"\")","v":""},null,null,null,null,null,{"$f":"IFERROR(VLOOKUP(FN113,Personnel!$A$3:$B$290,2,FALSE),\"\")","v":""},null,null,null,null,null,{"$f":"IFERROR(VLOOKUP(FT113,Personnel!$A$3:$B$290,2,FALSE),\"\")","v":""},null,null,null,null,null,{"$f":"IFERROR(VLOOKUP(FZ113,Personnel!$A$3:$B$290,2,FALSE),\"\")","v":""}]
[null,null,null,null,null,null,null,null,null,null,null,null,null,null,null,null,null,null,null,null,null,null,null,null,null,null,null,null,null,null,null,null,null,null,null,null,null,null,null,null,null,null,null,null,null,null,null,null,null,null,null,null,null,null,null,null,null,null,null,null,null,null,null,null,null,null,null,null,null,null,null,null,null,null,null,null,null,null,null,null,null,null,null,null,null,null,null,null,null,null,null,null,null,null,null,null,null,null,null,null,null,null,null,null,null,null,null,null,null,null,null,null,null,null,null,null,null,null,null,null,null,null,null,null,null,null,null,null,null,null,null,null,null,null,null,null,null,null,null,null,null,null,null,null,null,null,null,null,null,null,null,null,null,null,null,null,null,null,{"$f":"IFERROR(VLOOKUP(FH114,Personnel!$A$3:$B$290,2,FALSE),\"\")","v":""},null,null,null,null,null,{"$f":"IFERROR(VLOOKUP(FN114,Personnel!$A$3:$B$290,2,FALSE),\"\")","v":""},null,null,null,null,null,{"$f":"IFERROR(VLOOKUP(FT114,Personnel!$A$3:$B$290,2,FALSE),\"\")","v":""},null,null,null,null,null,{"$f":"IFERROR(VLOOKUP(FZ114,Personnel!$A$3:$B$290,2,FALSE),\"\")","v":""}]
[null,null,null,null,null,null,null,null,null,null,null,null,null,null,null,null,null,null,null,null,null,null,null,null,null,null,null,null,null,null,null,null,null,null,null,null,null,null,null,null,null,null,null,null,null,null,null,null,null,null,null,null,null,null,null,null,null,null,null,null,null,null,null,null,null,null,null,null,null,null,null,null,null,null,null,null,null,null,null,null,null,null,null,null,null,null,null,null,null,null,null,null,null,null,null,null,null,null,null,null,null,null,null,null,null,null,null,null,null,null,null,null,null,null,null,null,null,null,null,null,null,null,null,null,null,null,null,null,null,null,null,null,null,null,null,null,null,null,null,null,null,null,null,null,null,null,null,null,null,null,null,null,null,null,null,null,null,null,{"$f":"IFERROR(VLOOKUP(FH115,Personnel!$A$3:$B$290,2,FALSE),\"\")","v":""},null,null,null,null,null,{"$f":"IFERROR(VLOOKUP(FN115,Personnel!$A$3:$B$290,2,FALSE),\"\")","v":""},null,null,null,null,null,{"$f":"IFERROR(VLOOKUP(FT115,Personnel!$A$3:$B$290,2,FALSE),\"\")","v":""},null,null,null,null,null,{"$f":"IFERROR(VLOOKUP(FZ115,Personnel!$A$3:$B$290,2,FALSE),\"\")","v":""}]
[null,null,null,null,null,null,null,null,null,null,null,null,null,null,null,null,null,null,null,null,null,null,null,null,null,null,null,null,null,null,null,null,null,null,null,null,null,null,null,null,null,null,null,null,null,null,null,null,null,null,null,null,null,null,null,null,null,null,null,null,null,null,null,null,null,null,null,null,null,null,null,null,null,null,null,null,null,null,null,null,null,null,null,null,null,null,null,null,null,null,null,null,null,null,null,null,null,null,null,null,null,null,null,null,null,null,null,null,null,null,null,null,null,null,null,null,null,null,null,null,null,null,null,null,null,null,null,null,null,null,null,null,null,null,null,null,null,null,null,null,null,null,null,null,null,null,null,null,null,null,null,null,null,null,null,null,null,null,{"$f":"IFERROR(VLOOKUP(FH116,Personnel!$A$3:$B$290,2,FALSE),\"\")","v":""},null,null,null,null,null,{"$f":"IFERROR(VLOOKUP(FN116,Personnel!$A$3:$B$290,2,FALSE),\"\")","v":""},null,null,null,null,null,{"$f":"IFERROR(VLOOKUP(FT116,Personnel!$A$3:$B$290,2,FALSE),\"\")","v":""},null,null,null,null,null,{"$f":"IFERROR(VLOOKUP(FZ116,Personnel!$A$3:$B$290,2,FALSE),\"\")","v":""}]
[null,"CAMION 1",null,null,null,null,null,"CAMION 2",null,null,null,null,null,"CAMION 3",null,null,null,null,null,"CAMION 4",null,null,null,null,null,"CAMION 5",null,null,null,null,"/","CAMION 6",null,null,null,null,null,"CAMION 7",null,null,null,null,null,"CAMION 8",null,null,null,null,null,"CAMION 9",null,null,null,null,null,"CAMION 10",null,null,null,null,null,"CAMION 11",null,null,null,null,null,"CAMION 12",null,null,null,null,null,"CAMION 13",null,null,null,null,null,"CAMION 14",null,null,null,null,null,"CAMION 15",null,null,null,null,null,"CAMION 16",null,null,null,null,null,"CAMION 17",null,null,null,null,null,"DEPOT",null,null,null,null,null,null,null,null,null,null,null,null,null,null,null,null,null,null,null,null,null,null,null,null,null,null,null,null,null,null,null,null,null,null,null,null,null,null,null,null,null,null,null,null,null,null,null,null,null,null,null,null,null,null,{"$f":"IFERROR(VLOOKUP(FH117,Personnel!$A$3:$B$290,2,FALSE),\"\")","v":""},null,null,null,null,null,{"$f":"IFERROR(VLOOKUP(FN117,Personnel!$A$3:$B$290,2,FALSE),\"\")","v":""},null,null,null,null,null,{"$f":"IFERROR(VLOOKUP(FT117,Personnel!$A$3:$B$290,2,FALSE),\"\")","v":""},null,null,null,null,null,{"$f":"IFERROR(VLOOKUP(FZ117,Personnel!$A$3:$B$290,2,FALSE),\"\")","v":""}]
[null,null,null,null,null,null,null,null,null,null,null,null,null,null,null,null,null,null,null,null,null,null,null,null,null,null,null,null,null,null,null,null,null,null,null,null,null,null,null,null,null,null,null,null,null,null,null,null,null,null,null,null,null,null,null,null,null,null,null,null,null,null,null,null,null,null,null,null,null,null,null,null,null,null,null,null,null,null,null,null,null,null,null,null,null,null,null,null,null,null,null,null,null,null,null,null,null,null,null,null,null,null,null,null,null,null,null,null,null,null,null,null,null,null,null,null,null,null,null,null,null,null,null,null,null,null,null,null,null,null,null,null,null,null,null,null,null,null,null,null,null,null,null,null,null,null,null,null,null,null,null,null,null,null,null,null,null,null,{"$f":"IFERROR(VLOOKUP(FH118,Personnel!$A$3:$B$290,2,FALSE),\"\")","v":""},null,null,null,null,null,{"$f":"IFERROR(VLOOKUP(FN118,Personnel!$A$3:$B$290,2,FALSE),\"\")","v":""},null,null,null,null,null,{"$f":"IFERROR(VLOOKUP(FT118,Personnel!$A$3:$B$290,2,FALSE),\"\")","v":""},null,null,null,null,null,{"$f":"IFERROR(VLOOKUP(FZ118,Personnel!$A$3:$B$290,2,FALSE),\"\")","v":""}]
[{"$f":"A99+1","v":"2022-11-05"},{"$f":"IFERROR(VLOOKUP(G119,Personnel!$A$3:$B$290,2,FALSE),\"\")","v":"Equipier 1"},null,null,null,null,"TN",{"$f":"IFERROR(VLOOKUP(M119,Personnel!$A$3:$B$290,2,FALSE),\"\")","v":""},null,null,null,null,null,{"$f":"IFERROR(VLOOKUP(S119,Personnel!$A$3:$B$290,2,FALSE),\"\")","v":"Equipier 3"},null,null,null,null,"VV",{"$f":"IFERROR(VLOOKUP(Y119,Personnel!$A$3:$B$290,2,FALSE),\"\")","v":""},null,null,null,null,null,{"$f":"IFERROR(VLOOKUP(AE119,Personnel!$A$3:$B$290,2,FALSE),\"\")","v":""},null,null,null,null,null,{"$f":"IFERROR(VLOOKUP(AK119,Personnel!$A$3:$B$290,2,FALSE),\"\")","v":"Equipier 13"},null,null,null,null,"SB",{"$f":"IFERROR(VLOOKUP(AQ119,Personnel!$A$3:$B$290,2,FALSE),\"\")","v":"Equipier 5"},null,null,null,null,"RT",{"$f":"IFERROR(VLOOKUP(AW119,Personnel!$A$3:$B$290,2,FALSE),\"\")","v":"Equipier 11"},null,null,null,null,"CC",{"$f":"IFERROR(VLOOKUP(BC119,Personnel!$A$3:$B$290,2,FALSE),\"\")","v":"Equipier 7"},null,null,null,null,"KL",{"$f":"IFERROR(VLOOKUP(BI119,Personnel!$A$3:$B$290,2,FALSE),\"\")","v":"Equipier 9"},null,null,null,null,"AG",{"$f":"IFERROR(VLOOKUP(BO119,Personnel!$A$3:$B$290,2,FALSE),\"\")","v":"Equipier 12"},null,null,null,null,"LB",{"$f":"IFERROR(VLOOKUP(BU119,Personnel!$A$3:$B$290,2,FALSE),\"\")","v":""},null,null,null,null,null,{"$f":"IFERROR(VLOOKUP(CA119,Personnel!$A$3:$B$290,2,FALSE),\"\")","v":""},null,null,null,null,null,{"$f":"IFERROR(VLOOKUP(CG119,Personnel!$A$3:$B$290,2,FALSE),\"\")","v":""},null,null,null,null,null,{"$f":"IFERROR(VLOOKUP(CM119,Personnel!$A$3:$B$290,2,FALSE),\"\")","v":""},null,null,null,null,null,{"$f":"IFERROR(VLOOKUP(CS119,Personnel!$A$3:$B$290,2,FALSE),\"\")","v":""},null,null,null,null,null,{"$f":"IFERROR(VLOOKUP(CY119,Personnel!$A$3:$B$290,2,FALSE),\"\")","v":""},null,null,null,null,"PF",{"$f":"IFERROR(VLOOKUP(DE119,Personnel!$A$3:$B$290,2,FALSE),\"\")","v":"Equipier 8"},null,null,null,null,"GL",{"$f":"IFERROR(VLOOKUP(DK119,Personnel!$A$3:$B$290,2,FALSE),\"\")","v":""},null,null,null,null,null,{"$f":"IFERROR(VLOOKUP(DQ119,Personnel!$A$3:$B$290,2,FALSE),\"\")","v":""},null,null,null,null,null,{"$f":"IFERROR(VLOOKUP(DW119,Personnel!$A$3:$B$290,2,FALSE),\"\")","v":""},null,null,null,null,null,{"$f":"IFERROR(VLOOKUP(EC119,Personnel!$A$3:$B$290,2,FALSE),\"\")","v":""},null,null,null,null,null,{"$f":"IFERROR(VLOOKUP(EI119,Personnel!$A$3:$B$290,2,FALSE),\"\")","v":""},null,null,null,null,null,{"$f":"IFERROR(VLOOKUP(EO119,Personnel!$A$3:$B$290,2,FALSE),\"\")","v":""},null,null,null,null,null,{"$f":"IFERROR(VLOOKUP(EU119,Personnel!$A$3:$B$290,2,FALSE),\"\")","v":""},null,null,null,null,null,{"$f":"IFERROR(VLOOKUP(FA119,Personnel!$A$3:$B$290,2,FALSE),\"\")","v":""},null,null,null,null,null,null,{"$f":"IFERROR(VLOOKUP(FH119,Personnel!$A$3:$B$290,2,FALSE),\"\")","v":""},null,null,null,null,null,{"$f":"IFERROR(VLOOKUP(FN119,Personnel!$A$3:$B$290,2,FALSE),\"\")","v":""},null,null,null,null,null,{"$f":"IFERROR(VLOOKUP(FT119,Personnel!$A$3:$B$290,2,FALSE),\"\")","v":""},null,null,null,null,null,{"$f":"IFERROR(VLOOKUP(FZ119,Personnel!$A$3:$B$290,2,FALSE),\"\")","v":""}]
[null,{"$f":"IFERROR(VLOOKUP(G120,Personnel!$A$3:$B$290,2,FALSE),\"\")","v":"Equipier 2"},null,null,null,null,"DD",{"$f":"IFERROR(VLOOKUP(M120,Personnel!$A$3:$B$290,2,FALSE),\"\")","v":""},null,null,null,null,null,{"$f":"IFERROR(VLOOKUP(S120,Personnel!$A$3:$B$290,2,FALSE),\"\")","v":"Equipier 15"},null,null,null,null,"RR",{"$f":"IFERROR(VLOOKUP(Y120,Personnel!$A$3:$B$290,2,FALSE),\"\")","v":""},null,null,null,null,null,{"$f":"IFERROR(VLOOKUP(AE120,Personnel!$A$3:$B$290,2,FALSE),\"\")","v":""},null,null,null,null,null,{"$f":"IFERROR(VLOOKUP(AK120,Personnel!$A$3:$B$290,2,FALSE),\"\")","v":"Equipier 10"},null,null,null,null,"CD",{"$f":"IFERROR(VLOOKUP(AQ120,Personnel!$A$3:$B$290,2,FALSE),\"\")","v":""},null,null,null,null,null,{"$f":"IFERROR(VLOOKUP(AW120,Personnel!$A$3:$B$290,2,FALSE),\"\")","v":"Equipier 14"},null,null,null,null,"LV",{"$f":"IFERROR(VLOOKUP(BC120,Personnel!$A$3:$B$290,2,FALSE),\"\")","v":"Equipier 6"},null,null,null,null,"DM",{"$f":"IFERROR(VLOOKUP(BI120,Personnel!$A$3:$B$290,2,FALSE),\"\")","v":"Equipier 20"},null,null,null,null,"MS",{"$f":"IFERROR(VLOOKUP(BO120,Personnel!$A$3:$B$290,2,FALSE),\"\")","v":""},null,null,null,null,null,{"$f":"IFERROR(VLOOKUP(BU120,Personnel!$A$3:$B$290,2,FALSE),\"\")","v":""},null,null,null,null,null,{"$f":"IFERROR(VLOOKUP(CA120,Personnel!$A$3:$B$290,2,FALSE),\"\")","v":""},null,null,null,null,null,{"$f":"IFERROR(VLOOKUP(CG120,Personnel!$A$3:$B$290,2,FALSE),\"\")","v":""},null,null,null,null,null,{"$f":"IFERROR(VLOOKUP(CM120,Personnel!$A$3:$B$290,2,FALSE),\"\")","v":""},null,null,null,null,null,{"$f":"IFERROR(VLOOKUP(CS120,Personnel!$A$3:$B$290,2,FALSE),\"\")","v":""},null,null,null,null,null,{"$f":"IFERROR(VLOOKUP(CY120,Personnel!$A$3:$B$290,2,FALSE),\"\")","v":""},null,null,null,null,null,{"$f":"IFERROR(VLOOKUP(DE120,Personnel!$A$3:$B$290,2,FALSE),\"\")","v":""},null,null,null,null,null,{"$f":"IFERROR(VLOOKUP(DK120,Personnel!$A$3:$B$290,2,FALSE),\"\")","v":""},null,null,null,null,null,{"$f":"IFERROR(VLOOKUP(DQ120,Personnel!$A$3:$B$290,2,FALSE),\"\")","v":""},null,null,null,null,null,{"$f":"IFERROR(VLOOKUP(DW120,Personnel!$A$3:$B$290,2,FALSE),\"\")","v":""},null,null,null,null,null,{"$f":"IFERROR(VLOOKUP(EC120,Personnel!$A$3:$B$290,2,FALSE),\"\")","v":""},null,null,null,null,null,{"$f":"IFERROR(VLOOKUP(EI120,Personnel!$A$3:$B$290,2,FALSE),\"\")","v":""},null,null,null,null,null,{"$f":"IFERROR(VLOOKUP(EO120,Personnel!$A$3:$B$290,2,FALSE),\"\")","v":""},null,null,null,null,null,{"$f":"IFERROR(VLOOKUP(EU120,Personnel!$A$3:$B$290,2,FALSE),\"\")","v":""},null,null,null,null,null,{"$f":"IFERROR(VLOOKUP(FA120,Personnel!$A$3:$B$290,2,FALSE),\"\")","v":""},null,null,null,null,null,null,{"$f":"IFERROR(VLOOKUP(FH120,Personnel!$A$3:$B$290,2,FALSE),\"\")","v":""},null,null,null,null,null,{"$f":"IFERROR(VLOOKUP(FN120,Personnel!$A$3:$B$290,2,FALSE),\"\")","v":""},null,null,null,null,null,{"$f":"IFERROR(VLOOKUP(FT120,Personnel!$A$3:$B$290,2,FALSE),\"\")","v":""},null,null,null,null,null,{"$f":"IFERROR(VLOOKUP(FZ120,Personnel!$A$3:$B$290,2,FALSE),\"\")","v":""}]
[null,{"$f":"IFERROR(VLOOKUP(G121,Personnel!$A$3:$B$290,2,FALSE),\"\")","v":""},null,null,null,null,null,{"$f":"IFERROR(VLOOKUP(M121,Personnel!$A$3:$B$290,2,FALSE),\"\")","v":""},null,null,null,null,null,{"$f":"IFERROR(VLOOKUP(S121,Personnel!$A$3:$B$290,2,FALSE),\"\")","v":""},null,null,null,null,null,{"$f":"IFERROR(VLOOKUP(Y121,Personnel!$A$3:$B$290,2,FALSE),\"\")","v":""},null,null,null,null,null,{"$f":"IFERROR(VLOOKUP(AE121,Personnel!$A$3:$B$290,2,FALSE),\"\")","v":""},null,null,null,null,null,{"$f":"IFERROR(VLOOKUP(AK121,Personnel!$A$3:$B$290,2,FALSE),\"\")","v":""},null,null,null,null,null,{"$f":"IFERROR(VLOOKUP(AQ121,Personnel!$A$3:$B$290,2,FALSE),\"\")","v":""},null,null,null,null,null,{"$f":"IFERROR(VLOOKUP(AW121,Personnel!$A$3:$B$290,2,FALSE),\"\")","v":""},null,null,null,null,null,{"$f":"IFERROR(VLOOKUP(BC121,Personnel!$A$3:$B$290,2,FALSE),\"\")","v":""},null,null,null,null,null,{"$f":"IFERROR(VLOOKUP(BI121,Personnel!$A$3:$B$290,2,FALSE),\"\")","v":""},null,null,null,null,null,{"$f":"IFERROR(VLOOKUP(BO121,Personnel!$A$3:$B$290,2,FALSE),\"\")","v":""},null,null,null,null,null,{"$f":"IFERROR(VLOOKUP(BU121,Personnel!$A$3:$B$290,2,FALSE),\"\")","v":""},null,null,null,null,null,{"$f":"IFERROR(VLOOKUP(CA121,Personnel!$A$3:$B$290,2,FALSE),\"\")","v":""},null,null,null,null,null,{"$f":"IFERROR(VLOOKUP(CG121,Personnel!$A$3:$B$290,2,FALSE),\"\")","v":""},null,null,null,null,null,{"$f":"IFERROR(VLOOKUP(CM121,Personnel!$A$3:$B$290,2,FALSE),\"\")","v":""},null,null,null,null,null,{"$f":"IFERROR(VLOOKUP(CS121,Personnel!$A$3:$B$290,2,FALSE),\"\")","v":""},null,null,null,null,null,{"$f":"IFERROR(VLOOKUP(CY121,Personnel!$A$3:$B$290,2,FALSE),\"\")","v":""},null,null,null,null,null,{"$f":"IFERROR(VLOOKUP(DE121,Personnel!$A$3:$B$290,2,FALSE),\"\")","v":""},null,null,null,null,null,{"$f":"IFERROR(VLOOKUP(DK121,Personnel!$A$3:$B$290,2,FALSE),\"\")","v":""},null,null,null,null,null,{"$f":"IFERROR(VLOOKUP(DQ121,Personnel!$A$3:$B$290,2,FALSE),\"\")","v":""},null,null,null,null,null,{"$f":"IFERROR(VLOOKUP(DW121,Personnel!$A$3:$B$290,2,FALSE),\"\")","v":""},null,null,null,null,null,{"$f":"IFERROR(VLOOKUP(EC121,Personnel!$A$3:$B$290,2,FALSE),\"\")","v":""},null,null,null,null,null,{"$f":"IFERROR(VLOOKUP(EI121,Personnel!$A$3:$B$290,2,FALSE),\"\")","v":""},null,null,null,null,null,{"$f":"IFERROR(VLOOKUP(EO121,Personnel!$A$3:$B$290,2,FALSE),\"\")","v":""},null,null,null,null,null,{"$f":"IFERROR(VLOOKUP(EU121,Personnel!$A$3:$B$290,2,FALSE),\"\")","v":""},null,null,null,null,null,{"$f":"IFERROR(VLOOKUP(FA121,Personnel!$A$3:$B$290,2,FALSE),\"\")","v":""},null,null,null,null,null,null,{"$f":"IFERROR(VLOOKUP(FH121,Personnel!$A$3:$B$290,2,FALSE),\"\")","v":""},null,null,null,null,null,{"$f":"IFERROR(VLOOKUP(FN121,Personnel!$A$3:$B$290,2,FALSE),\"\")","v":""},null,null,null,null,null,{"$f":"IFERROR(VLOOKUP(FT121,Personnel!$A$3:$B$290,2,FALSE),\"\")","v":""},null,null,null,null,null,{"$f":"IFERROR(VLOOKUP(FZ121,Personnel!$A$3:$B$290,2,FALSE),\"\")","v":""}]
[null,{"$f":"IFERROR(VLOOKUP(G122,Personnel!$A$3:$B$290,2,FALSE),\"\")","v":""},null,null,null,null,null,{"$f":"IFERROR(VLOOKUP(M122,Personnel!$A$3:$B$290,2,FALSE),\"\")","v":""},null,null,null,null,null,{"$f":"IFERROR(VLOOKUP(S122,Personnel!$A$3:$B$290,2,FALSE),\"\")","v":""},null,null,null,null,null,{"$f":"IFERROR(VLOOKUP(Y122,Personnel!$A$3:$B$290,2,FALSE),\"\")","v":""},null,null,null,null,null,{"$f":"IFERROR(VLOOKUP(AE122,Personnel!$A$3:$B$290,2,FALSE),\"\")","v":""},null,null,null,null,null,{"$f":"IFERROR(VLOOKUP(AK122,Personnel!$A$3:$B$290,2,FALSE),\"\")","v":""},null,null,null,null,null,{"$f":"IFERROR(VLOOKUP(AQ122,Personnel!$A$3:$B$290,2,FALSE),\"\")","v":""},null,null,null,null,null,{"$f":"IFERROR(VLOOKUP(AW122,Personnel!$A$3:$B$290,2,FALSE),\"\")","v":""},null,null,null,null,null,{"$f":"IFERROR(VLOOKUP(BC122,Personnel!$A$3:$B$290,2,FALSE),\"\")","v":""},null,null,null,null,null,{"$f":"IFERROR(VLOOKUP(BI122,Personnel!$A$3:$B$290,2,FALSE),\"\")","v":""},null,null,null,null,null,{"$f":"IFERROR(VLOOKUP(BO122,Personnel!$A$3:$B$290,2,FALSE),\"\")","v":""},null,null,null,null,null,{"$f":"IFERROR(VLOOKUP(BU122,Personnel!$A$3:$B$290,2,FALSE),\"\")","v":""},null,null,null,null,null,{"$f":"IFERROR(VLOOKUP(CA122,Personnel!$A$3:$B$290,2,FALSE),\"\")","v":""},null,null,null,null,null,{"$f":"IFERROR(VLOOKUP(CG122,Personnel!$A$3:$B$290,2,FALSE),\"\")","v":""},null,null,null,null,null,{"$f":"IFERROR(VLOOKUP(CM122,Personnel!$A$3:$B$290,2,FALSE),\"\")","v":""},null,null,null,null,null,{"$f":"IFERROR(VLOOKUP(CS122,Personnel!$A$3:$B$290,2,FALSE),\"\")","v":""},null,null,null,null,null,{"$f":"IFERROR(VLOOKUP(CY122,Personnel!$A$3:$B$290,2,FALSE),\"\")","v":""},null,null,null,null,null,{"$f":"IFERROR(VLOOKUP(DE122,Personnel!$A$3:$B$290,2,FALSE),\"\")","v":""},null,null,null,null,null,{"$f":"IFERROR(VLOOKUP(DK122,Personnel!$A$3:$B$290,2,FALSE),\"\")","v":""},null,null,null,null,null,{"$f":"IFERROR(VLOOKUP(DQ122,Personnel!$A$3:$B$290,2,FALSE),\"\")","v":""},null,null,null,null,null,{"$f":"IFERROR(VLOOKUP(DW122,Personnel!$A$3:$B$290,2,FALSE),\"\")","v":""},null,null,null,null,null,{"$f":"IFERROR(VLOOKUP(EC122,Personnel!$A$3:$B$290,2,FALSE),\"\")","v":""},null,null,null,null,null,{"$f":"IFERROR(VLOOKUP(EI122,Personnel!$A$3:$B$290,2,FALSE),\"\")","v":""},null,null,null,null,null,{"$f":"IFERROR(VLOOKUP(EO122,Personnel!$A$3:$B$290,2,FALSE),\"\")","v":""},null,null,null,null,null,{"$f":"IFERROR(VLOOKUP(EU122,Personnel!$A$3:$B$290,2,FALSE),\"\")","v":""},null,null,null,null,null,{"$f":"IFERROR(VLOOKUP(FA122,Personnel!$A$3:$B$290,2,FALSE),\"\")","v":""},null,null,null,null,null,null,{"$f":"IFERROR(VLOOKUP(FH122,Personnel!$A$3:$B$290,2,FALSE),\"\")","v":""},null,null,null,null,null,{"$f":"IFERROR(VLOOKUP(FN122,Personnel!$A$3:$B$290,2,FALSE),\"\")","v":""},null,null,null,null,null,{"$f":"IFERROR(VLOOKUP(FT122,Personnel!$A$3:$B$290,2,FALSE),\"\")","v":""},null,null,null,null,null,{"$f":"IFERROR(VLOOKUP(FZ122,Personnel!$A$3:$B$290,2,FALSE),\"\")","v":""}]
[null,{"$f":"IFERROR(VLOOKUP(G123,Personnel!$A$3:$B$290,2,FALSE),\"\")","v":""},null,null,null,null,null,{"$f":"IFERROR(VLOOKUP(M123,Personnel!$A$3:$B$290,2,FALSE),\"\")","v":""},null,null,null,null,null,{"$f":"IFERROR(VLOOKUP(S123,Personnel!$A$3:$B$290,2,FALSE),\"\")","v":""},null,null,null,null,null,{"$f":"IFERROR(VLOOKUP(Y123,Personnel!$A$3:$B$290,2,FALSE),\"\")","v":""},null,null,null,null,null,{"$f":"IFERROR(VLOOKUP(AE123,Personnel!$A$3:$B$290,2,FALSE),\"\")","v":""},null,null,null,null,null,{"$f":"IFERROR(VLOOKUP(AK123,Personnel!$A$3:$B$290,2,FALSE),\"\")","v":""},null,null,null,null,null,{"$f":"IFERROR(VLOOKUP(AQ123,Personnel!$A$3:$B$290,2,FALSE),\"\")","v":""},null,null,null,null,null,{"$f":"IFERROR(VLOOKUP(AW123,Personnel!$A$3:$B$290,2,FALSE),\"\")","v":""},null,null,null,null,null,{"$f":"IFERROR(VLOOKUP(BC123,Personnel!$A$3:$B$290,2,FALSE),\"\")","v":""},null,null,null,null,null,{"$f":"IFERROR(VLOOKUP(BI123,Personnel!$A$3:$B$290,2,FALSE),\"\")","v":""},null,null,null,null,null,{"$f":"IFERROR(VLOOKUP(BO123,Personnel!$A$3:$B$290,2,FALSE),\"\")","v":""},null,null,null,null,null,{"$f":"IFERROR(VLOOKUP(BU123,Personnel!$A$3:$B$290,2,FALSE),\"\")","v":""},null,null,null,null,null,{"$f":"IFERROR(VLOOKUP(CA123,Personnel!$A$3:$B$290,2,FALSE),\"\")","v":""},null,null,null,null,null,{"$f":"IFERROR(VLOOKUP(CG123,Personnel!$A$3:$B$290,2,FALSE),\"\")","v":""},null,null,null,null,null,{"$f":"IFERROR(VLOOKUP(CM123,Personnel!$A$3:$B$290,2,FALSE),\"\")","v":""},null,null,null,null,null,{"$f":"IFERROR(VLOOKUP(CS123,Personnel!$A$3:$B$290,2,FALSE),\"\")","v":""},null,null,null,null,null,{"$f":"IFERROR(VLOOKUP(CY123,Personnel!$A$3:$B$290,2,FALSE),\"\")","v":""},null,null,null,null,null,{"$f":"IFERROR(VLOOKUP(DE123,Personnel!$A$3:$B$290,2,FALSE),\"\")","v":""},null,null,null,null,null,{"$f":"IFERROR(VLOOKUP(DK123,Personnel!$A$3:$B$290,2,FALSE),\"\")","v":""},null,null,null,null,null,{"$f":"IFERROR(VLOOKUP(DQ123,Personnel!$A$3:$B$290,2,FALSE),\"\")","v":""},null,null,null,null,null,{"$f":"IFERROR(VLOOKUP(DW123,Personnel!$A$3:$B$290,2,FALSE),\"\")","v":""},null,null,null,null,null,{"$f":"IFERROR(VLOOKUP(EC123,Personnel!$A$3:$B$290,2,FALSE),\"\")","v":""},null,null,null,null,null,{"$f":"IFERROR(VLOOKUP(EI123,Personnel!$A$3:$B$290,2,FALSE),\"\")","v":""},null,null,null,null,null,{"$f":"IFERROR(VLOOKUP(EO123,Personnel!$A$3:$B$290,2,FALSE),\"\")","v":""},null,null,null,null,null,{"$f":"IFERROR(VLOOKUP(EU123,Personnel!$A$3:$B$290,2,FALSE),\"\")","v":""},null,null,null,null,null,{"$f":"IFERROR(VLOOKUP(FA123,Personnel!$A$3:$B$290,2,FALSE),\"\")","v":""},null,null,null,null,null,null,{"$f":"IFERROR(VLOOKUP(FH123,Personnel!$A$3:$B$290,2,FALSE),\"\")","v":""},null,null,null,null,null,{"$f":"IFERROR(VLOOKUP(FN123,Personnel!$A$3:$B$290,2,FALSE),\"\")","v":""},null,null,null,null,null,{"$f":"IFERROR(VLOOKUP(FT123,Personnel!$A$3:$B$290,2,FALSE),\"\")","v":""},null,null,null,null,null,{"$f":"IFERROR(VLOOKUP(FZ123,Personnel!$A$3:$B$290,2,FALSE),\"\")","v":""}]
[null,{"$f":"IFERROR(VLOOKUP(G124,Personnel!$A$3:$B$290,2,FALSE),\"\")","v":""},null,null,null,null,null,{"$f":"IFERROR(VLOOKUP(M124,Personnel!$A$3:$B$290,2,FALSE),\"\")","v":""},null,null,null,null,null,{"$f":"IFERROR(VLOOKUP(S124,Personnel!$A$3:$B$290,2,FALSE),\"\")","v":""},null,null,null,null,null,{"$f":"IFERROR(VLOOKUP(Y124,Personnel!$A$3:$B$290,2,FALSE),\"\")","v":""},null,null,null,null,null,{"$f":"IFERROR(VLOOKUP(AE124,Personnel!$A$3:$B$290,2,FALSE),\"\")","v":""},null,null,null,null,null,{"$f":"IFERROR(VLOOKUP(AK124,Personnel!$A$3:$B$290,2,FALSE),\"\")","v":""},null,null,null,null,null,{"$f":"IFERROR(VLOOKUP(AQ124,Personnel!$A$3:$B$290,2,FALSE),\"\")","v":""},null,null,null,null,null,{"$f":"IFERROR(VLOOKUP(AW124,Personnel!$A$3:$B$290,2,FALSE),\"\")","v":""},null,null,null,null,null,{"$f":"IFERROR(VLOOKUP(BC124,Personnel!$A$3:$B$290,2,FALSE),\"\")","v":""},null,null,null,null,null,{"$f":"IFERROR(VLOOKUP(BI124,Personnel!$A$3:$B$290,2,FALSE),\"\")","v":""},null,null,null,null,null,{"$f":"IFERROR(VLOOKUP(BO124,Personnel!$A$3:$B$290,2,FALSE),\"\")","v":""},null,null,null,null,null,{"$f":"IFERROR(VLOOKUP(BU124,Personnel!$A$3:$B$290,2,FALSE),\"\")","v":""},null,null,null,null,null,{"$f":"IFERROR(VLOOKUP(CA124,Personnel!$A$3:$B$290,2,FALSE),\"\")","v":""},null,null,null,null,null,{"$f":"IFERROR(VLOOKUP(CG124,Personnel!$A$3:$B$290,2,FALSE),\"\")","v":""},null,null,null,null,null,{"$f":"IFERROR(VLOOKUP(CM124,Personnel!$A$3:$B$290,2,FALSE),\"\")","v":""},null,null,null,null,null,{"$f":"IFERROR(VLOOKUP(CS124,Personnel!$A$3:$B$290,2,FALSE),\"\")","v":""},null,null,null,null,null,{"$f":"IFERROR(VLOOKUP(CY124,Personnel!$A$3:$B$290,2,FALSE),\"\")","v":""},null,null,null,null,null,{"$f":"IFERROR(VLOOKUP(DE124,Personnel!$A$3:$B$290,2,FALSE),\"\")","v":""},null,null,null,null,null,{"$f":"IFERROR(VLOOKUP(DK124,Personnel!$A$3:$B$290,2,FALSE),\"\")","v":""},null,null,null,null,null,{"$f":"IFERROR(VLOOKUP(DQ124,Personnel!$A$3:$B$290,2,FALSE),\"\")","v":""},null,null,null,null,null,{"$f":"IFERROR(VLOOKUP(DW124,Personnel!$A$3:$B$290,2,FALSE),\"\")","v":""},null,null,null,null,null,{"$f":"IFERROR(VLOOKUP(EC124,Personnel!$A$3:$B$290,2,FALSE),\"\")","v":""},null,null,null,null,null,{"$f":"IFERROR(VLOOKUP(EI124,Personnel!$A$3:$B$290,2,FALSE),\"\")","v":""},null,null,null,null,null,{"$f":"IFERROR(VLOOKUP(EO124,Personnel!$A$3:$B$290,2,FALSE),\"\")","v":""},null,null,null,null,null,{"$f":"IFERROR(VLOOKUP(EU124,Personnel!$A$3:$B$290,2,FALSE),\"\")","v":""},null,null,null,null,null,{"$f":"IFERROR(VLOOKUP(FA124,Personnel!$A$3:$B$290,2,FALSE),\"\")","v":""},null,null,null,null,null,null,{"$f":"IFERROR(VLOOKUP(FH124,Personnel!$A$3:$B$290,2,FALSE),\"\")","v":""},null,null,null,null,null,{"$f":"IFERROR(VLOOKUP(FN124,Personnel!$A$3:$B$290,2,FALSE),\"\")","v":""},null,null,null,null,null,{"$f":"IFERROR(VLOOKUP(FT124,Personnel!$A$3:$B$290,2,FALSE),\"\")","v":""},null,null,null,null,null,{"$f":"IFERROR(VLOOKUP(FZ124,Personnel!$A$3:$B$290,2,FALSE),\"\")","v":""}]
[" "]

{"sheet":"Personnel","index":1,"n_rows":148,"n_cols":12,"rows_kept":148,"cut":false,"hidden":false,"merged":[[0,0,0,5]]}
["Personnel"]
["Acronymes","Prenom Nom","Date Embauche","Ordre\nAffectation","Liste","Chef d'équipe","Véhicule attitré","Permis","CACES","UTILISATION MM ELEC","UTILISATION MM ESS","Colonne1"]
["TN","Equipier 1",null,1,"OUI","OUI",null,"SPL","C1"]
["DD","Equipier 2",null,2,"OUI","OUI",null,"B","OUI"]
["VV","Equipier 3",null,1,"OUI","OUI",null,"SPL","C1",null,"OUI"]
["RM","Equipier 4",null,2,"OUI","OUI",null,"SPL"]
["RT","Equipier 5",null,2,"OUI","OUI",null,"B","OUI",null,"OUI"]
["DM","Equipier 6",null,3,"OUI","OUI"]
["KL","Equipier 7",null,2,"OUI","OUI",null,"B"]
["GL","Equipier 8",null,2,"OUI","OUI",null,"PL","OUI"]
["AG","Equipier 9",null,1,"OUI","OUI",null,"PL","OUI",null,"OUI"]
["CD","Equipier 10",null,3,"OUI","NON"]
["CC","Equipier 11",null,2,"OUI","NON",null,"B"]
["LB","Equipier 12",null,2,"OUI","NON",null,"PL"]
["SB","Equipier 13",null,2,"OUI","OUI",null,"PL","OUI"]
["LV","Equipier 14",null,4,"OUI","NON"]
["RR","Equipier 15",null,2,"OUI","OUI",null,"PL"]
["AA","Equipier 16",null,6,"OUI","NON"]
["CG","Equipier 17",null,5,"OUI","OUI",null,"B"]
["SA","Equipier 18",null,5,"OUI","OUI",null,"B"]
["GB","Equipier 19",null,5,"OUI","NON",null,"B"]
["MS","Equipier 20",null,15,"OUI","NON",null,"B"]
[null,null,null,10,"OUI","NON"]
[null,null,null,5,"NON","NON"]
[null,null,null,4,"OUI","NON"]
[null,null,null,100,"NON","NON"]
[null,null,null,100,"NON","NON"]
[null,null,null,100,"NON","NON"]
[null,null,null,100,"NON","NON"]
[null,null,null,100,"NON","NON"]
[null,null,null,100,"NON","NON"]
[null,null,null,100,"NON","NON"]
[null,null,null,100,"NON","NON"]
[null,null,null,100,"NON","NON"]
[]
[null,null,null,100,"NON","NON"]
[null,null,null,100,"NON","NON"]
[null,null,null,100,"NON","NON"]
[null,null,null,100,"NON","NON"]
[]
[null,null,null,100,"NON","NON"]
[null,null,null,100,"NON","NON"]
[null,null,null,100,"NON","NON"]
[null,null,null,100,"OUI","NON"]
[null,null,null,100,"NON","NON"]
[null,null,null,100,"NON","NON"]
[null,null,null,100,"NON","NON"]
[null,null,null,100,"NON","NON"]
[null,null,null,100,"NON","NON"]
[null,null,null,100,"NON","NON"]
[null,null,null,100,"NON","NON"]
[null,null,null,100,"NON","NON"]
[null,null,null,100,"NON","NON"]
[null,null,null,100,"NON","NON"]
[null,null,null,100,"NON","NON"]
[null,null,null,100,"NON","NON"]
[null,null,null,100,"NON","NON"]
[null,null,null,100,"NON","NON"]
[null,null,null,100,"NON","NON"]
[null,null,null,100,"NON","NON"]
[null,null,null,100,"NON","NON"]
[null,null,null,100,"NON","NON"]
[null,null,null,100,"NON","NON"]
[null,null,null,100,"NON","NON"]
[null,null,null,100,"NON","NON"]
[null,null,null,100,"NON","NON"]
[null,null,null,100,"NON","NON"]
[null,null,null,100,"NON","NON"]
[null,null,null,100,"NON","NON"]
[null,null,null,100,"NON","NON"]
[null,null,null,100,"NON","NON"]
[null,null,null,100,"NON","NON"]
[null,null,null,100,"NON","NON"]
[null,null,null,100,"NON","NON"]
[null,null,null,100,"NON","NON"]
[null,null,null,100,"NON","NON"]
[null,null,null,100,"NON","NON"]
[null,null,null,100,"NON","NON"]
[null,null,null,100,"NON","NON"]
[null,null,null,100,"NON","NON"]
[null,null,null,100,"NON","NON"]
[null,null,null,2]
[null,null,null,3]
[null,null,null,4]
[null,null,null,4]
[null,null,null,5]
[null,null,null,6]
[null,null,null,6]
[null,null,null,6]
[]
[null,null,null,5]
[null,null,null,3]
[null,null,null,6]
[null,null,null,15]
[null,null,null,9]
[null,null,null,10]
[null,null,null,15]
[null,null,null,15]
[]
[null,null,null,90]
[null,null,null,5]
[null,null,null,15]
[null,null,null,10]
[null,null,null,100]
[null,null,null,100]
[]
[]
[]
[]
[]
[]
[]
[]
[]
[]
[]
[]
[]
[]
[]
[]
[]
[]
[]
[]
[]
[]
[]
["Acronymes non utlisable"]
["AE"]
["AK"]
["AQ"]
["AW"]
["BC"]
["BI"]
["BO"]
["BU"]
["CA"]
["CG"]
["CS"]
["CY"]
["DE"]
["DK"]
["DQ"]
["DX"]
["ED"]
["EJ"]
["EP"]

{"sheet":"Explications","index":2,"n_rows":42,"n_cols":16,"rows_kept":42,"cut":false,"hidden":false,"merged":[[19,4,19,8],[20,4,20,8],[21,4,21,8],[22,4,22,8],[13,4,13,7],[14,4,14,9],[15,4,15,9],[16,4,16,9],[17,4,17,8],[18,4,18,8],[12,4,12,9],[7,4,7,7],[8,4,8,9],[9,4,9,7],[10,4,10,9],[11,4,11,7]]}
[null,null,null,null,null,null,null,null,null,null,null,"PROCEDURE POUR OTER LA PROTECTION DE LA FEUILLE"]
[null,null,null,null,null,null,null,null,null,null,null,"ALLER DANS L'ONGLET REVISION"]
[null,null,null,null,null,null,null,null,null,null,null,"CLIQUER SUR \"OTER LA PROTECTION\""]
[null,null,null,null,null,null,null,null,null,null,null,"MOT DE PASSE POUR DEVEROUILLER LA FEUILLE",null,null,null,"apiway"]
[]
[]
[]
[null,null,null,null,"OPERATION 1",null,null,null,12,"A"]
[null,null,null,null,"VERSAILLES > ",null,null,null,null,null,"CONFIRMATION ORAL"]
[null,null,null,null,"OPERATION 2",null,null,null,21,"B"]
[null,null,null,null,"VERSAILLES > ",null,null,null,null,null,"autot de stat"]
[]
[]
[]
[]
[null,null,null,null,"AE1 + REM"]
[null,null,null,null,"ROUTE",null,null,null,null,null,"si route, chargment a partir d'un certaine heure, rdv médical, ou entretien véhicule"]
[null,null,null,null,null,null,null,null,null,"MR"]
[null,null,null,null,null,null,null,null,null,"CTR"]
[null,null,null,null,{"$error":"#N/A"},null,null,null,null,null,null,null,"ANCIENNE","ANCIENNE","NOUVELLE"]
[null,null,null,null,{"$error":"#N/A"},null,null,null,null,null,null,null,"COULEUR","LETTRE","LETTRES/ COULEUR"]
[null,null,null,null,{"$error":"#N/A"},null,null,null,null,null,null,"GM /CM","VERT","G"]
[null,null,null,null,{"$error":"#N/A"},null,null,null,null,null,null,"CUISINE","BLEU CLAIR","C ","C"]
[null,null,null,null,null,null,null,null,null,null,null,"INDUSTRIEL","BLEU MARINE","I","I"]
[null,null,null,null,null,null,null,null,null,null,null,"DEM LOCAL","VIOLET","L","P","DEM PARTICULIER"]
[null,null,null,null,null,null,null,null,null,null,null,"EXPORT","JAUNE","E","E"]
[null,null,null,null,null,null,null,null,null,null,null,"REPLIS","GRIS","R","M","MILITAIRE"]
["SUIVI CAISSE MOBILE",null,null,null,null,null,null,null,null,null,null,"CONTENEUR EXPORT","ORANGE","O","E"]
[null,null,null,null,null,null,null,null,null,null,null,"SOUS TRAITANCE DONNÉE","ROUGE","S",null,"COULEUR DU DOSSIER"]
["ACCEPTER LE NOMBRE A VIRGULE DANS LE VOLUME",null,null,null,null,null,null,null,null,null,null,"SOUS TRAITANCE PRISE",null,null,"S","TROUVER COULEUR DE DOSSIER ADMINISTRATIF"]
["HEURE D'INTERVENTION",null,null,null,null,null,null,null,null,null,null,"IMPORT",null,null,"O","TROUVER COULEUR DE DOSSIER ADMINISTRATIF"]
["AUTOTSTAT FAITE ET ACCEPT2",null,null,null,null,null,null,null,null,null,null,"IMPORT AVEC GM (REPLIS)",null,null,"IG"]
["CLIENT PREVENU DATE ET HEURE D'INTEVRENTION AVEC RETOUR POSITIF DE SA PART",null,null,null,null,null,null,null,null,null,null,"EXPORT AVEC GM (REPLIS)",null,null,"EG"]
[]
["IMPOSSIBLE DE SUPPRMIER LES RECHECHE DE NOM"]
["COMPTEUR D'HOMME non utilisé",null,null,null,null,null,null,null,null,null,null,"PART GM",null,null,"PG"]
[null,null,null,null,null,null,null,null,null,null,null,"MILITAIRE AVEC GARDE MEUBLES",null,null,"MG"]
["INTERIMAIRE JOURNALIER EN ROUGE TANT QU'ON A PAS DE NOM",null,null,null,null,null,null,null,null,null,null,"EXPORT PARTICULIER",null,null,"EP","UTILE ?"]
[null,null,null,null,null,null,null,null,null,null,null,"IMPORT PARTICULIER",null,null,"IP","UTILE ?"]
[]
["cas poru les hommes dispo"]
[null,null,null,null,null,null,null,null,null,null,null,"MISE NE FORME NOM DE CLIENT PAS CENTRER - POUR AVOIR LE DEBUT QUI S'AFFICHE DANS LA CELLULE"]